Workbook

Sheet Table S1
K2: BUSCO-5.5.0 - embryophyta_odb10
K3: Complete | Q3: Fragmented | S3: Missing | U3: TOTAL
D4: Assembly | F4: QUAST-5.2.0 | K4: All | M4: Single-copy | O4: Duplicated
B5: Order | C5: Family | E5: Data availability | F5: Total Length | G5: # contigs | H5: Largest contig | I5: N50 | J5: L50 | K5: # | L5: % | M5: # | N5: % | O5: # | P5: % | Q5: # | R5: % | S5: # | T5: % | V5: Citation | W5: Note
A6: 1 | B6: Ericales | C6: Roridulaceae | D6: Roridula gorgonias | E6: Genome, Annotation | F6: 284,227,596 | G6: 20,615 | H6: 191,047 | I6: 46,984 | J6: 2,209 | K6: 1409 | L6: 87.3% | M6: 1353 | N6: 83.8% | O6: 56 | P6: 3.5% | Q6: 148 | R6: 9.2% | S6: 57 | T6: 3.5% | U6: 1614 | V6: Hartmann, S., Preick, M., Abelt, S., Scheffel, A. and Hofreiter, M., 2020. Annotated genome sequences of the carnivorous plant Roridula gorgonias and a non-carnivorous relative, Clethra arborea. BMC research notes, 13(1), pp.1-6.
A7: 2 | B7: Ericales | C7: Sarraceniaceae | D7: Darlingtonia californica | E7: Genome | F7: 404,104,574 | G7: 143,066 | H7: 71,692 | I7: 5,514 | J7: 19,353 | K7: 68 | L7: 4.2% | M7: 63 | N7: 3.9% | O7: 5 | P7: 0.3% | Q7: 45 | R7: 2.8% | S7: 1501 | T7: 93.0% | U7: 1614 | V7: Procko, C., Chory, J. and Pirro, S., 2023. The Genome Sequences of 17 Species of Carnivorous Plants. Biodiversity genomes.
A8: 3 | B8: Ericales | C8: Sarraceniaceae | D8: Heliamphora ciliata | E8: Genome | F8: 894,468,950 | G8: 451,303 | H8: 5,583,217 | I8: 3,167 | J8: 48,442 | K8: 288 | L8: 17.8% | M8: 283 | N8: 17.5% | O8: 5 | P8: 0.3% | Q8: 517 | R8: 32.0% | S8: 809 | T8: 50.2% | U8: 1614 | V8: Procko, C., Chory, J. and Pirro, S., 2023. The Genome Sequences of 17 Species of Carnivorous Plants. Biodiversity genomes.
A9: 4 | B9: Ericales | C9: Sarraceniaceae | D9: Heliamphora exappendiculata | E9: Genome | F9: 1,355,009,549 | G9: 489,108 | H9: 28,266,782 | I9: 13,685 | J9: 16,099 | K9: 1247 | L9: 77.2% | M9: 1208 | N9: 74.8% | O9: 39 | P9: 2.4% | Q9: 281 | R9: 17.4% | S9: 86 | T9: 5.4% | U9: 1614 | V9: Procko, C., Chory, J. and Pirro, S., 2023. The Genome Sequences of 17 Species of Carnivorous Plants. Biodiversity genomes.
A10: 5 | B10: Ericales | C10: Sarraceniaceae | D10: Heliamphora pulchella | E10: Genome | F10: 992,772,932 | G10: 226,020 | H10: 14,164,309 | I10: 10,594 | J10: 18,072 | K10: 1007 | L10: 62.4% | M10: 991 | N10: 61.4% | O10: 16 | P10: 1.0% | Q10: 426 | R10: 26.4% | S10: 181 | T10: 11.2% | U10: 1614 | V10: Procko, C., Chory, J. and Pirro, S., 2023. The Genome Sequences of 17 Species of Carnivorous Plants. Biodiversity genomes.
A11: 6 | B11: Ericales | C11: Sarraceniaceae | D11: Sarracenia alabamensis | E11: Genome | F11: 828,727,520 | G11: 565,406 | H11: 2,688,456 | I11: 1,828 | J11: 118,654 | K11: 175 | L11: 10.8% | M11: 167 | N11: 10.3% | O11: 8 | P11: 0.5% | Q11: 350 | R11: 21.7% | S11: 1089 | T11: 67.5% | U11: 1614 | V11: Procko, C., Chory, J. and Pirro, S., 2023. The Genome Sequences of 17 Species of Carnivorous Plants. Biodiversity genomes.
A12: 7 | B12: Ericales | C12: Sarraceniaceae | D12: Sarracenia alata | E12: Genome | F12: 3,161,639,272 | G12: 122,084 | H12: 1,163,788 | I12: 35,633 | J12: 24,808 | K12: 1193 | L12: 73.9% | M12: 1067 | N12: 66.1% | O12: 126 | P12: 7.8% | Q12: 249 | R12: 15.4% | S12: 172 | T12: 10.7% | U12: 1614 | V12: Procko, C., Chory, J. and Pirro, S., 2023. The Genome Sequences of 17 Species of Carnivorous Plants. Biodiversity genomes.
A13: 8 | B13: Ericales | C13: Sarraceniaceae | D13: Sarracenia flava | E13: Genome | F13: 921,451,109 | G13: 587,048 | H13: 4,232,690 | I13: 1,976 | J13: 126,364 | K13: 269 | L13: 16.6% | M13: 259 | N13: 16.0% | O13: 10 | P13: 0.6% | Q13: 529 | R13: 32.8% | S13: 816 | T13: 50.6% | U13: 1614 | V13: Procko, C., Chory, J. and Pirro, S., 2023. The Genome Sequences of 17 Species of Carnivorous Plants. Biodiversity genomes.
A14: 9 | B14: Ericales | C14: Sarraceniaceae | D14: Sarracenia leucophylla | E14: Genome | F14: 836,733,871 | G14: 576,670 | H14: 2,539,103 | I14: 1,794 | J14: 123,177 | K14: 151 | L14: 9.4% | M14: 145 | N14: 9.0% | O14: 6 | P14: 0.4% | Q14: 331 | R14: 20.5% | S14: 1132 | T14: 70.1% | U14: 1614 | V14: Procko, C., Chory, J. and Pirro, S., 2023. The Genome Sequences of 17 Species of Carnivorous Plants. Biodiversity genomes.
A15: 10 | B15: Ericales | C15: Sarraceniaceae | D15: Sarracenia minor | E15: Genome | F15: 670,239,117 | G15: 480,512 | H15: 1,524,340 | I15: 1,714 | J15: 104,154 | K15: 60 | L15: 3.7% | M15: 58 | N15: 3.6% | O15: 2 | P15: 0.1% | Q15: 216 | R15: 13.4% | S15: 1338 | T15: 82.9% | U15: 1614 | V15: Procko, C., Chory, J. and Pirro, S., 2023. The Genome Sequences of 17 Species of Carnivorous Plants. Biodiversity genomes.
A16: 11 | B16: Ericales | C16: Sarraceniaceae | D16: Sarracenia psittacina | E16: Genome | F16: 809,482,135 | G16: 593,740 | H16: 2,600,409 | I16: 1,628 | J16: 136,220 | K16: 112 | L16: 6.9% | M16: 107 | N16: 6.6% | O16: 5 | P16: 0.3% | Q16: 373 | R16: 23.1% | S16: 1129 | T16: 70.0% | U16: 1614 | V16: Procko, C., Chory, J. and Pirro, S., 2023. The Genome Sequences of 17 Species of Carnivorous Plants. Biodiversity genomes.
A17: 12 | B17: Ericales | C17: Sarraceniaceae | D17: Sarracenia purpurea | E17: Genome | F17: 764,972,960 | G17: 539,434 | H17: 2,203,281 | I17: 1,738 | J17: 117,912 | K17: 79 | L17: 4.9% | M17: 76 | N17: 4.7% | O17: 3 | P17: 0.2% | Q17: 253 | R17: 15.7% | S17: 1282 | T17: 79.4% | U17: 1614 | V17: Procko, C., Chory, J. and Pirro, S., 2023. The Genome Sequences of 17 Species of Carnivorous Plants. Biodiversity genomes.
A18: 13 | B18: Lamiales | C18: Lentibulariaceae | D18: Genlisea aurea | E18: Genome, Annotation | F18: 43,357,795 | G18: 10,684 | H18: 169,254 | I18: 5,786 | J18: 2,092 | K18: 1126 | L18: 69.8% | M18: 1115 | N18: 69.1% | O18: 11 | P18: 0.7% | Q18: 228 | R18: 14.1% | S18: 260 | T18: 16.1% | U18: 1614 | V18: Leushkin, E.V., Sutormin, R.A., Nabieva, E.R., Penin, A.A., Kondrashov, A.S. and Logacheva, M.D., 2013. The miniature genome of a carnivorous plant Genlisea aurea contains a low number of genes and short non-coding sequences. BMC genomics, 14, pp.1-11.
A19: 14 | B19: Lamiales | C19: Lentibulariaceae | D19: Genlisea hispidula* | E19: Genome, Annotation | F19: 203,800,000 | G19: 95,804 | H19: - | I19: 27,310 | J19: 2,300 | K19: - | L19: - | M19: - | N19: - | O19: - | P19: - | Q19: - | R19: - | S19: - | T19: - | U19: - | V19: Vu, G.T., Schmutzer, T., Bull, F., Cao, H.X., Fuchs, J., Tran, T.D., Jovtchev, G., Pistrick, K., Stein, N., Pecinka, A. and Neumann, P., 2015. Comparative genome analysis reveals divergent genome size evolution in a carnivorous plant genus. The Plant Genome, 8(3), pp.plantgenome2015-04.
A20: 15 | B20: Lamiales | C20: Lentibulariaceae | D20: Genlisea nigrocaulis* | E20: Genome, Annotation | F20: 64,930,000 | G20: 6,968 | H20: - | I20: 173,700 | J20: 113 | K20: - | L20: - | M20: - | N20: - | O20: - | P20: - | Q20: - | R20: - | S20: - | T20: - | U20: - | V20: Vu, G.T., Schmutzer, T., Bull, F., Cao, H.X., Fuchs, J., Tran, T.D., Jovtchev, G., Pistrick, K., Stein, N., Pecinka, A. and Neumann, P., 2015. Comparative genome analysis reveals divergent genome size evolution in a carnivorous plant genus. The Plant Genome, 8(3), pp.plantgenome2015-04.
A21: 16 | B21: Lamiales | C21: Lentibulariaceae | D21: Pinguicula moranensis | E21: Genome | F21: 816,101,522 | G21: 255,161 | H21: 1,592,721 | I21: 5,325 | J21: 40,354 | K21: 1020 | L21: 63.2% | M21: 850 | N21: 52.7% | O21: 170 | P21: 10.5% | Q21: 372 | R21: 23.0% | S21: 222 | T21: 13.8% | U21: 1614 | V21: Procko, C., Chory, J. and Pirro, S., 2023. The Genome Sequences of 17 Species of Carnivorous Plants. Biodiversity genomes.
B22: Lamiales | C22: Lentibulariaceae | D22: Pinguicula primuliflora | E22: Genome | F22: 404,192,229 | G22: 92,717 | H22: 2,235,986 | I22: 8,776 | J22: 11,930 | K22: 1409 | L22: 87.3% | M22: 1285 | N22: 79.6% | O22: 124 | P22: 7.7% | Q22: 116 | R22: 7.2% | S22: 89 | T22: 5.5% | U22: 1614 | V22: Procko, C., Chory, J. and Pirro, S., 2023. The Genome Sequences of 17 Species of Carnivorous Plants. Biodiversity genomes.
B23: Lamiales | C23: Lentibulariaceae | D23: Utricularia gibba | E23: Genome, Annotation | F23: 100,232,236 | G23: 516 | H23: 8,502,017 | I23: 3,446,356 | J23: 10 | K23: 1508 | L23: 93.4% | M23: 1464 | N23: 90.7% | O23: 44 | P23: 2.7% | Q23: 28 | R23: 1.7% | S23: 78 | T23: 4.9% | U23: 1614 | V23: Lan, T., Renner, T., Ibarra-Laclette, E., Farr, K.M., Chang, T.H., Cervantes-Pérez, S.A., Zheng, C., Sankoff, D., Tang, H., Purbojati, R.W. and Putra, A., 2017. Long-read sequencing uncovers the adaptive topography of a carnivorous plant genome. Proceedings of the National Academy of Sciences, 114(22), pp.E4435-E4441.
B24: Lamiales | C24: Lentibulariaceae | D24: Utricularia reniformis | E24: Genome, Annotation | F24: 304,550,249 | G24: 1,830 | H24: 1,862,935 | I24: 488,004 | J24: 183 | K24: 1475 | L24: 91.4% | M24: 1047 | N24: 64.9% | O24: 428 | P24: 26.5% | Q24: 32 | R24: 2.0% | S24: 107 | T24: 6.6% | U24: 1614 | V24: Silva, S.R., Moraes, A.P., Penha, H.A., Julião, M.H., Domingues, D.S., Michael, T.P., Miranda, V.F. and Varani, A.M., 2019. The terrestrial carnivorous plant Utricularia reniformis sheds light on environmental and life-form genome plasticity. International journal of molecular sciences, 21(1), p.3.
A25: 17 | B25: Nepenthales | C25: Droseraceae | D25: Aldrovanda vesiculosa | E25: Genome, Annotation | F25: 420,285,881 | G25: 2,408 | H25: 3,421,599 | I25: 313,727 | J25: 310 | K25: 1517 | L25: 94.0% | M25: 1366 | N25: 84.6% | O25: =K25-M25 -> 151 | P25: =L25-N25 -> 9.4% | Q25: 28 | R25: 1.7% | S25: =1614-(K25+Q25) -> 69 | T25: =1-(L25+R25) -> 4.3% | U25: =K25+Q25+S25 -> 1614 | V25: Palfalvi, G., Hackl, T., Terhoeven, N., Shibata, T.F., Nishiyama, T., Ankenbrand, M., Becker, D., Förster, F., Freund, M., Iosip, A. and Kreuzer, I., 2020. Genomes of the Venus flytrap and close relatives unveil the roots of plant carnivory. Current Biology, 30(12), pp.2312-2320.
A26: 18 | B26: Nepenthales | C26: Droseraceae | D26: Dionaea muscipula | E26: Genome | F26: 605,730,051 | G26: 234,133 | H26: 412,882 | I26: 3,876 | J26: 42,683 | K26: 931 | L26: 57.7% | M26: 915 | N26: 56.7% | O26: 16 | P26: 1.0% | Q26: 426 | R26: 26.4% | S26: 257 | T26: 15.9% | U26: 1614 | V26: Procko, C., Chory, J. and Pirro, S., 2023. The Genome Sequences of 17 Species of Carnivorous Plants. Biodiversity genomes. | W26: Not publically available
A27: 19 | B27: Nepenthales | C27: Droseraceae | D27: Dionaea muscipula* | E27: Genome, Annotation | F27: 1,500,000,000 | G27: 104,847 | H27: 1,000,000 | I27: 35,000 | J27: - | K27: - | L27: 83.6% | M27: - | N27: 80.5% | O27: - | P27: =L27-N27 -> 3.1% | Q27: - | R27: - | S27: - | T27: - | U27: - | V27: Palfalvi, G., Hackl, T., Terhoeven, N., Shibata, T.F., Nishiyama, T., Ankenbrand, M., Becker, D., Förster, F., Freund, M., Iosip, A. and Kreuzer, I., 2020. Genomes of the Venus flytrap and close relatives unveil the roots of plant carnivory. Current Biology, 30(12), pp.2312-2320. | W27: 2/3 corrupted files
A28: 20 | B28: Nepenthales | C28: Droseraceae | D28: Drosera capensis | E28: Genome | F28: 263,058,917 | G28: 10,821 | H28: 405,366 | I28: 82,717 | J28: 941 | K28: 1490 | L28: 92.3% | M28: 1122 | N28: 69.5% | O28: 368 | P28: 22.8% | Q28: 50 | R28: 3.1% | S28: 74 | T28: 4.6% | U28: 1614 | V28: Butts, C.T., Bierma, J.C. and Martin, R.W., 2016. Novel proteases from the genome of the carnivorous plant Drosera capensis: structural prediction and comparative analysis. Proteins: Structure, Function, and Bioinformatics, 84(10), pp.1517-1533.
A29: 21 | B29: Nepenthales | C29: Droseraceae | D29: Drosera spatulata | E29: Genome, Annotation | F29: 237,783,380 | G29: 1,061 | H29: 3,359,042 | I29: 705,355 | J29: 101 | K29: 1524 | L29: 94.5% | M29: 1478 | N29: 91.6% | O29: 46 | P29: 2.9% | Q29: 25 | R29: 1.5% | S29: 65 | T29: 4.0% | U29: 1614 | V29: Palfalvi, G., Hackl, T., Terhoeven, N., Shibata, T.F., Nishiyama, T., Ankenbrand, M., Becker, D., Förster, F., Freund, M., Iosip, A. and Kreuzer, I., 2020. Genomes of the Venus flytrap and close relatives unveil the roots of plant carnivory. Current Biology, 30(12), pp.2312-2320.
A30: 22 | B30: Nepenthales | C30: Droseraceae | D30: Drosera spatulata (decontamination_FSCR) | E30: Genome | F30: 449,008,788 | G30: 76,100 | H30: 172,028 | I30: 17,213 | J30: 7,577 | K30: 1252 | L30: 77.6% | M30: 660 | N30: 40.9% | O30: 592 | P30: 36.7% | Q30: 199 | R30: 12.3% | S30: 163 | T30: 10.1% | U30: 1614 | V30: Procko, C., Chory, J. and Pirro, S., 2023. The Genome Sequences of 17 Species of Carnivorous Plants. Biodiversity genomes.
A31: 23 | B31: Nepenthales | C31: Droseraceae | D31: Drosera spatulata (decontamination_gx) | E31: Genome | F31: 447,992,064 | G31: 74,690 | H31: 172,028 | I31: 17,258 | J31: 7,548 | K31: 1252 | L31: 77.6% | M31: 660 | N31: 40.9% | O31: 592 | P31: 36.7% | Q31: 199 | R31: 12.3% | S31: 163 | T31: 10.1% | U31: 1614 | V31: Procko, C., Chory, J. and Pirro, S., 2023. The Genome Sequences of 17 Species of Carnivorous Plants. Biodiversity genomes. | W31: Not publically available
A32: 24 | B32: Nepenthales | C32: Droseraceae | D32: Drosera spatulata (spades_01) | E32: Genome | F32: 449,110,370 | G32: 76,199 | H32: 172,069 | I32: 17,209 | J32: 7,580 | K32: 1252 | L32: 77.6% | M32: 660 | N32: 40.9% | O32: 592 | P32: 36.7% | Q32: 199 | R32: 12.3% | S32: 163 | T32: 10.1% | U32: 1614 | V32: Procko, C., Chory, J. and Pirro, S., 2023. The Genome Sequences of 17 Species of Carnivorous Plants. Biodiversity genomes.
A33: 25 | B33: Nepenthales | C33: Droseraceae | D33: Drosera spatulata (zanfona_1) | E33: Genome | F33: 448,040,157 | G33: 74,387 | H33: 973,527 | I33: 17,381 | J33: 7,365 | K33: 1252 | L33: 77.6% | M33: 660 | N33: 40.9% | O33: 592 | P33: 36.7% | Q33: 198 | R33: 12.3% | S33: 164 | T33: 10.1% | U33: 1614 | V33: Procko, C., Chory, J. and Pirro, S., 2023. The Genome Sequences of 17 Species of Carnivorous Plants. Biodiversity genomes.
A34: 26 | B34: Nepenthales | C34: Droseraceae | D34: Drosera tokaiensis | E34: Genome | F34: - | G34: - | H34: - | I34: - | J34: - | K34: - | L34: - | M34: - | N34: - | O34: - | P34: - | Q34: - | R34: - | S34: - | T34: - | U34: - | V34: Procko, C., Chory, J. and Pirro, S., 2023. The Genome Sequences of 17 Species of Carnivorous Plants. Biodiversity genomes.
A35: 27 | B35: Nepenthales | C35: Droseraceae | D35: Nepenthes alata | E35: Genome | F35: 948,146,422 | G35: 170,420 | H35: 102,538 | I35: 6,836 | J35: 40,621 | K35: 985 | L35: 61.0% | M35: 962 | N35: 59.6% | O35: 23 | P35: 1.4% | Q35: 430 | R35: 26.6% | S35: 199 | T35: 12.4% | U35: 1614 | V35: Procko, C., Chory, J. and Pirro, S., 2023. The Genome Sequences of 17 Species of Carnivorous Plants. Biodiversity genomes.
A36: 28 | B36: Nepenthales | C36: Droseraceae | D36: Nepenthes gracilis (female_HiC) | E36: Genome, Annotation | F36: 757,462,774 | G36: 1,669 | H36: 47,308,813 | I36: 16,168,190 | J36: 15 | K36: 1548 | L36: 95.9% | M36: 1517 | N36: 94.0% | O36: 31 | P36: 1.9% | Q36: 24 | R36: 1.5% | S36: 42 | T36: 2.6% | U36: 1614 | V36: Saul, F., Scharmann, M., Wakatake, T., Rajaraman, S., Marques, A., Freund, M., Bringmann, G., Channon, L., Becker, D., Carroll, E. and Low, Y.W., 2023. Subgenome dominance shapes novel gene evolution in the decaploid pitcher plant Nepenthes gracilis. Nature plants, pp.1-16.
A37: 29 | B37: Nepenthales | C37: Droseraceae | D37: Nepenthes gracilis (female_SPA) | E37: Genome, Annotation | F37: 757,016,474 | G37: 1,801 | H37: 32,458,460 | I37: 15,051,313 | J37: 18 | K37: 1550 | L37: 96.0% | M37: 1519 | N37: 94.1% | O37: 31 | P37: 1.9% | Q37: 23 | R37: 1.4% | S37: 41 | T37: 2.6% | U37: 1614 | V37: Saul, F., Scharmann, M., Wakatake, T., Rajaraman, S., Marques, A., Freund, M., Bringmann, G., Channon, L., Becker, D., Carroll, E. and Low, Y.W., 2023. Subgenome dominance shapes novel gene evolution in the decaploid pitcher plant Nepenthes gracilis. Nature plants, pp.1-16.
B38: Nepenthales | C38: Droseraceae | D38: Nepenthes gracilis (male_HiC) | E38: Genome, Annotation | F38: 752,878,903 | G38: 176 | H38: 32,212,346 | I38: 18,633,394 | J38: 16 | K38: 1564 | L38: 96.9% | M38: 1537 | N38: 95.2% | O38: 27 | P38: 1.7% | Q38: 15 | R38: 0.9% | S38: 35 | T38: 2.2% | U38: 1614 | V38: Saul, F., Scharmann, M., Wakatake, T., Rajaraman, S., Marques, A., Freund, M., Bringmann, G., Channon, L., Becker, D., Carroll, E. and Low, Y.W., 2023. Subgenome dominance shapes novel gene evolution in the decaploid pitcher plant Nepenthes gracilis. Nature plants, pp.1-16.
B39: Nepenthales | C39: Droseraceae | D39: Nepenthes mirabilis | E39: Genome, Annotation | F39: 684,191,417 | G39: 140,542 | H39: 312,611 | I39: 10,440 | J39: 17,371 | K39: 1564 | L39: 96.9% | M39: 1543 | N39: 95.6% | O39: 21 | P39: 1.3% | Q39: 28 | R39: 1.7% | S39: 22 | T39: 1.4% | U39: 1614 | V39: Gao, Y., Liao, H.B., Liu, T.H., Wu, J.M., Wang, Z.F. and Cao, H.L., 2023. Draft genome and transcriptome of Nepenthes mirabilis, a carnivorous plant in China. BMC Genomic Data, 24(1), pp.1-5.
B40: Oxalidales | C40: Cephalotaceae | D40: Cephalotus follicularis | E40: Genome, Annotation | F40: 1,614,517,073 | G40: 16,307 | H40: 2,219,130 | I40: 287,498 | J40: 1,634 | K40: 1564 | L40: 96.9% | M40: 1536 | N40: 95.2% | O40: =K40-M40 -> 28 | P40: =L40-N40 -> 1.7% | Q40: 20 | R40: 1.2% | S40: =1614-(K40+Q40) -> 30 | T40: =1-(L40+R40) -> 1.9% | U40: =K40+Q40+S40 -> 1614 | V40: Fukushima, K., Fang, X., Alvarez-Ponce, D., Cai, H., Carretero-Paulet, L., Chen, C., Chang, T.H., Farr, K.M., Fujita, T., Hiwatashi, Y. and Hoshi, Y., 2017. Genome of the pitcher plant Cephalotus reveals genetic changes associated with carnivory. Nature Ecology & Evolution, 1(3), p.0059. | W40: broken download links
D41: *incomplete assembly stats and BUSCO-3.0.1 reported from paper. BUSCO library unknown. Genome not available
D42: **kmergenie & Genomescope genome size estimates
B44: Table S1: Assembly statistics for all currently published carnivorous plant genomes.

Sheet Table S2
B2: Sample: | C2: Pinguicula agnata | D2: Pinguicula gigantea | E2: Pinguicula grandiflora | F2: Pinguicula moctezumea
B3: Mean read length: | C3: 3,159.6 | D3: 6,182.2 | E3: 6,073.0 | F3: 4,353.0
B4: Mean read quality: | C4: 4.5 | D4: 4.5 | E4: 4.7 | F4: 3.7
B5: Median read length: | C5: 693 | D5: 1,054 | E5: 1,003 | F5: 475
B6: Median read quality: | C6: 6.5 | D6: 7.8 | E6: 8.1 | F6: 6.6
B7: Number of reads: | C7: 12,613,739 | D7: 8,977,265 | E7: 4,683,883 | F7: 12,121,023
B8: Read length N50: | C8: 17,455 | D8: 35,854 | E8: 37,878 | F8: 37,492
B9: STDEV read length: | C9: 9,290.7 | D9: 15,575.0 | E9: 15,970.9 | F9: 13,981.0
B10: Total bases: | C10: 39,854,418,704 | D10: 55,499,618,859 | E10: 28,445,068,544 | F10: 52,762,913,837
B11: Number, percentage and megabases of reads above quality cutoffs
B12: >Q5: | C12: 7,595,419 (60.2%) 35,936.9Mb | D12: 5,717,918 (63.7%) 53,666.1Mb | E12: 3,056,966 (65.3%) 27,323.3Mb | F12: 6,645,105 (54.8%) 51,079.5Mb
B13: >Q7: | C13: 5,642,850 (44.7%) 29,520.7Mb | D13: 5,083,132 (56.6%) 49,929.4Mb | E13: 2,739,494 (58.5%) 25,530.5Mb | F13: 5,788,893 (47.8%) 46,858.8Mb
B14: >Q10: | C14: 1,131,951 (9.0%) 3,677.1Mb | D14: 1,009,882 (11.2%) 4,924.0Mb | E14: 982,621 (21.0%) 8,000.4Mb | F14: 1,077,817 (8.9%) 4,346.0Mb
B15: >Q12: | C15: 10,730 (0.1%) 14.2Mb | D15: 7,114 (0.1%) 15.0Mb | E15: 5,766 (0.1%) 8.4Mb | F15: 5,720 (0.0%) 5.7Mb
B16: >Q15: | C16: 0 (0.0%) 0.0Mb | D16: 0 (0.0%) 0.0Mb | E16: 0 (0.0%) 0.0Mb | F16: 0 (0.0%) 0.0Mb
B17: Top 5 highest mean basecall quality scores and their read lengths
B18: 1: | C18: 14.3 (836) | D18: 14.4 (397) | E18: 13.9 (417) | F18: 14.1 (243)
B19: 2: | C19: 13.8 (382) | D19: 14.3 (9485) | E19: 13.8 (967) | F19: 13.9 (304)
B20: 3: | C20: 13.8 (446) | D20: 14.1 (350) | E20: 13.5 (332) | F20: 13.8 (475)
B21: 4: | C21: 13.8 (1013) | D21: 13.9 (608) | E21: 13.4 (704) | F21: 13.8 (813)
B22: 5: | C22: 13.8 (404) | D22: 13.7 (395) | E22: 13.4 (326) | F22: 13.7 (585)
B23: Top 5 longest reads and their mean basecall quality score
B24: 1: | C24: 342,856 (7.8) | D24: 353,289 (9.5) | E24: 399398 (10.3) | F24: 428192 (8.6)
B25: 2: | C25: 284,225 (9.2) | D25: 336,986 (9.5) | E25: 351154 (9.5) | F25: 406161 (8.6)
B26: 3: | C26: 282,177 (9.8) | D26: 327,957 (8.9) | E26: 332438 (9.4) | F26: 405857 (8.9)
B27: 4: | C27: 255,830 (9.0) | D27: 301,207 (8.9) | E27: 305844 (10.5) | F27: 371366 (8.0)
B28: 5: | C28: 254,299 (8.9) | D28: 299,190 (9.2) | E28: 301345 (9.4) | F28: 368168 (8.2)
B30: Table S2: ONT read stats for four long-read assemblies.

Sheet Table S3
B2: Species | C2: Pinguicula agnata | E2: Pinguicula gigantea | G2: Pinguicula grandiflora | I2: Pinguicula moctezumae
B3: paired end read | C3: Forward | D3: Reverse | E3: Forward | F3: Reverse | G3: Forward | H3: Reverse | I3: Forward | J3: Reverse
B4: Encoding | C4: Illumina 1.9/Sanger | E4: Illumina 1.9/Sanger | G4: Illumina 1.9/Sanger | I4: Illumina 1.9/Sanger
B5: Total Sequences | C5: 38806442 | D5: 38806442 | E5: 34842842 | F5: 34842842 | G5: 40266500 | H5: 40266500 | I5: 37551390 | J5: 37551390
B6: Sequences flagged as poor quality | C6: 0 | D6: 0 | E6: 0 | F6: 0 | G6: 0 | H6: 0 | I6: 0 | J6: 0
B7: Sequence length | C7: 251 | D7: 251 | E7: 251 | F7: 251 | G7: 251 | H7: 251 | I7: 251 | J7: 251
B8: %GC | C8: 39 | D8: 39 | E8: 38 | F8: 38 | G8: 35 | H8: 35 | I8: 39 | J8: 39
B10: Table S3: Illumina paired-end read statistics for the four long-read assemblies.

Sheet Table S4
B2: Species | C2: Sample | D2: Nanodrop ng/ul | E2: 260/280 | F2: 260/230 | G2: QUBIT ng/ul
B3: P. gigantea | C3: Replicate 1 | D3: 461.8 | E3: 2.13 | F3: 1.76 | G3: 359
B4: P. gigantea | C4: Replicate 2 | D4: 563.2 | E4: 2.09 | F4: 1.59 | G4: 388
B5: P. gigantea | C5: Replicate 3 | D5: 1642.3 | E5: 2.2 | F5: 1.9 | G5: 376
B6: P. grandiflora | C6: Replicate 1 | D6: 498.4 | E6: 2.18 | F6: 1.83 | G6: 416
B7: P. grandiflora | C7: Replicate 2 | D7: 987.7 | E7: 2.13 | F7: 1.62 | G7: 389
B8: P. grandiflora | C8: Replicate 3 | D8: 990.3 | E8: 2.1 | F8: 1.39 | G8: 54
B10: Table S4: RNAseq Nanodrop and QUBIT statistics.

Sheet Table S5
C2: Pinguicula gigantea | F2: Pinguicula grandiflora
B3: Assembly | C3: Primary assembly | D3: Purged assembly | E3: Dovetail assembly | F3: Primary assembly | G3: Dovetail assembly
B4: # contigs | C4: 884 | D4: 405 | E4: 21 | F4: 1879 | G4: 1,517
B5: Largest contig | C5: 23,395,389 | D5: 23,395,389 | E5: 68,727,999 | F5: 4090467 | G5: 36,635,654
B6: Total length | C6: 706,652,479 | D6: 608,722,795 | E6: 608,762,877 | F6: 539260414 | G6: 570,726,228
B7: GC (%) | C7: 38.10 | D7: 38.07 | E7: 38.07 | F7: 36.92 | G7: 36.51
B8: N50 | C8: 2,212,735 | D8: 2,572,827 | E8: 55,942,523 | F8: 404361 | G8: 598,681
B9: L50 | C9: 71 | D9: 50 | E9: 5 | F9: 349 | G9: 102
B10: # N's per 100 kbp | C10: 0 | D10: 0 | E10: 6.59 | F10: 0 | G10: 6.47
B11: Complete BUSCOs | C11: 1573 (97.5%) | D11: 1563 (96.9%) | E11: 1561 (96.8%) | F11: 1535 (95.1%) | G11: 1509 (93.5%)
B12: Complete single-copy BUSCOs | C12: 1238 (76.7%) | D12: 1320 (81.8%) | E12: 1331 (82.5%) | F12: 797 (49.4%) | G12: 827 (51.2%)
B13: Complete duplicated BUSCOs | C13: 335 (20.8%) | D13: 243 (15.1%) | E13: 230 (14.3%) | F13: 738 (45.7%) | G13: 682 (42.3%)
B14: Fragmented BUSCOs | C14: 9 (0.6%) | D14: 11 (0.7%) | E14: 12 (0.7%) | F14: 17 (1.1%) | G14: 26 (1.6%)
B15: Missing BUSCOs | C15: 32 (1.9%) | D15: 40 (2.4%) | E15: 41 (2.5%) | F15: 62 (3.8%) | G15: 79 (4.9%)
B16: Total BUSCO groups searched | C16: 1614 | D16: 1614 | E16: 1614 | F16: 1614 | G16: 1614
B17: Annotation
B18: gene model/mRNA count | C18: 48,604/56,145 | D18: 42,364/49,347 | E18: 35,940/35,940 | F18: 43,079/51,601 | G18: 33,294/33,294
B19: Complete BUSCOs | C19: 1570 (97.3%) | D19: 1557 (96.5%) | E19: 1490 (92.3%) | F19: 1529 (94.7%) | G19: 1433 (88.8%)
B20: Complete single-copy BUSCOs | C20: 1247 (77.3%) | D20: 1328 (82.3%) | E20: 1312 (81.3%) | F20: 796 (49.3%) | G20: 888 (55.0%)
B21: Complete duplicated BUSCOs | C21: 323 (20%) | D21: 229 (14.2%) | E21: 178 (11.0%) | F21: 733 (45.4%) | G21: 545 (33.8%)
B22: Fragmented BUSCOs | C22: 8 (0.5%) | D22: 12 (0.7%) | E22: 51 (3.2%) | F22: 15 (0.9%) | G22: 52 (3.2%)
B23: Missing BUSCOs | C23: 36 (2.2%) | D23: 45 (2.8%) | E23: 73 (4.5%) | F23: 70 (4.3%) | G23: 129 (8.0%)
B24: Total BUSCO groups searched | C24: 1614 | D24: 1614 | E24: 1614 | F24: 1614 | G24: 1614
B26: Table S5: Assembly and annotation statistics before and after Hi-C scaffolding.

Sheet Table S6
C2: Pinguicula agnata | E2: Pinguicula moctezumae
B3: Assembly | C3: Primary assembly | D3: Purged assembly | E3: Primary assembly | F3: Purged assembly
B4: # contigs | C4: 2,105 | D4: 914 | E4: 1,354 | F4: 531
B5: Largest contig | C5: 4,961,421 | D5: 4,961,421 | E5: 11,510,108 | F5: 11,510,108
B6: Total length | C6: 1,040,088,832 | D6: 676,027,037 | E6: 807,087,207 | F6: 586,152,820
B7: GC (%) | C7: 37.95 | D7: 38.02 | E7: 38.47 | F7: 38.46
B8: N50 | C8: 803,219 | D8: 1,098,260 | E8: 1,059,073 | F8: 1,838,013
B9: L50 | C9: 366 | D9: 187 | E9: 165 | F9: 84
B10: # N's per 100 kbp | C10: 0 | D10: 0 | E10: 0 | F10: 0
B11: Complete BUSCOs | C11: 1556 (96.4%) | D11: 1507 (93.4%) | E11: 1566 (97.0%) | F11: 1506 (93.4%)
B12: Complete single-copy BUSCOs | C12: 849 (52.6%) | D12: 1278 (79.2%) | E12: 1011 (62.6%) | F12: 1255 (77.8%)
B13: Complete duplicated BUSCOs | C13: 707 (43.8%) | D13: 229 (14.2%) | E13: 555 (34.4%) | F13: 251 (15.6%)
B14: Fragmented BUSCOs | C14: 14 (0.9%) | D14: 27 (1.7%) | E14: 12 (0.7%) | F14: 26 (1.6%)
B15: Missing BUSCOs | C15: 44 (2.7%) | D15: 80 (4.9%) | E15: 36 (2.3%) | F15: 82 (5%)
B16: Total BUSCO groups searched | C16: 1614 | D16: 1614 | E16: 1614 | F16: 1614
B17: Annotation
B18: gene model/mRNA count | C18: 57,136/66,128 | D18: 37,141/43,900 | E18: 46,853/55,144 | F18: 33,919/40,555
B19: Complete BUSCOs | C19: 1549 (96%) | D19: 1486 (92.1%) | E19: 1564 (96.9%) | F19: 1481 (91.8%)
B20: Complete single-copy BUSCOs | C20: 874 (54.2%) | D20: 1280 (79.3%) | E20: 1070 (66.3%) | F20: 1250 (77.4%)
B21: Complete duplicated BUSCOs | C21: 675 (41.8%) | D21: 206 (12.8%) | E21: 494 (30.6%) | F21: 231 (14.3%)
B22: Fragmented BUSCOs | C22: 9 (0.6%) | D22: 27 (1.7%) | E22: 8 (0.5%) | F22: 29 (1.8%)
B23: Missing BUSCOs | C23: 56 (3.5%) | D23: 101 (6.3%) | E23: 42 (2.6%) | F23: 104 (6.4%)
B24: Total BUSCO groups searched | C24: 1614 | D24: 1614 | E24: 1614 | F24: 1614
B26: Table S6: Long-read assembly and annotation statistics.

Sheet Table S7
C2: Assembly | W2: Annotation
C3: RagTag | J3: QUAST | Q3: BUSCO | X3: BUSCO
B4: Species | C4: placed seqs | D4: placed bp | E4: unplaced seqs | F4: unplaced bp | G4: gap bp | H4: gap seqs | I4: placed bp % | J4: # contigs | K4: Largest contig | L4: Total length | M4: GC (%) | N4: N50 | O4: L50 | P4: # N's per 100 kbp | Q4: Complete | R4: Single-copy | S4: Duplicated | T4: Fragmented | U4: Missing | V4: Total | W4: gene/mRNA count | X4: Complete | Y4: Single-copy | Z4: Duplicated | AA4: Fragmented | AB4: Missing | AC4: Total
B5: Pinguicula agnata | C5: 855 | D5: 668,508,375 | E5: 61 | F5: 7,519,079 | G5: 4,902,592 | H5: 843 | I5: =D5/(D5+F5) -> 98.89% | J5: 71 | K5: 77,459,393 | L5: 680,929,629 | M5: 38.02 | N5: 60,447,833 | O5: 5 | P5: 719.99 | Q5: 1508 (93.5%) | R5: 1286 (79.7%) | S5: 222 (13.8%) | T5: 26 (1.6%) | U5: 80 (4.9%) | V5: 1614 | W5: 37155/43913 | X5: 1486 (92.1%) | Y5: 1280 (79.3%) | Z5: 206 (12.8%) | AA5: 27 (1.7%) | AB5: 101 (6.3%) | AC5: 1614
B6: Pinguicula moctezumae | C6: 504 | D6: 577,425,218 | E6: 27 | F6: 8,727,602 | G6: 2,971,836 | H6: 492 | I6: 98.51% | J6: 39 | K6: 63,703,948 | L6: 589,124,656 | M6: 38.46 | N6: 53,852,089 | O6: 5 | P6: 504.45 | Q6: 1505 (93.3%) | R6: 1273 (78.9%) | S6: 232 (14.4%) | T6: 27 (1.7%) | U6: 82 (5.0%) | V6: 1614 | W6: 33929/40572 | X6: 1481 (91.8%) | Y6: 1250 (77.4%) | Z6: 231 (14.3%) | AA6: 29 (1.8%) | AB6: 104 (6.4%) | AC6: 1614
B8: Table S7: RagTag assembly and annotation statistics.

Sheet Table S8
B2: Assembly | C2: Pinguicula agnata ONT | F2: Pinguicula gigantea HiC | I2: Pinguicula grandiflora HiC | L2: Pinguicula moctezumae ONT
B3: sequences: | C3: 73 | F3: 21 | I3: 1,879 | L3: 39
B4: total length: | C4: 680,930,046 | F4: 608,762,877 | I4: 539,260,414 | L4: 589,124,656
B5: total length (excl N/X-runs): | C5: 676,027,454 | F5: 608,722,777 | I5: 539,260,414 | L5: 586,152,820
B6: GC level: | C6: 38.02% | F6: 38.07% | I6: 36.92% | L6: 38.46%
B7: bases masked: | C7: 464,483,268 bp (68.21%) | F7: 410686548 bp (67.46%) | I7: 380060767 bp (70.48%) | L7: 397392049 bp (67.45%)
C8: # of elements* | D8: length occupied (bp) | E8: % of sequence | F8: # of elements* | G8: length occupied (bp) | H8: % of sequence | I8: # of elements* | J8: length occupied (bp) | K8: % of sequence | L8: # of elements* | M8: length occupied (bp) | N8: % of sequence
B9: Retroelements | C9: 453,490 | D9: 354,353,742 | E9: 52.04% | F9: 303,806 | G9: 283,772,775 | H9: 46.61% | I9: 72,295 | J9: 127,110,141 | K9: 23.57% | L9: 366,218 | M9: 296,850,358 | N9: 50.39%
B10: SINEs: | C10: 844 | D10: 571,571 | E10: 0.08% | F10: 1,167 | G10: 364,891 | H10: 0.06% | I10: 927 | J10: 1,242,315 | K10: 0.23% | L10: 594 | M10: 932,229 | N10: 0.16%
B11: Penelope | C11: 0 | D11: 0 | E11: 0.00% | F11: 93 | G11: 18,690 | H11: 0.00% | I11: 91 | J11: 123,967 | K11: 0.02% | L11: 590 | M11: 81,419 | N11: 0.01%
B12: LINEs: | C12: 78,595 | D12: 48,575,447 | E12: 7.13% | F12: 71,827 | G12: 47,847,623 | H12: 7.86% | I12: 21,358 | J12: 26,063,407 | K12: 4.83% | L12: 67,308 | M12: 44,641,072 | N12: 7.58%
B13: CRE/SLACS | C13: 0 | D13: 0 | E13: 0.00% | F13: 0 | G13: 0 | H13: 0.00% | I13: 0 | J13: 0 | K13: 0.00% | L13: 0 | M13: 0 | N13: 0.00%
B14: L2/CR1/Rex | C14: 0 | D14: 0 | E14: 0.00% | F14: 0 | G14: 0 | H14: 0.00% | I14: 656 | J14: 128,885 | K14: 0.02% | L14: 0 | M14: 0 | N14: 0.00%
B15: R1/LOA/Jockey | C15: 0 | D15: 0 | E15: 0.00% | F15: 0 | G15: 0 | H15: 0.00% | I15: 79 | J15: 251,251 | K15: 0.05% | L15: 0 | M15: 0 | N15: 0.00%
B16: R2/R4/NeSL | C16: 0 | D16: 0 | E16: 0.00% | F16: 0 | G16: 0 | H16: 0.00% | I16: 0 | J16: 0 | K16: 0.00% | L16: 0 | M16: 0 | N16: 0.00%
B17: RTE/Bov-B | C17: 2,857 | D17: 2,779,662 | E17: 0.41% | F17: 3,742 | G17: 4,521,694 | H17: 0.74% | I17: 0 | J17: 0 | K17: 0.00% | L17: 1,977 | M17: 2,680,922 | N17: 0.46%
B18: L1/CIN4 | C18: 75,437 | D18: 45,729,447 | E18: 6.72% | F18: 68,085 | G18: 43,325,929 | H18: 7.12% | I18: 20,584 | J18: 25,675,977 | K18: 4.76% | L18: 62,682 | M18: 40,106,252 | N18: 6.81%
B19: LTR elements: | C19: 374,051 | D19: 305,206,724 | E19: 44.82% | F19: 230,812 | G19: 235,560,261 | H19: 38.69% | I19: 50,010 | J19: 99,804,419 | K19: 18.51% | L19: 298,316 | M19: 251,277,057 | N19: 42.65%
B20: BEL/Pao | C20: 26 | D20: 10,932 | E20: 0.00% | F20: 0 | G20: 0 | H20: 0.00% | I20: 0 | J20: 0 | K20: 0.00% | L20: 0 | M20: 0 | N20: 0.00%
B21: Ty1/Copia | C21: 228,131 | D21: 231,927,611 | E21: 34.06% | F21: 157,563 | G21: 185,328,201 | H21: 30.44% | I21: 13,648 | J21: 12,202,332 | K21: 2.26% | L21: 162,856 | M21: 177,286,007 | N21: 30.09%
B22: Gypsy/DIRS1 | C22: 42,657 | D22: 45,447,190 | E22: 6.67% | F22: 32,748 | G22: 38,631,793 | H22: 6.35% | I22: 29,242 | J22: 82,535,425 | K22: 15.31% | L22: 49,058 | M22: 49,091,142 | N22: 8.33%
B23: Retroviral | C23: 594 | D23: 296,215 | E23: 0.04% | F23: 155 | G23: 27,876 | H23: 0.00% | I23: 1,130 | J23: 383,611 | K23: 0.07% | L23: 163 | M23: 103,668 | N23: 0.02%
B24: DNA transposons | C24: 31,527 | D24: 21,113,108 | E24: 3.10% | F24: 42,207 | G24: 27,244,039 | H24: 4.48% | I24: 10,888 | J24: 4,805,971 | K24: 0.89% | L24: 34,318 | M24: 24,502,210 | N24: 4.16%
B25: hobo-Activator | C25: 19,740 | D25: 13,634,713 | E25: 2.00% | F25: 24,193 | G25: 16,700,861 | H25: 2.74% | I25: 3,963 | J25: 1,369,726 | K25: 0.25% | L25: 15,888 | M25: 13,459,590 | N25: 2.28%
B26: Tc1-IS630-Pogo | C26: 0 | D26: 0 | E26: 0.00% | F26: 1,032 | G26: 373,752 | H26: 0.06% | I26: 862 | J26: 356,517 | K26: 0.07% | L26: 3,065 | M26: 662,917 | N26: 0.11%
B27: En-Spm | C27: 0 | D27: 0 | E27: 0.00% | F27: 0 | G27: 0 | H27: 0.00% | I27: 0 | J27: 0 | K27: 0.00% | L27: 0 | M27: 0 | N27: 0.00%
B28: MuDR-IS905 | C28: 3,389 | D28: 2,704,161 | E28: 0.40% | F28: 3,666 | G28: 2,592,422 | H28: 0.43% | I28: 2,145 | J28: 1,408,739 | K28: 0.26% | L28: 5,361 | M28: 3,791,839 | N28: 0.64%
B29: PiggyBac | C29: 0 | D29: 0 | E29: 0.00% | F29: 0 | G29: 0 | H29: 0.00% | I29: 0 | J29: 0 | K29: 0.00% | L29: 0 | M29: 0 | N29: 0.00%
B30: Tourist/Harbinger | C30: 7,122 | D30: 4,357,849 | E30: 0.64% | F30: 10,060 | G30: 6,602,998 | H30: 1.08% | I30: 2,255 | J30: 979,516 | K30: 0.18% | L30: 10,004 | M30: 6,587,864 | N30: 1.12%
B31: Other** | C31: 0 | D31: 0 | E31: 0.00% | F31: 0 | G31: 0 | H31: 0.00% | I31: 0 | J31: 0 | K31: 0.00% | L31: 0 | M31: 0 | N31: 0.00%
B32: Rolling-circles | C32: 2,023 | D32: 1,595,501 | E32: 0.23% | F32: 2,730 | G32: 1,129,818 | H32: 0.19% | I32: 0 | J32: 0 | K32: 0.00% | L32: 2,926 | M32: 1,977,495 | N32: 0.34%
B33: Unclassified: | C33: 352,034 | D33: 82,475,660 | E33: 12.11% | F33: 417,655 | G33: 94,544,835 | H33: 15.53% | I33: 202,183 | J33: 232,384,579 | K33: 43.09% | L33: 294,723 | M33: 68,675,877 | N33: 11.66%
B34: Total interspersed repeats: | D34: 457,942,510 | E34: 67.25% | G34: 405,580,339 | H34: 66.62% | J34: 364,424,658 | K34: 67.58% | M34: 390,109,864 | N34: 66.22%
B35: Small RNA: | C35: 4,723 | D35: 1,783,742 | E35: 0.26% | F35: 4,810 | G35: 973,810 | H35: 0.16% | I35: 6,825 | J35: 14,560,873 | K35: 2.70% | L35: 4,455 | M35: 2,731,257 | N35: 0.46%
B36: Satellites: | C36: 21 | D36: 4,389 | E36: 0.00% | F36: 0 | G36: 0 | H36: 0.00% | I36: 0 | J36: 0 | K36: 0.00% | L36: 0 | M36: 0 | N36: 0.00%
B37: Simple repeats: | C37: 65,854 | D37: 2,769,788 | E37: 0.41% | F37: 58,858 | G37: 2,469,014 | H37: 0.41% | I37: 36,684 | J37: 1,672,723 | K37: 0.31% | L37: 54,838 | M37: 2,234,564 | N37: 0.38%
B38: Low complexity: | C38: 11,536 | D38: 580,330 | E38: 0.09% | F38: 11,016 | G38: 564,885 | H38: 0.09% | I38: 7,443 | J38: 364,431 | K38: 0.07% | L38: 9,992 | M38: 510,175 | N38: 0.09%
B39: *most repeats fragmented by insertions or deletions have been counted as one element
B40: **Mirage, P-element, Transib
B42: Table S8: Repetitive element statistics for Pinguicula gigantea and Pinguicula assemblies scaffolded using RagTag.
A101: \

Sheet Table S9
B2: Enzyme | C2: Cysteine protease | D2: Aspartic protease | E2: Peroxidase 10-like | F2: Peroxidase | G2: Esterase/lipase
B3: Search query | C3: BAW35427.1 | D3: BAD07475.1, GAV80475.1 | E3: KZV23101.1 | F3: BAM28609.1 | G3: XP_004232991.1
B4: Tandems | C4: Pgig_chr8.218 | D4: Pgig_chr3.179 | E4: Pgig_chr1.580 | F4: Pgig_chr1.580 | G4: Pgig_chr4.1219
C5: Pgig_chr8.219 | D5: Pgig_chr3.180 | E5: Pgig_chr1.581 | F5: Pgig_chr1.581 | G5: Pgig_chr4.1220
C6: Pgig_chr8.220 | D6: Pgig_chr3.210 | E6: Pgig_chr1.583 | F6: Pgig_chr1.583 | G6: Pgig_chr4.1221
C7: Pgig_chr8.221 | D7: Pgig_chr3.211 | E7: Pgig_chr1.584 | F7: Pgig_chr1.584 | G7: Pgig_chr4.1226
C8: Pgig_chr8.223 | D8: Pgig_chr4.193 | E8: Pgig_chr1.586 | F8: Pgig_chr1.586 | G8: Pgig_chr5.3752
C9: Pgig_chr8.224 | D9: Pgig_chr4.195 | E9: Pgig_chr3.423 | F9: Pgig_chr3.423 | G9: Pgig_chr5.3755
C10: Pgig_chr8.225 | D10: Pgig_chr4.196 | E10: Pgig_chr3.424 | F10: Pgig_chr3.424 | G10: Pgig_chr5.3756
C11: Pgig_chr8.226 | D11: Pgig_chr6.1116 | E11: Pgig_chr3.425 | F11: Pgig_chr3.425 | G11: Pgig_chr8.485
C12: Pgig_chr8.227 | D12: Pgig_chr6.1120 | E12: Pgig_chr3.429 | F12: Pgig_chr3.429 | G12: Pgig_chr8.491
C13: Pgig_chr8.228 | D13: Pgig_chr6.1124 | E13: Pgig_chr3.430 | F13: Pgig_chr3.430 | G13: Pgig_chr8.493
C14: Pgig_chr8.229 | D14: Pgig_chr10.1640 | E14: Pgig_chr3.431 | F14: Pgig_chr3.431 | G14: Pgig_chr8.503
C15: Pgig_chr8.231 | D15: Pgig_chr10.1643 | E15: Pgig_chr3.432 | F15: Pgig_chr3.432 | G15: Pgig_chr8.523
C16: Pgig_chr8.234 | D16: Pgig_chr10.1650 | E16: Pgig_chr8.340 | F16: Pgig_chr8.340 | G16: Pgig_chr8.524
C17: Pgig_chr8.235 | E17: Pgig_chr8.341 | F17: Pgig_chr8.341 | G17: Pgig_chr10.1521
C18: Pgig_chr8.237 | E18: Pgig_chr8.342 | F18: Pgig_chr8.342 | G18: Pgig_chr10.1522
C19: Pgig_chr8.238 | E19: Pgig_chr8.351 | F19: Pgig_chr8.351 | G19: Pgig_chr10.1525
C20: Pgig_chr8.241 | E20: Pgig_chr8.352 | F20: Pgig_chr8.352 | G20: Pgig_chr10.1526
C21: Pgig_chr8.242 | E21: Pgig_chr8.354 | F21: Pgig_chr8.354 | G21: Pgig_chr11.1760
E22: Pgig_chr8.355 | F22: Pgig_chr8.355 | G22: Pgig_chr11.1761
E23: Pgig_chr8.356 | F23: Pgig_chr8.356 | G23: Pgig_chr11.1763
E24: Pgig_chr8.357 | F24: Pgig_chr8.357 | G24: Pgig_chr11.3973
E25: Pgig_chr10.591 | F25: Pgig_chr10.591 | G25: Pgig_chr11.3974
E26: Pgig_chr10.592 | F26: Pgig_chr10.592 | G26: Pgig_chr11.3977
E27: Pgig_chr10.593 | F27: Pgig_chr10.593 | G27: Pgig_chr11.3978
E28: Pgig_chr10.617 | F28: Pgig_chr10.617 | G28: Pgig_chr11.3979
E29: Pgig_chr10.618 | F29: Pgig_chr10.618 | G29: Pgig_chr11.3980
E30: Pgig_chr10.619 | F30: Pgig_chr10.619 | G30: Pgig_chr11.3982
G31: Pgig_chr11.3983
B33: Table S9: Tandem duplications of three or more putitive digestive enzymes in Pinguicula gigantea.

Sheet Table S10
B2: species | C2: ascession | D2: Family | F2: Domain | N2: Homologous Superfamily | T2: Active Site | W2: Conserved Site | X2: Source
D3: IPR013128 | E3: IPR005688 | F3: IPR013201 | G3: IPR000668 | H3: IPR039417 | I3: IPR000010 | J3: IPR006703 | K3: IPR000626 | L3: IPR002906 | M3: IPR019956 | N3: IPR038765 | O3: IPR046350 | P3: IPR027417 | Q3: IPR038582 | R3: IPR011332 | S3: IPR029071 | T3: IPR025660 | U3: IPR025661 | V3: IPR000169 | W3: IPR019954
B4: Arabidopsis thaliana | C4: AT5G45890.1 | D4: ✓ | E4: ✕ | F4: ✓ | G4: ✓ | H4: ✓ | I4: ✕ | J4: ✕ | K4: ✕ | L4: ✕ | M4: ✕ | N4: ✓ | O4: ✕ | P4: ✕ | Q4: ✕ | R4: ✕ | S4: ✕ | T4: ✓ | U4: ✓ | V4: ✓ | W4: ✕ | X4: TAIR: The Arabidopsis Information Resource (TAIR). 2019 05/01/2022]; Available from: https://www.arabidopsis.org/download/index-auto.jsp%3Fdir%3D%252Fdownload_files%252FGenes%252FTAIR10_genome_release on www.arabidopsis.org, 05/01/2022
B5: Drosera adelae | C5: BAW35427.1 | D5: ✓ | E5: ✕ | F5: ✓ | G5: ✓ | H5: ✓ | I5: ✕ | J5: ✕ | K5: ✕ | L5: ✕ | M5: ✕ | N5: ✓ | O5: ✕ | P5: ✕ | Q5: ✕ | R5: ✕ | S5: ✕ | T5: ✕ | U5: ✓ | V5: ✓ | W5: ✕ | X5: Fukushima, K., Fang, X., Alvarez-Ponce, D., Cai, H., Carretero-Paulet, L., Chen, C., Chang, T.H., Farr, K.M., Fujita, T., Hiwatashi, Y. and Hoshi, Y., 2017. Genome of the pitcher plant Cephalotus reveals genetic changes associated with carnivory. Nature Ecology & Evolution, 1(3), p.0059.
B6: Pinguicula gigantea | C6: Pgig_chr5.3731 | D6: ✓ | E6: ✕ | F6: ✓ | G6: ✓ | H6: ✓ | I6: ✕ | J6: ✕ | K6: ✕ | L6: ✕ | M6: ✕ | N6: ✓ | O6: ✕ | P6: ✕ | Q6: ✕ | R6: ✕ | S6: ✕ | T6: ✓ | U6: ✓ | V6: ✕ | W6: ✕ | X6: This study
B7: Pinguicula gigantea | C7: Pgig_chr8.231 | D7: ✓ | E7: ✕ | F7: ✓ | G7: ✓ | H7: ✓ | I7: ✕ | J7: ✕ | K7: ✕ | L7: ✕ | M7: ✕ | N7: ✓ | O7: ✕ | P7: ✕ | Q7: ✕ | R7: ✕ | S7: ✕ | T7: ✓ | U7: ✓ | V7: ✕ | W7: ✕ | X7: This study
B8: Pinguicula gigantea | C8: Pgig_chr8.234 | D8: ✓ | E8: ✕ | F8: ✓ | G8: ✓ | H8: ✓ | I8: ✕ | J8: ✕ | K8: ✕ | L8: ✕ | M8: ✕ | N8: ✓ | O8: ✕ | P8: ✕ | Q8: ✕ | R8: ✕ | S8: ✕ | T8: ✓ | U8: ✓ | V8: ✕ | W8: ✕ | X8: This study
B9: Pinguicula gigantea | C9: Pgig_chr8.237 | D9: ✓ | E9: ✕ | F9: ✓ | G9: ✓ | H9: ✓ | I9: ✕ | J9: ✕ | K9: ✕ | L9: ✕ | M9: ✕ | N9: ✓ | O9: ✕ | P9: ✕ | Q9: ✕ | R9: ✕ | S9: ✕ | T9: ✓ | U9: ✓ | V9: ✕ | W9: ✕ | X9: This study
B10: Pinguicula gigantea | C10: Pgig_chr8.241 | D10: ✓ | E10: ✕ | F10: ✓ | G10: ✓ | H10: ✓ | I10: ✕ | J10: ✕ | K10: ✕ | L10: ✕ | M10: ✕ | N10: ✓ | O10: ✕ | P10: ✕ | Q10: ✕ | R10: ✕ | S10: ✕ | T10: ✓ | U10: ✓ | V10: ✕ | W10: ✕ | X10: This study
B11: Pinguicula gigantea | C11: Pgig_chr8.220 | D11: ✓ | E11: ✕ | F11: ✓ | G11: ✓ | H11: ✓ | I11: ✕ | J11: ✕ | K11: ✕ | L11: ✕ | M11: ✕ | N11: ✓ | O11: ✕ | P11: ✕ | Q11: ✕ | R11: ✕ | S11: ✕ | T11: ✓ | U11: ✕ | V11: ✓ | W11: ✕ | X11: This study
B12: Pinguicula gigantea | C12: Pgig_chr8.242 | D12: ✓ | E12: ✕ | F12: ✓ | G12: ✓ | H12: ✓ | I12: ✕ | J12: ✕ | K12: ✕ | L12: ✕ | M12: ✕ | N12: ✓ | O12: ✕ | P12: ✕ | Q12: ✕ | R12: ✕ | S12: ✕ | T12: ✓ | U12: ✕ | V12: ✕ | W12: ✕ | X12: This study
B13: Pinguicula gigantea | C13: Pgig_chr8.228 | D13: ✓ | E13: ✕ | F13: ✓ | G13: ✓ | H13: ✓ | I13: ✓ | J13: ✕ | K13: ✕ | L13: ✕ | M13: ✕ | N13: ✓ | O13: ✓ | P13: ✕ | Q13: ✕ | R13: ✕ | S13: ✕ | T13: ✕ | U13: ✕ | V13: ✓ | W13: ✕ | X13: This study
B14: Pinguicula gigantea | C14: Pgig_chr8.224 | D14: ✓ | E14: ✕ | F14: ✓ | G14: ✕ | H14: ✕ | I14: ✕ | J14: ✕ | K14: ✕ | L14: ✕ | M14: ✕ | N14: ✓ | O14: ✕ | P14: ✕ | Q14: ✕ | R14: ✕ | S14: ✕ | T14: ✕ | U14: ✕ | V14: ✕ | W14: ✕ | X14: This study
B15: Pinguicula gigantea | C15: Pgig_chr8.227 | D15: ✓ | E15: ✕ | F15: ✕ | G15: ✓ | H15: ✓ | I15: ✓ | J15: ✕ | K15: ✕ | L15: ✕ | M15: ✕ | N15: ✓ | O15: ✓ | P15: ✕ | Q15: ✕ | R15: ✕ | S15: ✕ | T15: ✕ | U15: ✕ | V15: ✓ | W15: ✕ | X15: This study
B16: Pinguicula gigantea | C16: Pgig_chr8.223 | D16: ✓ | E16: ✕ | F16: ✕ | G16: ✓ | H16: ✕ | I16: ✓ | J16: ✕ | K16: ✕ | L16: ✕ | M16: ✕ | N16: ✓ | O16: ✓ | P16: ✕ | Q16: ✕ | R16: ✕ | S16: ✕ | T16: ✓ | U16: ✓ | V16: ✕ | W16: ✕ | X16: This study
B17: Pinguicula gigantea | C17: Pgig_chr8.226 | D17: ✓ | E17: ✕ | F17: ✕ | G17: ✓ | H17: ✕ | I17: ✕ | J17: ✕ | K17: ✕ | L17: ✕ | M17: ✕ | N17: ✓ | O17: ✕ | P17: ✕ | Q17: ✕ | R17: ✕ | S17: ✕ | T17: ✓ | U17: ✓ | V17: ✕ | W17: ✕ | X17: This study
B18: Pinguicula gigantea | C18: Pgig_chr5.3730 | D18: ✕ | E18: ✕ | F18: ✓ | G18: ✓ | H18: ✕ | I18: ✕ | J18: ✕ | K18: ✕ | L18: ✕ | M18: ✕ | N18: ✓ | O18: ✕ | P18: ✕ | Q18: ✕ | R18: ✕ | S18: ✕ | T18: ✕ | U18: ✕ | V18: ✕ | W18: ✕ | X18: This study
B19: Pinguicula gigantea | C19: Pgig_chr8.221 | D19: ✕ | E19: ✕ | F19: ✓ | G19: ✕ | H19: ✕ | I19: ✕ | J19: ✕ | K19: ✕ | L19: ✕ | M19: ✕ | N19: ✓ | O19: ✕ | P19: ✕ | Q19: ✕ | R19: ✕ | S19: ✕ | T19: ✕ | U19: ✕ | V19: ✕ | W19: ✕ | X19: This study
B20: Pinguicula gigantea | C20: Pgig_chr8.229 | D20: ✕ | E20: ✕ | F20: ✓ | G20: ✕ | H20: ✕ | I20: ✕ | J20: ✕ | K20: ✕ | L20: ✕ | M20: ✕ | N20: ✓ | O20: ✕ | P20: ✕ | Q20: ✕ | R20: ✕ | S20: ✕ | T20: ✕ | U20: ✕ | V20: ✕ | W20: ✕ | X20: This study
B21: Pinguicula gigantea | C21: Pgig_chr8.235 | D21: ✕ | E21: ✕ | F21: ✓ | G21: ✕ | H21: ✕ | I21: ✕ | J21: ✕ | K21: ✕ | L21: ✕ | M21: ✕ | N21: ✓ | O21: ✕ | P21: ✕ | Q21: ✕ | R21: ✕ | S21: ✕ | T21: ✕ | U21: ✕ | V21: ✕ | W21: ✕ | X21: This study
B22: Pinguicula gigantea | C22: Pgig_chr8.238 | D22: ✕ | E22: ✕ | F22: ✓ | G22: ✕ | H22: ✕ | I22: ✕ | J22: ✕ | K22: ✕ | L22: ✕ | M22: ✕ | N22: ✓ | O22: ✕ | P22: ✕ | Q22: ✕ | R22: ✕ | S22: ✕ | T22: ✕ | U22: ✕ | V22: ✕ | W22: ✕ | X22: This study
B23: Pinguicula gigantea | C23: Pgig_chr8.218 | D23: ✕ | E23: ✕ | F23: ✕ | G23: ✕ | H23: ✕ | I23: ✕ | J23: ✕ | K23: ✕ | L23: ✕ | M23: ✕ | N23: ✕ | O23: ✕ | P23: ✕ | Q23: ✕ | R23: ✕ | S23: ✕ | T23: ✕ | U23: ✕ | V23: ✕ | W23: ✕ | X23: This study
B24: Pinguicula gigantea | C24: Pgig_chr8.219 | D24: ✕ | E24: ✕ | F24: ✕ | G24: ✕ | H24: ✕ | I24: ✕ | J24: ✕ | K24: ✕ | L24: ✕ | M24: ✕ | N24: ✕ | O24: ✕ | P24: ✕ | Q24: ✕ | R24: ✕ | S24: ✕ | T24: ✕ | U24: ✕ | V24: ✕ | W24: ✕ | X24: This study
B25: Pinguicula gigantea | C25: Pgig_chr8.225 | D25: ✕ | E25: ✕ | F25: ✕ | G25: ✕ | H25: ✕ | I25: ✓ | J25: ✕ | K25: ✕ | L25: ✕ | M25: ✕ | N25: ✕ | O25: ✓ | P25: ✕ | Q25: ✕ | R25: ✕ | S25: ✕ | T25: ✕ | U25: ✕ | V25: ✕ | W25: ✕ | X25: This study
B26: Utricularia gibba | C26: Ugib.unitig_578.g16406.t1 | D26: ✓ | E26: ✕ | F26: ✓ | G26: ✓ | H26: ✓ | I26: ✕ | J26: ✕ | K26: ✕ | L26: ✕ | M26: ✕ | N26: ✓ | O26: ✕ | P26: ✕ | Q26: ✕ | R26: ✕ | S26: ✕ | T26: ✓ | U26: ✓ | V26: ✓ | W26: ✕ | X26: Lan, T., Renner, T., Ibarra-Laclette, E., Farr, K.M., Chang, T.H., Cervantes-Pérez, S.A., Zheng, C., Sankoff, D., Tang, H., Purbojati, R.W. and Putra, A., 2017. Long-read sequencing uncovers the adaptive topography of a carnivorous plant genome. Proceedings of the National Academy of Sciences, 114(22), pp.E4435-E4441.
B27: Utricularia gibba | C27: Ugib.unitig_578.g16411.t1 | D27: ✓ | E27: ✕ | F27: ✓ | G27: ✓ | H27: ✓ | I27: ✕ | J27: ✕ | K27: ✕ | L27: ✕ | M27: ✕ | N27: ✓ | O27: ✕ | P27: ✕ | Q27: ✕ | R27: ✕ | S27: ✕ | T27: ✓ | U27: ✓ | V27: ✓ | W27: ✕ | X27: Lan, T., Renner, T., Ibarra-Laclette, E., Farr, K.M., Chang, T.H., Cervantes-Pérez, S.A., Zheng, C., Sankoff, D., Tang, H., Purbojati, R.W. and Putra, A., 2017. Long-read sequencing uncovers the adaptive topography of a carnivorous plant genome. Proceedings of the National Academy of Sciences, 114(22), pp.E4435-E4441.
B28: Utricularia gibba | C28: Ugib.unitig_578.g16446.t1 | D28: ✓ | E28: ✕ | F28: ✓ | G28: ✓ | H28: ✓ | I28: ✕ | J28: ✕ | K28: ✕ | L28: ✕ | M28: ✕ | N28: ✓ | O28: ✕ | P28: ✕ | Q28: ✕ | R28: ✕ | S28: ✕ | T28: ✓ | U28: ✓ | V28: ✓ | W28: ✕ | X28: Lan, T., Renner, T., Ibarra-Laclette, E., Farr, K.M., Chang, T.H., Cervantes-Pérez, S.A., Zheng, C., Sankoff, D., Tang, H., Purbojati, R.W. and Putra, A., 2017. Long-read sequencing uncovers the adaptive topography of a carnivorous plant genome. Proceedings of the National Academy of Sciences, 114(22), pp.E4435-E4441.
B29: Utricularia gibba | C29: Ugib.unitig_578.g16450.t1 | D29: ✓ | E29: ✕ | F29: ✓ | G29: ✓ | H29: ✓ | I29: ✕ | J29: ✕ | K29: ✕ | L29: ✕ | M29: ✕ | N29: ✓ | O29: ✕ | P29: ✕ | Q29: ✕ | R29: ✕ | S29: ✕ | T29: ✓ | U29: ✓ | V29: ✓ | W29: ✕ | X29: Lan, T., Renner, T., Ibarra-Laclette, E., Farr, K.M., Chang, T.H., Cervantes-Pérez, S.A., Zheng, C., Sankoff, D., Tang, H., Purbojati, R.W. and Putra, A., 2017. Long-read sequencing uncovers the adaptive topography of a carnivorous plant genome. Proceedings of the National Academy of Sciences, 114(22), pp.E4435-E4441.
B30: Utricularia gibba | C30: Ugib.unitig_699.g19346.t1 | D30: ✓ | E30: ✕ | F30: ✓ | G30: ✓ | H30: ✓ | I30: ✕ | J30: ✕ | K30: ✕ | L30: ✕ | M30: ✕ | N30: ✓ | O30: ✕ | P30: ✕ | Q30: ✕ | R30: ✕ | S30: ✕ | T30: ✓ | U30: ✓ | V30: ✓ | W30: ✕ | X30: Lan, T., Renner, T., Ibarra-Laclette, E., Farr, K.M., Chang, T.H., Cervantes-Pérez, S.A., Zheng, C., Sankoff, D., Tang, H., Purbojati, R.W. and Putra, A., 2017. Long-read sequencing uncovers the adaptive topography of a carnivorous plant genome. Proceedings of the National Academy of Sciences, 114(22), pp.E4435-E4441.
B31: Utricularia gibba | C31: Ugib.unitig_699.g19351.t1 | D31: ✓ | E31: ✕ | F31: ✓ | G31: ✓ | H31: ✓ | I31: ✕ | J31: ✕ | K31: ✕ | L31: ✕ | M31: ✕ | N31: ✓ | O31: ✕ | P31: ✕ | Q31: ✕ | R31: ✕ | S31: ✕ | T31: ✓ | U31: ✓ | V31: ✓ | W31: ✕ | X31: Lan, T., Renner, T., Ibarra-Laclette, E., Farr, K.M., Chang, T.H., Cervantes-Pérez, S.A., Zheng, C., Sankoff, D., Tang, H., Purbojati, R.W. and Putra, A., 2017. Long-read sequencing uncovers the adaptive topography of a carnivorous plant genome. Proceedings of the National Academy of Sciences, 114(22), pp.E4435-E4441.
B32: Utricularia gibba | C32: Ugib.unitig_699.g19352.t1 | D32: ✓ | E32: ✕ | F32: ✓ | G32: ✓ | H32: ✓ | I32: ✕ | J32: ✕ | K32: ✕ | L32: ✕ | M32: ✕ | N32: ✓ | O32: ✕ | P32: ✕ | Q32: ✕ | R32: ✕ | S32: ✕ | T32: ✓ | U32: ✓ | V32: ✓ | W32: ✕ | X32: Lan, T., Renner, T., Ibarra-Laclette, E., Farr, K.M., Chang, T.H., Cervantes-Pérez, S.A., Zheng, C., Sankoff, D., Tang, H., Purbojati, R.W. and Putra, A., 2017. Long-read sequencing uncovers the adaptive topography of a carnivorous plant genome. Proceedings of the National Academy of Sciences, 114(22), pp.E4435-E4441.
B33: Utricularia gibba | C33: Ugib.unitig_699.g19355.t1 | D33: ✓ | E33: ✕ | F33: ✓ | G33: ✓ | H33: ✓ | I33: ✕ | J33: ✕ | K33: ✕ | L33: ✕ | M33: ✕ | N33: ✓ | O33: ✕ | P33: ✕ | Q33: ✕ | R33: ✕ | S33: ✕ | T33: ✓ | U33: ✓ | V33: ✓ | W33: ✕ | X33: Lan, T., Renner, T., Ibarra-Laclette, E., Farr, K.M., Chang, T.H., Cervantes-Pérez, S.A., Zheng, C., Sankoff, D., Tang, H., Purbojati, R.W. and Putra, A., 2017. Long-read sequencing uncovers the adaptive topography of a carnivorous plant genome. Proceedings of the National Academy of Sciences, 114(22), pp.E4435-E4441.
B34: Utricularia gibba | C34: Ugib.unitig_699.g19358.t1 | D34: ✓ | E34: ✕ | F34: ✓ | G34: ✓ | H34: ✓ | I34: ✕ | J34: ✕ | K34: ✕ | L34: ✕ | M34: ✕ | N34: ✓ | O34: ✕ | P34: ✕ | Q34: ✕ | R34: ✕ | S34: ✕ | T34: ✓ | U34: ✓ | V34: ✓ | W34: ✕ | X34: Lan, T., Renner, T., Ibarra-Laclette, E., Farr, K.M., Chang, T.H., Cervantes-Pérez, S.A., Zheng, C., Sankoff, D., Tang, H., Purbojati, R.W. and Putra, A., 2017. Long-read sequencing uncovers the adaptive topography of a carnivorous plant genome. Proceedings of the National Academy of Sciences, 114(22), pp.E4435-E4441.
B35: Utricularia gibba | C35: Ugib.unitig_699.g19359.t1 | D35: ✓ | E35: ✕ | F35: ✓ | G35: ✓ | H35: ✓ | I35: ✕ | J35: ✕ | K35: ✕ | L35: ✕ | M35: ✕ | N35: ✓ | O35: ✕ | P35: ✕ | Q35: ✕ | R35: ✕ | S35: ✕ | T35: ✓ | U35: ✓ | V35: ✓ | W35: ✕ | X35: Lan, T., Renner, T., Ibarra-Laclette, E., Farr, K.M., Chang, T.H., Cervantes-Pérez, S.A., Zheng, C., Sankoff, D., Tang, H., Purbojati, R.W. and Putra, A., 2017. Long-read sequencing uncovers the adaptive topography of a carnivorous plant genome. Proceedings of the National Academy of Sciences, 114(22), pp.E4435-E4441.
B36: Utricularia gibba | C36: Ugib.unitig_8.g4663.t1 | D36: ✓ | E36: ✕ | F36: ✓ | G36: ✓ | H36: ✓ | I36: ✕ | J36: ✕ | K36: ✕ | L36: ✕ | M36: ✕ | N36: ✓ | O36: ✕ | P36: ✕ | Q36: ✕ | R36: ✕ | S36: ✕ | T36: ✓ | U36: ✓ | V36: ✓ | W36: ✕ | X36: Lan, T., Renner, T., Ibarra-Laclette, E., Farr, K.M., Chang, T.H., Cervantes-Pérez, S.A., Zheng, C., Sankoff, D., Tang, H., Purbojati, R.W. and Putra, A., 2017. Long-read sequencing uncovers the adaptive topography of a carnivorous plant genome. Proceedings of the National Academy of Sciences, 114(22), pp.E4435-E4441.
B37: Utricularia gibba | C37: Ugib.unitig_85.g27169.t1 | D37: ✓ | E37: ✓ | F37: ✓ | G37: ✓ | H37: ✓ | I37: ✕ | J37: ✓ | K37: ✕ | L37: ✕ | M37: ✕ | N37: ✓ | O37: ✕ | P37: ✓ | Q37: ✕ | R37: ✕ | S37: ✕ | T37: ✓ | U37: ✓ | V37: ✓ | W37: ✕ | X37: Lan, T., Renner, T., Ibarra-Laclette, E., Farr, K.M., Chang, T.H., Cervantes-Pérez, S.A., Zheng, C., Sankoff, D., Tang, H., Purbojati, R.W. and Putra, A., 2017. Long-read sequencing uncovers the adaptive topography of a carnivorous plant genome. Proceedings of the National Academy of Sciences, 114(22), pp.E4435-E4441.
B38: Utricularia gibba | C38: Ugib.unitig_85.g27287.t1 | D38: ✓ | E38: ✕ | F38: ✓ | G38: ✓ | H38: ✓ | I38: ✕ | J38: ✕ | K38: ✕ | L38: ✕ | M38: ✕ | N38: ✓ | O38: ✕ | P38: ✕ | Q38: ✕ | R38: ✕ | S38: ✕ | T38: ✓ | U38: ✓ | V38: ✓ | W38: ✕ | X38: Lan, T., Renner, T., Ibarra-Laclette, E., Farr, K.M., Chang, T.H., Cervantes-Pérez, S.A., Zheng, C., Sankoff, D., Tang, H., Purbojati, R.W. and Putra, A., 2017. Long-read sequencing uncovers the adaptive topography of a carnivorous plant genome. Proceedings of the National Academy of Sciences, 114(22), pp.E4435-E4441.
B39: Utricularia gibba | C39: Ugib.unitig_85.g27288.t1 | D39: ✓ | E39: ✕ | F39: ✓ | G39: ✓ | H39: ✓ | I39: ✕ | J39: ✕ | K39: ✕ | L39: ✕ | M39: ✕ | N39: ✓ | O39: ✕ | P39: ✕ | Q39: ✕ | R39: ✕ | S39: ✕ | T39: ✓ | U39: ✓ | V39: ✓ | W39: ✕ | X39: Lan, T., Renner, T., Ibarra-Laclette, E., Farr, K.M., Chang, T.H., Cervantes-Pérez, S.A., Zheng, C., Sankoff, D., Tang, H., Purbojati, R.W. and Putra, A., 2017. Long-read sequencing uncovers the adaptive topography of a carnivorous plant genome. Proceedings of the National Academy of Sciences, 114(22), pp.E4435-E4441.
B40: Utricularia gibba | C40: Ugib.unitig_85.g27291.t1 | D40: ✓ | E40: ✕ | F40: ✓ | G40: ✓ | H40: ✓ | I40: ✕ | J40: ✕ | K40: ✕ | L40: ✕ | M40: ✕ | N40: ✓ | O40: ✕ | P40: ✕ | Q40: ✕ | R40: ✕ | S40: ✕ | T40: ✓ | U40: ✓ | V40: ✓ | W40: ✕ | X40: Lan, T., Renner, T., Ibarra-Laclette, E., Farr, K.M., Chang, T.H., Cervantes-Pérez, S.A., Zheng, C., Sankoff, D., Tang, H., Purbojati, R.W. and Putra, A., 2017. Long-read sequencing uncovers the adaptive topography of a carnivorous plant genome. Proceedings of the National Academy of Sciences, 114(22), pp.E4435-E4441.
B41: Utricularia gibba | C41: Ugib.unitig_85.g27292.t1 | D41: ✓ | E41: ✕ | F41: ✓ | G41: ✓ | H41: ✓ | I41: ✕ | J41: ✕ | K41: ✕ | L41: ✕ | M41: ✕ | N41: ✓ | O41: ✕ | P41: ✕ | Q41: ✕ | R41: ✕ | S41: ✕ | T41: ✓ | U41: ✓ | V41: ✓ | W41: ✕ | X41: Lan, T., Renner, T., Ibarra-Laclette, E., Farr, K.M., Chang, T.H., Cervantes-Pérez, S.A., Zheng, C., Sankoff, D., Tang, H., Purbojati, R.W. and Putra, A., 2017. Long-read sequencing uncovers the adaptive topography of a carnivorous plant genome. Proceedings of the National Academy of Sciences, 114(22), pp.E4435-E4441.
B42: Utricularia gibba | C42: Ugib.unitig_699.g19348.t1 | D42: ✓ | E42: ✕ | F42: ✓ | G42: ✓ | H42: ✓ | I42: ✕ | J42: ✕ | K42: ✕ | L42: ✕ | M42: ✕ | N42: ✓ | O42: ✕ | P42: ✕ | Q42: ✕ | R42: ✕ | S42: ✕ | T42: ✓ | U42: ✓ | V42: ✕ | W42: ✕ | X42: Lan, T., Renner, T., Ibarra-Laclette, E., Farr, K.M., Chang, T.H., Cervantes-Pérez, S.A., Zheng, C., Sankoff, D., Tang, H., Purbojati, R.W. and Putra, A., 2017. Long-read sequencing uncovers the adaptive topography of a carnivorous plant genome. Proceedings of the National Academy of Sciences, 114(22), pp.E4435-E4441.
B43: Utricularia gibba | C43: Ugib.unitig_699.g19347.t1 | D43: ✓ | E43: ✕ | F43: ✓ | G43: ✓ | H43: ✓ | I43: ✕ | J43: ✕ | K43: ✕ | L43: ✕ | M43: ✕ | N43: ✓ | O43: ✕ | P43: ✕ | Q43: ✕ | R43: ✕ | S43: ✕ | T43: ✓ | U43: ✕ | V43: ✓ | W43: ✕ | X43: Lan, T., Renner, T., Ibarra-Laclette, E., Farr, K.M., Chang, T.H., Cervantes-Pérez, S.A., Zheng, C., Sankoff, D., Tang, H., Purbojati, R.W. and Putra, A., 2017. Long-read sequencing uncovers the adaptive topography of a carnivorous plant genome. Proceedings of the National Academy of Sciences, 114(22), pp.E4435-E4441.
B44: Utricularia gibba | C44: Ugib.unitig_699.g19345.t1 | D44: ✓ | E44: ✕ | F44: ✓ | G44: ✓ | H44: ✓ | I44: ✕ | J44: ✕ | K44: ✕ | L44: ✕ | M44: ✕ | N44: ✓ | O44: ✕ | P44: ✕ | Q44: ✕ | R44: ✕ | S44: ✕ | T44: ✕ | U44: ✓ | V44: ✓ | W44: ✕ | X44: Lan, T., Renner, T., Ibarra-Laclette, E., Farr, K.M., Chang, T.H., Cervantes-Pérez, S.A., Zheng, C., Sankoff, D., Tang, H., Purbojati, R.W. and Putra, A., 2017. Long-read sequencing uncovers the adaptive topography of a carnivorous plant genome. Proceedings of the National Academy of Sciences, 114(22), pp.E4435-E4441.
B45: Utricularia gibba | C45: Ugib.unitig_85.g27286.t1 | D45: ✓ | E45: ✕ | F45: ✓ | G45: ✓ | H45: ✓ | I45: ✕ | J45: ✕ | K45: ✕ | L45: ✕ | M45: ✕ | N45: ✓ | O45: ✕ | P45: ✕ | Q45: ✕ | R45: ✕ | S45: ✕ | T45: ✕ | U45: ✓ | V45: ✓ | W45: ✕ | X45: Lan, T., Renner, T., Ibarra-Laclette, E., Farr, K.M., Chang, T.H., Cervantes-Pérez, S.A., Zheng, C., Sankoff, D., Tang, H., Purbojati, R.W. and Putra, A., 2017. Long-read sequencing uncovers the adaptive topography of a carnivorous plant genome. Proceedings of the National Academy of Sciences, 114(22), pp.E4435-E4441.
B46: Utricularia gibba | C46: Ugib.unitig_699.g19350.t1 | D46: ✓ | E46: ✕ | F46: ✓ | G46: ✓ | H46: ✓ | I46: ✕ | J46: ✕ | K46: ✕ | L46: ✕ | M46: ✕ | N46: ✓ | O46: ✕ | P46: ✕ | Q46: ✕ | R46: ✕ | S46: ✕ | T46: ✕ | U46: ✕ | V46: ✕ | W46: ✕ | X46: Lan, T., Renner, T., Ibarra-Laclette, E., Farr, K.M., Chang, T.H., Cervantes-Pérez, S.A., Zheng, C., Sankoff, D., Tang, H., Purbojati, R.W. and Putra, A., 2017. Long-read sequencing uncovers the adaptive topography of a carnivorous plant genome. Proceedings of the National Academy of Sciences, 114(22), pp.E4435-E4441.
B47: Utricularia gibba | C47: Ugib.unitig_699.g19360.t1 | D47: ✓ | E47: ✕ | F47: ✓ | G47: ✓ | H47: ✓ | I47: ✕ | J47: ✕ | K47: ✕ | L47: ✕ | M47: ✕ | N47: ✓ | O47: ✕ | P47: ✕ | Q47: ✕ | R47: ✕ | S47: ✕ | T47: ✕ | U47: ✕ | V47: ✕ | W47: ✕ | X47: Lan, T., Renner, T., Ibarra-Laclette, E., Farr, K.M., Chang, T.H., Cervantes-Pérez, S.A., Zheng, C., Sankoff, D., Tang, H., Purbojati, R.W. and Putra, A., 2017. Long-read sequencing uncovers the adaptive topography of a carnivorous plant genome. Proceedings of the National Academy of Sciences, 114(22), pp.E4435-E4441.
B48: Utricularia gibba | C48: Ugib.unitig_578.g16448.t1 | D48: ✓ | E48: ✕ | F48: ✕ | G48: ✓ | H48: ✓ | I48: ✕ | J48: ✕ | K48: ✕ | L48: ✕ | M48: ✕ | N48: ✓ | O48: ✕ | P48: ✕ | Q48: ✕ | R48: ✕ | S48: ✕ | T48: ✓ | U48: ✓ | V48: ✕ | W48: ✕ | X48: Lan, T., Renner, T., Ibarra-Laclette, E., Farr, K.M., Chang, T.H., Cervantes-Pérez, S.A., Zheng, C., Sankoff, D., Tang, H., Purbojati, R.W. and Putra, A., 2017. Long-read sequencing uncovers the adaptive topography of a carnivorous plant genome. Proceedings of the National Academy of Sciences, 114(22), pp.E4435-E4441.
B49: Utricularia gibba | C49: Ugib.unitig_8.g4660.t1 | D49: ✓ | E49: ✕ | F49: ✕ | G49: ✓ | H49: ✓ | I49: ✕ | J49: ✕ | K49: ✕ | L49: ✕ | M49: ✕ | N49: ✓ | O49: ✕ | P49: ✕ | Q49: ✕ | R49: ✕ | S49: ✕ | T49: ✓ | U49: ✕ | V49: ✕ | W49: ✕ | X49: Lan, T., Renner, T., Ibarra-Laclette, E., Farr, K.M., Chang, T.H., Cervantes-Pérez, S.A., Zheng, C., Sankoff, D., Tang, H., Purbojati, R.W. and Putra, A., 2017. Long-read sequencing uncovers the adaptive topography of a carnivorous plant genome. Proceedings of the National Academy of Sciences, 114(22), pp.E4435-E4441.
B50: Utricularia gibba | C50: Ugib.unitig_85.g27289.t1 | D50: ✓ | E50: ✕ | F50: ✕ | G50: ✓ | H50: ✓ | I50: ✕ | J50: ✕ | K50: ✕ | L50: ✕ | M50: ✕ | N50: ✓ | O50: ✕ | P50: ✕ | Q50: ✕ | R50: ✕ | S50: ✕ | T50: ✓ | U50: ✕ | V50: ✕ | W50: ✕ | X50: Lan, T., Renner, T., Ibarra-Laclette, E., Farr, K.M., Chang, T.H., Cervantes-Pérez, S.A., Zheng, C., Sankoff, D., Tang, H., Purbojati, R.W. and Putra, A., 2017. Long-read sequencing uncovers the adaptive topography of a carnivorous plant genome. Proceedings of the National Academy of Sciences, 114(22), pp.E4435-E4441.
B51: Utricularia gibba | C51: Ugib.unitig_578.g16650.t1 | D51: ✓ | E51: ✕ | F51: ✕ | G51: ✓ | H51: ✕ | I51: ✕ | J51: ✕ | K51: ✕ | L51: ✕ | M51: ✕ | N51: ✓ | O51: ✕ | P51: ✕ | Q51: ✕ | R51: ✕ | S51: ✕ | T51: ✓ | U51: ✕ | V51: ✓ | W51: ✕ | X51: Lan, T., Renner, T., Ibarra-Laclette, E., Farr, K.M., Chang, T.H., Cervantes-Pérez, S.A., Zheng, C., Sankoff, D., Tang, H., Purbojati, R.W. and Putra, A., 2017. Long-read sequencing uncovers the adaptive topography of a carnivorous plant genome. Proceedings of the National Academy of Sciences, 114(22), pp.E4435-E4441.
B52: Utricularia gibba | C52: Ugib.unitig_85.g27192.t1 | D52: ✓ | E52: ✕ | F52: ✕ | G52: ✓ | H52: ✕ | I52: ✕ | J52: ✕ | K52: ✓ | L52: ✓ | M52: ✓ | N52: ✓ | O52: ✕ | P52: ✕ | Q52: ✓ | R52: ✓ | S52: ✓ | T52: ✓ | U52: ✕ | V52: ✕ | W52: ✓ | X52: Lan, T., Renner, T., Ibarra-Laclette, E., Farr, K.M., Chang, T.H., Cervantes-Pérez, S.A., Zheng, C., Sankoff, D., Tang, H., Purbojati, R.W. and Putra, A., 2017. Long-read sequencing uncovers the adaptive topography of a carnivorous plant genome. Proceedings of the National Academy of Sciences, 114(22), pp.E4435-E4441.
B53: Utricularia gibba | C53: Ugib.unitig_8.g4661.t1 | D53: ✕ | E53: ✕ | F53: ✓ | G53: ✕ | H53: ✕ | I53: ✕ | J53: ✕ | K53: ✕ | L53: ✕ | M53: ✕ | N53: ✓ | O53: ✕ | P53: ✕ | Q53: ✕ | R53: ✕ | S53: ✕ | T53: ✕ | U53: ✕ | V53: ✕ | W53: ✕ | X53: Lan, T., Renner, T., Ibarra-Laclette, E., Farr, K.M., Chang, T.H., Cervantes-Pérez, S.A., Zheng, C., Sankoff, D., Tang, H., Purbojati, R.W. and Putra, A., 2017. Long-read sequencing uncovers the adaptive topography of a carnivorous plant genome. Proceedings of the National Academy of Sciences, 114(22), pp.E4435-E4441.
B54: Utricularia gibba | C54: Ugib.unitig_85.g27290.t1 | D54: ✕ | E54: ✕ | F54: ✓ | G54: ✕ | H54: ✕ | I54: ✕ | J54: ✕ | K54: ✕ | L54: ✕ | M54: ✕ | N54: ✓ | O54: ✕ | P54: ✕ | Q54: ✕ | R54: ✕ | S54: ✕ | T54: ✕ | U54: ✕ | V54: ✕ | W54: ✕ | X54: Lan, T., Renner, T., Ibarra-Laclette, E., Farr, K.M., Chang, T.H., Cervantes-Pérez, S.A., Zheng, C., Sankoff, D., Tang, H., Purbojati, R.W. and Putra, A., 2017. Long-read sequencing uncovers the adaptive topography of a carnivorous plant genome. Proceedings of the National Academy of Sciences, 114(22), pp.E4435-E4441.
B55: Utricularia gibba | C55: Ugib.unitig_85.g27294.t1 | D55: ✕ | E55: ✕ | F55: ✓ | G55: ✕ | H55: ✕ | I55: ✕ | J55: ✕ | K55: ✕ | L55: ✕ | M55: ✕ | N55: ✓ | O55: ✕ | P55: ✕ | Q55: ✕ | R55: ✕ | S55: ✕ | T55: ✕ | U55: ✕ | V55: ✕ | W55: ✕ | X55: Lan, T., Renner, T., Ibarra-Laclette, E., Farr, K.M., Chang, T.H., Cervantes-Pérez, S.A., Zheng, C., Sankoff, D., Tang, H., Purbojati, R.W. and Putra, A., 2017. Long-read sequencing uncovers the adaptive topography of a carnivorous plant genome. Proceedings of the National Academy of Sciences, 114(22), pp.E4435-E4441.
B57: Table S10: InterPro domain presence or absense for cysteine protease proteins.

Sheet Table S11
B2: SW score | C2: perc div. | D2: perc del. | E2: perc ins. | F2: query sequence | G2: position in query | L2: matching repeat | M2: repeat class/family | N2: position in repeat | Q2: ID | T2: repeat class/family | U2: number of elements | V2: Percentage
G3: begin | H3: end | J3: (left) | N3: begin | O3: end | P3: (left) | T3: DNA/Zisupton | U3: 1 | V3: =U3/327 -> 0.3%
B4: 290 | C4: 23.2 | D4: 19.4 | E4: 0 | F4: Chr_8 | G4: 1933829 | H4: 1933848 | I4: =H4-G4 -> 19 | J4: (54,008,675) | K4: C | L4: rnd-1_family-93 | M4: DNA/Zisupton | N4: -346 | O4: 190 | P4: 77 | Q4: 689881 | T4: rRNA | U4: 1 | V4: 0.3%
B5: 689 | C5: 27.2 | D5: 2.9 | E5: 2 | F5: Chr_8 | G5: 1761010 | H5: 1761351 | I5: 341 | J5: (54,181,172) | K5: + | L5: rnd-3_family-376 | M5: LINE/L1 | N5: 576 | O5: 920 | P5: -1 | Q5: 689594 | T5: tRNA | U5: 2 | V5: 0.6%
B6: 261 | C6: 10 | D6: 2 | E6: 2 | F6: Chr_8 | G6: 1771754 | H6: 1771804 | I6: 50 | J6: (54,170,719) | K6: + | L6: rnd-3_family-967 | M6: LINE/L1 | N6: 1058 | O6: 1108 | P6: -51 | Q6: 689611 | T6: LTR/Gypsy | U6: 3 | V6: 0.9%
B7: 753 | C7: 18.2 | D7: 2.1 | E7: 3.8 | F7: Chr_8 | G7: 1781654 | H7: 1781893 | I7: 239 | J7: (54,160,630) | K7: + | L7: rnd-4_family-1211 | M7: LINE/L1 | N7: 848 | O7: 1083 | P7: 0 | Q7: 689634 | T7: Low_complexity | U7: 7 | V7: 2.1%
B8: 233 | C8: 17.9 | D8: 0 | E8: 0 | F8: Chr_8 | G8: 1784598 | H8: 1784636 | I8: 38 | J8: (54,157,887) | K8: C | L8: rnd-1_family-290 | M8: LINE/L1 | N8: -275 | O8: 147 | P8: 109 | Q8: 689641 | T8: LTR/Unknown | U8: 12 | V8: 3.7%
B9: 410 | C9: 21.9 | D9: 0.8 | E9: 0 | F9: Chr_8 | G9: 1785148 | H9: 1785270 | I9: 122 | J9: (54,157,253) | K9: + | L9: rnd-1_family-612 | M9: LINE/L1 | N9: 28 | O9: 151 | P9: -164 | Q9: 689643 | T9: LINE/L1 | U9: 25 | V9: 7.6%
B10: 372 | C10: 29.1 | D10: 0.5 | E10: 7.3 | F10: Chr_8 | G10: 1785491 | H10: 1785679 | I10: 188 | J10: (54,156,844) | K10: C | L10: rnd-1_family-290 | M10: LINE/L1 | N10: 0 | O10: 422 | P10: 246 | Q10: 689645 | T10: Simple_repeat | U10: 33 | V10: 10.1%
B11: 310 | C11: 23.1 | D11: 3.2 | E11: 3.2 | F11: Chr_8 | G11: 1805196 | H11: 1805320 | I11: 124 | J11: (54,137,203) | K11: + | L11: rnd-1_family-206 | M11: LINE/L1 | N11: 3 | O11: 127 | P11: -107 | Q11: 689678 | T11: LTR/Copia | U11: 34 | V11: 10.4%
B12: 901 | C12: 23.9 | D12: 4.4 | E12: 4.2 | F12: Chr_8 | G12: 1812375 | H12: 1813152 | I12: 777 | J12: (54,129,371) | K12: + | L12: rnd-1_family-12 | M12: LINE/L1 | N12: 66 | O12: 1032 | P12: 0 | Q12: 689688 | T12: Unknown | U12: 209 | V12: 63.9%
B13: 3178 | C13: 24.2 | D13: 1.4 | E13: 2.7 | F13: Chr_8 | G13: 1813424 | H13: 1815134 | I13: 1710 | J13: (54,127,389) | K13: + | L13: rnd-1_family-3 | M13: LINE/L1 | N13: 295 | O13: 2584 | P13: -3 | Q13: 689689 | T13: total | U13: =SUM(U3:U12) -> 327
B14: 342 | C14: 31.4 | D14: 0.4 | E14: 0 | F14: Chr_8 | G14: 1815218 | H14: 1815459 | I14: 241 | J14: (54,127,064) | K14: + | L14: rnd-1_family-563 | M14: LINE/L1 | N14: 46 | O14: 288 | P14: -7 | Q14: 689690 | R14: *
B15: 2747 | C15: 20.7 | D15: 2 | E15: 1 | F15: Chr_8 | G15: 1815463 | H15: 1816261 | I15: 798 | J15: (54,126,262) | K15: + | L15: rnd-3_family-1284 | M15: LINE/L1 | N15: 1 | O15: 807 | P15: 0 | Q15: 689691
B16: 310 | C16: 23.1 | D16: 3.2 | E16: 3.2 | F16: Chr_8 | G16: 1831649 | H16: 1831773 | I16: 124 | J16: (54,110,750) | K16: + | L16: rnd-1_family-206 | M16: LINE/L1 | N16: 3 | O16: 127 | P16: -107 | Q16: 689727
B17: 716 | C17: 24.8 | D17: 4 | E17: 3.5 | F17: Chr_8 | G17: 1838798 | H17: 1839572 | I17: 774 | J17: (54,102,951) | K17: + | L17: rnd-1_family-12 | M17: LINE/L1 | N17: 66 | O17: 1032 | P17: 0 | Q17: 689737
B18: 3013 | C18: 24.1 | D18: 1.5 | E18: 3.1 | F18: Chr_8 | G18: 1839849 | H18: 1841558 | I18: 1709 | J18: (54,100,965) | K18: + | L18: rnd-1_family-3 | M18: LINE/L1 | N18: 26 | O18: 1709 | P18: -6 | Q18: 689738
B19: 325 | C19: 31.1 | D19: 0.8 | E19: 0 | F19: Chr_8 | G19: 1841637 | H19: 1841877 | I19: 240 | J19: (54,100,646) | K19: + | L19: rnd-1_family-563 | M19: LINE/L1 | N19: 46 | O19: 288 | P19: -7 | Q19: 689739 | R19: *
B20: 2335 | C20: 21.5 | D20: 2.5 | E20: 2.2 | F20: Chr_8 | G20: 1841879 | H20: 1842683 | I20: 804 | J20: (54,099,840) | K20: + | L20: rnd-3_family-1284 | M20: LINE/L1 | N20: 1 | O20: 807 | P20: 0 | Q20: 689740
B21: 310 | C21: 23.1 | D21: 3.2 | E21: 3.2 | F21: Chr_8 | G21: 1862059 | H21: 1862183 | I21: 124 | J21: (54,080,340) | K21: + | L21: rnd-1_family-206 | M21: LINE/L1 | N21: 3 | O21: 127 | P21: -107 | Q21: 689770
B22: 695 | C22: 25.5 | D22: 3.8 | E22: 3.2 | F22: Chr_8 | G22: 1869200 | H22: 1869884 | I22: 684 | J22: (54,072,639) | K22: + | L22: rnd-1_family-148 | M22: LINE/L1 | N22: 344 | O22: 1032 | P22: 0 | Q22: 689780
B23: 3072 | C23: 23.9 | D23: 1.8 | E23: 3.6 | F23: Chr_8 | G23: 1870261 | H23: 1871975 | I23: 1714 | J23: (54,070,548) | K23: + | L23: rnd-1_family-3 | M23: LINE/L1 | N23: 26 | O23: 1710 | P23: -5 | Q23: 689781
B24: 268 | C24: 30.5 | D24: 1.3 | E24: 0 | F24: Chr_8 | G24: 1872072 | H24: 1872297 | I24: 225 | J24: (54,070,226) | K24: + | L24: rnd-1_family-563 | M24: LINE/L1 | N24: 60 | O24: 288 | P24: -7 | Q24: 689782
B25: 2283 | C25: 21.6 | D25: 2.9 | E25: 2.4 | F25: Chr_8 | G25: 1872301 | H25: 1873101 | I25: 800 | J25: (54,069,422) | K25: + | L25: rnd-3_family-1284 | M25: LINE/L1 | N25: 1 | O25: 805 | P25: -2 | Q25: 689783
B26: 310 | C26: 23.1 | D26: 3.2 | E26: 3.2 | F26: Chr_8 | G26: 1892492 | H26: 1892616 | I26: 124 | J26: (54,049,907) | K26: + | L26: rnd-1_family-206 | M26: LINE/L1 | N26: 3 | O26: 127 | P26: -107 | Q26: 689811
B27: 759 | C27: 26.1 | D27: 4.8 | E27: 3.9 | F27: Chr_8 | G27: 1899664 | H27: 1900562 | I27: 898 | J27: (54,041,961) | K27: + | L27: rnd-1_family-12 | M27: LINE/L1 | N27: 66 | O27: 1032 | P27: 0 | Q27: 689823 | R27: *
B28: 3180 | C28: 24.3 | D28: 1.4 | E28: 2.6 | F28: Chr_8 | G28: 1900716 | H28: 1902425 | I28: 1709 | J28: (54,040,098) | K28: + | L28: rnd-1_family-3 | M28: LINE/L1 | N28: 26 | O28: 1715 | P28: 0 | Q28: 689824
B29: 2468 | C29: 21 | D29: 2.5 | E29: 1.6 | F29: Chr_8 | G29: 1902744 | H29: 1903542 | I29: 798 | J29: (54,038,981) | K29: + | L29: rnd-3_family-1284 | M29: LINE/L1 | N29: 1 | O29: 806 | P29: -1 | Q29: 689825
B30: 12 | C30: 24.2 | D30: 0 | E30: 7.7 | F30: Chr_8 | G30: 1756385 | H30: 1756440 | I30: 55 | J30: (54,186,083) | K30: + | L30: A-rich | M30: Low_complexity | N30: 1 | O30: 52 | P30: 0 | Q30: 689578
B31: 13 | C31: 24 | D31: 0 | E31: 2.5 | F31: Chr_8 | G31: 1758269 | H31: 1758309 | I31: 40 | J31: (54,184,214) | K31: + | L31: G-rich | M31: Low_complexity | N31: 1 | O31: 40 | P31: 0 | Q31: 689583
B32: 13 | C32: 23.2 | D32: 0 | E32: 2.4 | F32: Chr_8 | G32: 1760856 | H32: 1760897 | I32: 41 | J32: (54,181,626) | K32: + | L32: A-rich | M32: Low_complexity | N32: 1 | O32: 41 | P32: 0 | Q32: 689593
B33: 15 | C33: 20.6 | D33: 6 | E33: 0 | F33: Chr_8 | G33: 1772155 | H33: 1772171 | I33: 16 | J33: (54,170,352) | K33: + | L33: A-rich | M33: Low_complexity | N33: 1 | O33: 32 | P33: -21 | Q33: 689614
B34: 13 | C34: 13.3 | D34: 6.1 | E34: 0 | F34: Chr_8 | G34: 1895442 | H34: 1895474 | I34: 32 | J34: (54,047,049) | K34: + | L34: A-rich | M34: Low_complexity | N34: 1 | O34: 35 | P34: 0 | Q34: 689819
B35: 14 | C35: 12.8 | D35: 11.3 | E35: 1.7 | F35: Chr_8 | G35: 1921862 | H35: 1921914 | I35: 52 | J35: (54,020,609) | K35: + | L35: A-rich | M35: Low_complexity | N35: 1 | O35: 58 | P35: 0 | Q35: 689851
B36: 13 | C36: 23.3 | D36: 2.5 | E36: 0 | F36: Chr_8 | G36: 1942803 | H36: 1942842 | I36: 39 | J36: (53,999,681) | K36: + | L36: A-rich | M36: Low_complexity | N36: 1 | O36: 41 | P36: 0 | Q36: 689902
B37: 2035 | C37: 15 | D37: 3.6 | E37: 8.4 | F37: Chr_8 | G37: 1762201 | H37: 1762733 | I37: 532 | J37: (54,179,790) | K37: + | L37: ltr-1_family-345 | M37: LTR/Copia | N37: 3582 | O37: 4090 | P37: -1064 | Q37: 689596
B38: 656 | C38: 24 | D38: 2.3 | E38: 1.1 | F38: Chr_8 | G38: 1763834 | H38: 1764006 | I38: 172 | J38: (54,178,517) | K38: C | L38: ltr-1_family-391 | M38: LTR/Copia | N38: -1603 | O38: 4651 | P38: 4477 | Q38: 689599
B39: 613 | C39: 13.9 | D39: 4.8 | E39: 2.3 | F39: Chr_8 | G39: 1769926 | H39: 1770050 | I39: 124 | J39: (54,172,473) | K39: C | L39: ltr-1_family-500 | M39: LTR/Copia | N39: -1770 | O39: 2889 | P39: 2762 | Q39: 689609
B40: 2719 | C40: 12.6 | D40: 7.7 | E40: 0.8 | F40: Chr_8 | G40: 1771065 | H40: 1771545 | I40: 480 | J40: (54,170,978) | K40: + | L40: ltr-1_family-289 | M40: LTR/Copia | N40: 160 | O40: 673 | P40: -4610 | Q40: 689610
B41: 2203 | C41: 12.9 | D41: 7.1 | E41: 0.9 | F41: Chr_8 | G41: 1775459 | H41: 1775895 | I41: 436 | J41: (54,166,628) | K41: C | L41: ltr-1_family-289 | M41: LTR/Copia | N41: -4589 | O41: 694 | P41: 231 | Q41: 689622
B42: 38760 | C42: 6.8 | D42: 2.7 | E42: 2.4 | F42: Chr_8 | G42: 1793222 | H42: 1799312 | I42: 6090 | J42: (54,143,211) | K42: C | L42: ltr-1_family-410 | M42: LTR/Copia | N42: -3 | O42: 7152 | P42: 222 | Q42: 689664
B43: 3580 | C43: 12.9 | D43: 6.4 | E43: 6.2 | F43: Chr_8 | G43: 1799308 | H43: 1800293 | I43: 985 | J43: (54,142,230) | K43: C | L43: ltr-1_family-343 | M43: LTR/Copia | N43: -5262 | O43: 989 | P43: 2 | Q43: 689665
B44: 832 | C44: 8.4 | D44: 0.6 | E44: 11 | F44: Chr_8 | G44: 1802515 | H44: 1802674 | I44: 159 | J44: (54,139,849) | K44: + | L44: ltr-1_family-440 | M44: LTR/Copia | N44: 716 | O44: 860 | P44: -2514 | Q44: 689670
B45: 3988 | C45: 19.3 | D45: 2.6 | E45: 3.1 | F45: Chr_8 | G45: 1818486 | H45: 1819661 | I45: 1175 | J45: (54,122,862) | K45: + | L45: ltr-1_family-354 | M45: LTR/Copia | N45: 4713 | O45: 5883 | P45: -202 | Q45: 689701
B46: 4229 | C46: 8.9 | D46: 1.2 | E46: 1.5 | F46: Chr_8 | G46: 1822181 | H46: 1822850 | I46: 669 | J46: (54,119,673) | K46: C | L46: rnd-1_family-83 | M46: LTR/Copia | N46: -884 | O46: 2868 | P46: 2201 | Q46: 689704
B47: 1294 | C47: 5.2 | D47: 0 | E47: 5.7 | F47: Chr_8 | G47: 1828941 | H47: 1829125 | I47: 184 | J47: (54,113,398) | K47: + | L47: ltr-1_family-440 | M47: LTR/Copia | N47: 686 | O47: 860 | P47: -2514 | Q47: 689719
B48: 3726 | C48: 19.7 | D48: 3.6 | E48: 2.6 | F48: Chr_8 | G48: 1844917 | H48: 1846076 | I48: 1159 | J48: (54,096,447) | K48: + | L48: ltr-1_family-354 | M48: LTR/Copia | N48: 4713 | O48: 5883 | P48: -202 | Q48: 689749
B49: 12028 | C49: 4.9 | D49: 1 | E49: 1 | F49: Chr_8 | G49: 1848592 | H49: 1850237 | I49: 1645 | J49: (54,092,286) | K49: C | L49: rnd-1_family-83 | M49: LTR/Copia | N49: -884 | O49: 2868 | P49: 1223 | Q49: 689752
B50: 325 | C50: 0 | D50: 0 | E50: 0 | F50: Chr_8 | G50: 1857181 | H50: 1857218 | I50: 37 | J50: (54,085,305) | K50: + | L50: ltr-1_family-106 | M50: LTR/Copia | N50: 5217 | O50: 5254 | P50: -1225 | Q50: 689756
B51: 686 | C51: 22.7 | D51: 2.6 | E51: 4 | F51: Chr_8 | G51: 1857219 | H51: 1857447 | I51: 228 | J51: (54,085,076) | K51: + | L51: ltr-1_family-337 | M51: LTR/Copia | N51: 1 | O51: 226 | P51: -6849 | Q51: 689757
B52: 8836 | C52: 5.3 | D52: 0.8 | E52: 1.3 | F52: Chr_8 | G52: 1857449 | H52: 1858661 | I52: 1212 | J52: (54,083,862) | K52: C | L52: rnd-1_family-83 | M52: LTR/Copia | N52: -2545 | O52: 1207 | P52: 1 | Q52: 689758
B53: 5869 | C53: 3.6 | D53: 2.1 | E53: 0.8 | F53: Chr_8 | G53: 1858662 | H53: 1858892 | I53: 230 | J53: (54,083,631) | K53: + | L53: ltr-1_family-53 | M53: LTR/Copia | N53: 3537 | O53: 3639 | P53: 0 | Q53: 689759
B54: 931 | C54: 9.1 | D54: 2.8 | E54: 7.7 | F54: Chr_8 | G54: 1859340 | H54: 1859517 | I54: 177 | J54: (54,083,006) | K54: + | L54: ltr-1_family-440 | M54: LTR/Copia | N54: 683 | O54: 852 | P54: -2522 | Q54: 689763 | R54: *
B55: 4118 | C55: 18.9 | D55: 3 | E55: 3.6 | F55: Chr_8 | G55: 1875332 | H55: 1876509 | I55: 1177 | J55: (54,066,014) | K55: + | L55: ltr-1_family-354 | M55: LTR/Copia | N55: 4713 | O55: 5883 | P55: -202 | Q55: 689790
B56: 11424 | C56: 5.8 | D56: 1.3 | E56: 1.3 | F56: Chr_8 | G56: 1879036 | H56: 1880681 | I56: 1645 | J56: (54,061,842) | K56: C | L56: rnd-1_family-83 | M56: LTR/Copia | N56: -884 | O56: 2868 | P56: 1223 | Q56: 689793 | R56: *
B57: 325 | C57: 0 | D57: 0 | E57: 0 | F57: Chr_8 | G57: 1887604 | H57: 1887641 | I57: 37 | J57: (54,054,882) | K57: + | L57: ltr-1_family-106 | M57: LTR/Copia | N57: 5217 | O57: 5254 | P57: -1225 | Q57: 689797
B58: 730 | C58: 18.6 | D58: 3.5 | E58: 4.8 | F58: Chr_8 | G58: 1887642 | H58: 1887873 | I58: 231 | J58: (54,054,650) | K58: + | L58: ltr-1_family-337 | M58: LTR/Copia | N58: 1 | O58: 229 | P58: -6846 | Q58: 689798
B59: 8436 | C59: 5.1 | D59: 1.4 | E59: 3.4 | F59: Chr_8 | G59: 1887873 | H59: 1889191 | I59: 1318 | J59: (54,053,332) | K59: + | L59: ltr-1_family-106 | M59: LTR/Copia | N59: 5241 | O59: 6311 | P59: -168 | Q59: 689799 | R59: *
B60: 1088 | C60: 8.1 | D60: 2.2 | E60: 5.7 | F60: Chr_8 | G60: 1889789 | H60: 1889971 | I60: 182 | J60: (54,052,552) | K60: + | L60: ltr-1_family-440 | M60: LTR/Copia | N60: 684 | O60: 860 | P60: -2514 | Q60: 689803
B61: 3993 | C61: 18.9 | D61: 3.5 | E61: 3.5 | F61: Chr_8 | G61: 1905764 | H61: 1906934 | I61: 1170 | J61: (54,035,589) | K61: + | L61: ltr-1_family-354 | M61: LTR/Copia | N61: 4713 | O61: 5883 | P61: -202 | Q61: 689833
B62: 12034 | C62: 5.8 | D62: 0.7 | E62: 0.9 | F62: Chr_8 | G62: 1909465 | H62: 1911114 | I62: 1649 | J62: (54,031,409) | K62: C | L62: rnd-1_family-83 | M62: LTR/Copia | N62: -884 | O62: 2868 | P62: 1223 | Q62: 689836
B63: 338 | C63: 2.1 | D63: 0.7 | E63: 0.3 | F63: Chr_8 | G63: 1918048 | H63: 1918095 | I63: 47 | J63: (54,024,428) | K63: + | L63: ltr-1_family-106 | M63: LTR/Copia | N63: 5217 | O63: 5256 | P63: -1223 | Q63: 689840
B64: 847 | C64: 20.2 | D64: 6.9 | E64: 3.8 | F64: Chr_8 | G64: 1918094 | H64: 1918324 | I64: 230 | J64: (54,024,199) | K64: + | L64: ltr-1_family-55 | M64: LTR/Copia | N64: 2476 | O64: 2713 | P64: -2623 | Q64: 689841
B65: 8615 | C65: 5.9 | D65: 1.5 | E65: 2.3 | F65: Chr_8 | G65: 1918324 | H65: 1919540 | I65: 1216 | J65: (54,022,983) | K65: C | L65: rnd-1_family-83 | M65: LTR/Copia | N65: -2545 | O65: 1207 | P65: 1 | Q65: 689842 | R65: *
B66: 5425 | C66: 5.1 | D66: 3.1 | E66: 2.5 | F66: Chr_8 | G66: 1919541 | H66: 1919773 | I66: 232 | J66: (54,022,750) | K66: + | L66: ltr-1_family-53 | M66: LTR/Copia | N66: 3539 | O66: 3637 | P66: -2 | Q66: 689843
B67: 990 | C67: 8.8 | D67: 3.2 | E67: 7.3 | F67: Chr_8 | G67: 1920224 | H67: 1920408 | I67: 184 | J67: (54,022,115) | K67: + | L67: ltr-1_family-440 | M67: LTR/Copia | N67: 683 | O67: 860 | P67: -2514 | Q67: 689846 | R67: *
B68: 799 | C68: 12.9 | D68: 2.8 | E68: 1.4 | F68: Chr_8 | G68: 1931790 | H68: 1931931 | I68: =H68-G68 -> 141 | J68: (54,010,592) | K68: + | L68: ltr-1_family-440 | M68: LTR/Copia | N68: 686 | O68: 829 | P68: -2545 | Q68: 689874
B69: 372 | C69: 15.2 | D69: 3.8 | E69: 0 | F69: Chr_8 | G69: 1931896 | H69: 1931974 | I69: 78 | J69: (54,010,549) | K69: C | L69: ltr-1_family-440 | M69: LTR/Copia | N69: -2617 | O69: 757 | P69: 676 | Q69: 689875
B70: 259 | C70: 21.4 | D70: 4.2 | E70: 1.4 | F70: Chr_8 | G70: 1938113 | H70: 1938183 | I70: 70 | J70: (54,004,340) | K70: + | L70: ltr-1_family-440 | M70: LTR/Copia | N70: 697 | O70: 769 | P70: -2605 | Q70: 689890
B71: 38636 | C71: 3 | D71: 1.4 | E71: 1.5 | F71: Chr_8 | G71: 1851103 | H71: 1856277 | I71: 5174 | J71: (54,086,246) | K71: C | L71: ltr-1_family-375 | M71: LTR/Gypsy | N71: -1 | O71: 5138 | P71: 1 | Q71: 689754
B72: 41544 | C72: 1.8 | D72: 0.8 | E72: 0.6 | F72: Chr_8 | G72: 1881544 | H72: 1886705 | I72: 5161 | J72: (54,055,818) | K72: C | L72: ltr-1_family-375 | M72: LTR/Gypsy | N72: 0 | O72: 5139 | P72: 1 | Q72: 689795
B73: 34191 | C73: 2.2 | D73: 1 | E73: 1.2 | F73: Chr_8 | G73: 1911982 | H73: 1917157 | I73: 5175 | J73: (54,025,366) | K73: C | L73: ltr-1_family-375 | M73: LTR/Gypsy | N73: 0 | O73: 5139 | P73: 2 | Q73: 689838
B74: 374 | C74: 22.6 | D74: 7.4 | E74: 1.9 | F74: Chr_8 | G74: 1756076 | H74: 1756372 | I74: 296 | J74: (54,186,151) | K74: C | L74: ltr-1_family-357 | M74: LTR/Unknown | N74: -2095 | O74: 1256 | P74: 944 | Q74: 689577
B75: 1346 | C75: 14.4 | D75: 9.5 | E75: 1.6 | F75: Chr_8 | G75: 1774786 | H75: 1775144 | I75: 358 | J75: (54,167,379) | K75: C | L75: ltr-1_family-357 | M75: LTR/Unknown | N75: -2091 | O75: 1260 | P75: 874 | Q75: 689621
B76: 1331 | C76: 14.9 | D76: 3.7 | E76: 3.6 | F76: Chr_8 | G76: 1792862 | H76: 1793218 | I76: 356 | J76: (54,149,305) | K76: C | L76: ltr-1_family-13 | M76: LTR/Unknown | N76: -9 | O76: 360 | P76: 2 | Q76: 689663
B77: 1241 | C77: 15.4 | D77: 7 | E77: 2.1 | F77: Chr_8 | G77: 1800367 | H77: 1800678 | I77: 311 | J77: (54,141,845) | K77: C | L77: ltr-1_family-13 | M77: LTR/Unknown | N77: -59 | O77: 327 | P77: 1 | Q77: 689667
B78: 2678 | C78: 2.1 | D78: 0.9 | E78: 0.3 | F78: Chr_8 | G78: 1821853 | H78: 1822184 | I78: 331 | J78: (54,120,339) | K78: + | L78: ltr-1_family-52 | M78: LTR/Unknown | N78: 1 | O78: 334 | P78: -74 | Q78: 689703
B79: 2646 | C79: 3 | D79: 0.9 | E79: 0.3 | F79: Chr_8 | G79: 1848263 | H79: 1848598 | I79: 335 | J79: (54,093,925) | K79: + | L79: ltr-1_family-52 | M79: LTR/Unknown | N79: 1 | O79: 338 | P79: -70 | Q79: 689751
B80: 2986 | C80: 3.9 | D80: 2.6 | E80: 0.2 | F80: Chr_8 | G80: 1858747 | H80: 1859135 | I80: 388 | J80: (54,083,388) | K80: + | L80: ltr-1_family-52 | M80: LTR/Unknown | N80: 1 | O80: 398 | P80: -10 | Q80: 689760
B81: 2666 | C81: 3.6 | D81: 0.3 | E81: 0 | F81: Chr_8 | G81: 1878706 | H81: 1879042 | I81: 336 | J81: (54,063,481) | K81: + | L81: ltr-1_family-52 | M81: LTR/Unknown | N81: 1 | O81: 338 | P81: -70 | Q81: 689792
B82: 2836 | C82: 4.1 | D82: 3.1 | E82: 0.8 | F82: Chr_8 | G82: 1889192 | H82: 1889580 | I82: 388 | J82: (54,052,943) | K82: + | L82: ltr-1_family-52 | M82: LTR/Unknown | N82: 1 | O82: 398 | P82: -10 | Q82: 689800 | R82: *
B83: 2678 | C83: 2.1 | D83: 0.9 | E83: 0.3 | F83: Chr_8 | G83: 1909137 | H83: 1909468 | I83: 331 | J83: (54,033,055) | K83: + | L83: ltr-1_family-52 | M83: LTR/Unknown | N83: 1 | O83: 334 | P83: -74 | Q83: 689835
B84: 2979 | C84: 4.5 | D84: 3.3 | E84: 1 | F84: Chr_8 | G84: 1919628 | H84: 1920026 | I84: 398 | J84: (54,022,497) | K84: + | L84: ltr-1_family-52 | M84: LTR/Unknown | N84: 1 | O84: 408 | P84: 0 | Q84: 689844
B85: 1965 | C85: 12.3 | D85: 5.2 | E85: 1 | F85: Chr_8 | G85: 1938198 | H85: 1938583 | I85: 385 | J85: (54,003,940) | K85: C | L85: ltr-1_family-357 | M85: LTR/Unknown | N85: -2082 | O85: 1269 | P85: 868 | Q85: 689891
B86: 701 | C86: 12.8 | D86: 1 | E86: 0 | F86: Chr_8 | G86: 1763071 | H86: 1763172 | I86: 101 | J86: (54,179,351) | K86: C | L86: rnd-5_family-2248 | M86: rRNA | N86: -10446 | O86: 5149 | P86: 5047 | Q86: 689598 | R86: *
B87: 13 | C87: 13.2 | D87: 0 | E87: 0 | F87: Chr_8 | G87: 1757350 | H87: 1757374 | I87: 24 | J87: (54,185,149) | K87: + | L87: (TCG)n | M87: Simple_repeat | N87: 1 | O87: 25 | P87: 0 | Q87: 689579
B88: 19 | C88: 11.6 | D88: 0 | E88: 0 | F88: Chr_8 | G88: 1757611 | H88: 1757638 | I88: 27 | J88: (54,184,885) | K88: + | L88: (T)n | M88: Simple_repeat | N88: 1 | O88: 28 | P88: 0 | Q88: 689580
B89: 20 | C89: 11.6 | D89: 0 | E89: 0 | F89: Chr_8 | G89: 1758975 | H89: 1759003 | I89: 28 | J89: (54,183,520) | K89: + | L89: (T)n | M89: Simple_repeat | N89: 1 | O89: 29 | P89: 0 | Q89: 689584 | R89: *
B90: 26 | C90: 3.1 | D90: 3 | E90: 0 | F90: Chr_8 | G90: 1760591 | H90: 1760623 | I90: 32 | J90: (54,181,900) | K90: + | L90: (TTTCGAAT)n | M90: Simple_repeat | N90: 1 | O90: 34 | P90: 0 | Q90: 689591
B91: 16 | C91: 5.2 | D91: 0 | E91: 0 | F91: Chr_8 | G91: 1761709 | H91: 1761728 | I91: 19 | J91: (54,180,795) | K91: + | L91: (G)n | M91: Simple_repeat | N91: 1 | O91: 20 | P91: 0 | Q91: 689595
B92: 14 | C92: 4.9 | D92: 0 | E92: 0 | F92: Chr_8 | G92: 1765126 | H92: 1765146 | I92: 20 | J92: (54,177,377) | K92: + | L92: (CAG)n | M92: Simple_repeat | N92: 1 | O92: 21 | P92: 0 | Q92: 689602
B93: 18 | C93: 10.4 | D93: 0 | E93: 0 | F93: Chr_8 | G93: 1765559 | H93: 1765589 | I93: 30 | J93: (54,176,934) | K93: + | L93: (CTTCGT)n | M93: Simple_repeat | N93: 1 | O93: 31 | P93: 0 | Q93: 689603 | R93: *
B94: 14 | C94: 18.2 | D94: 0 | E94: 0 | F94: Chr_8 | G94: 1766049 | H94: 1766079 | I94: 30 | J94: (54,176,444) | K94: + | L94: (CCT)n | M94: Simple_repeat | N94: 1 | O94: 31 | P94: 0 | Q94: 689604 | R94: *
B95: 15 | C95: 20.3 | D95: 4.4 | E95: 0 | F95: Chr_8 | G95: 1766185 | H95: 1766229 | I95: 44 | J95: (54,176,294) | K95: + | L95: (GGCGGC)n | M95: Simple_repeat | N95: 1 | O95: 47 | P95: 0 | Q95: 689605
B96: 32 | C96: 0 | D96: 0 | E96: 0 | F96: Chr_8 | G96: 1766891 | H96: 1766920 | I96: 29 | J96: (54,175,603) | K96: + | L96: (T)n | M96: Simple_repeat | N96: 1 | O96: 30 | P96: 0 | Q96: 689606
B97: 14 | C97: 5 | D97: 0 | E97: 0 | F97: Chr_8 | G97: 1769515 | H97: 1769535 | I97: 20 | J97: (54,172,988) | K97: + | L97: (ATAA)n | M97: Simple_repeat | N97: 1 | O97: 21 | P97: 0 | Q97: 689608
B98: 13 | C98: 18.4 | D98: 4.4 | E98: 2.2 | F98: Chr_8 | G98: 1771847 | H98: 1771860 | I98: 13 | J98: (54,170,663) | K98: + | L98: (AATAATAA)n | M98: Simple_repeat | N98: 1 | O98: 45 | P98: 0 | Q98: 689612
B99: 14 | C99: 7.5 | D99: 3.3 | E99: 3.3 | F99: Chr_8 | G99: 1771861 | H99: 1771890 | I99: 29 | J99: (54,170,633) | K99: + | L99: (AAAT)n | M99: Simple_repeat | N99: 1 | O99: 30 | P99: 0 | Q99: 689613
B100: 17 | C100: 8.8 | D100: 0 | E100: 0 | F100: Chr_8 | G100: 1772172 | H100: 1772195 | I100: 23 | J100: (54,170,328) | K100: + | L100: (A)n | M100: Simple_repeat | N100: 1 | O100: 24 | P100: 0 | Q100: 689615
B101: 14 | C101: 15.8 | D101: 4.3 | E101: 4.3 | F101: Chr_8 | G101: 1772306 | H101: 1772351 | I101: 45 | J101: (54,170,172) | K101: + | L101: (ATCAA)n | M101: Simple_repeat | N101: 1 | O101: 46 | P101: 0 | Q101: 689616
B102: 28 | C102: 5.8 | D102: 0 | E102: 0 | F102: Chr_8 | G102: 1777213 | H102: 1777248 | I102: 35 | J102: (54,165,275) | K102: + | L102: (T)n | M102: Simple_repeat | N102: 1 | O102: 36 | P102: 0 | Q102: 689623
B103: 16 | C103: 0 | D103: 0 | E103: 0 | F103: Chr_8 | G103: 1778311 | H103: 1778327 | I103: 16 | J103: (54,164,196) | K103: + | L103: (A)n | M103: Simple_repeat | N103: 1 | O103: 17 | P103: 0 | Q103: 689625
B104: 16 | C104: 0 | D104: 0 | E104: 0 | F104: Chr_8 | G104: 1779815 | H104: 1779832 | I104: 17 | J104: (54,162,691) | K104: + | L104: (A)n | M104: Simple_repeat | N104: 1 | O104: 18 | P104: 0 | Q104: 689629
B105: 24 | C105: 17.9 | D105: 0 | E105: 0 | F105: Chr_8 | G105: 1780930 | H105: 1780973 | I105: 43 | J105: (54,161,550) | K105: + | L105: (T)n | M105: Simple_repeat | N105: 1 | O105: 44 | P105: 0 | Q105: 689632
B106: 19 | C106: 10.1 | D106: 0 | E106: 0 | F106: Chr_8 | G106: 1791385 | H106: 1791416 | I106: 31 | J106: (54,151,107) | K106: + | L106: (TAAA)n | M106: Simple_repeat | N106: 1 | O106: 32 | P106: 0 | Q106: 689662
B107: 27 | C107: 0 | D107: 0 | E107: 0 | F107: Chr_8 | G107: 1801584 | H107: 1801609 | I107: 25 | J107: (54,140,914) | K107: + | L107: (TTCTA)n | M107: Simple_repeat | N107: 1 | O107: 26 | P107: 0 | Q107: 689668
B108: 17 | C108: 7.9 | D108: 0 | E108: 0 | F108: Chr_8 | G108: 1817709 | H108: 1817735 | I108: 26 | J108: (54,124,788) | K108: + | L108: (TAAT)n | M108: Simple_repeat | N108: 1 | O108: 27 | P108: 0 | Q108: 689700
B109: 21 | C109: 6.8 | D109: 0 | E109: 0 | F109: Chr_8 | G109: 1825686 | H109: 1825716 | I109: 30 | J109: (54,116,807) | K109: + | L109: (TAAT)n | M109: Simple_repeat | N109: 1 | O109: 31 | P109: 0 | Q109: 689716
B110: 27 | C110: 0 | D110: 0 | E110: 0 | F110: Chr_8 | G110: 1828029 | H110: 1828054 | I110: 25 | J110: (54,114,469) | K110: + | L110: (TTCTA)n | M110: Simple_repeat | N110: 1 | O110: 26 | P110: 0 | Q110: 689717 | R110: *
B111: 12 | C111: 6.5 | D111: 8.3 | E111: 5.4 | F111: Chr_8 | G111: 1843518 | H111: 1843553 | I111: 35 | J111: (54,098,970) | K111: + | L111: (CGCC)n | M111: Simple_repeat | N111: 1 | O111: 37 | P111: 0 | Q111: 689745
B112: 17 | C112: 7.9 | D112: 0 | E112: 0 | F112: Chr_8 | G112: 1844144 | H112: 1844170 | I112: 26 | J112: (54,098,353) | K112: + | L112: (TAAT)n | M112: Simple_repeat | N112: 1 | O112: 27 | P112: 0 | Q112: 689748
B113: 17 | C113: 7.9 | D113: 0 | E113: 0 | F113: Chr_8 | G113: 1874554 | H113: 1874580 | I113: 26 | J113: (54,067,943) | K113: + | L113: (TAAT)n | M113: Simple_repeat | N113: 1 | O113: 27 | P113: 0 | Q113: 689789
B114: 16 | C114: 13.2 | D114: 0 | E114: 0 | F114: Chr_8 | G114: 1892724 | H114: 1892748 | I114: 24 | J114: (54,049,775) | K114: + | L114: (A)n | M114: Simple_repeat | N114: 1 | O114: 25 | P114: 0 | Q114: 689812
B115: 17 | C115: 7.9 | D115: 0 | E115: 0 | F115: Chr_8 | G115: 1904990 | H115: 1905016 | I115: 26 | J115: (54,037,507) | K115: + | L115: (TAAT)n | M115: Simple_repeat | N115: 1 | O115: 27 | P115: 0 | Q115: 689832
B116: 16 | C116: 0 | D116: 0 | E116: 0 | F116: Chr_8 | G116: 1925370 | H116: 1925386 | I116: 16 | J116: (54,017,137) | K116: + | L116: (A)n | M116: Simple_repeat | N116: 1 | O116: 17 | P116: 0 | Q116: 689861
B117: 21 | C117: 6.8 | D117: 0 | E117: 0 | F117: Chr_8 | G117: 1928540 | H117: 1928570 | I117: 30 | J117: (54,013,953) | K117: + | L117: (TAAT)n | M117: Simple_repeat | N117: 1 | O117: 31 | P117: 0 | Q117: 689871
B118: 27 | C118: 0 | D118: 0 | E118: 0 | F118: Chr_8 | G118: 1930882 | H118: 1930907 | I118: 25 | J118: (54,011,616) | K118: + | L118: (TTCTA)n | M118: Simple_repeat | N118: 1 | O118: 26 | P118: 0 | Q118: 689872
B119: 24 | C119: 15.6 | D119: 0 | E119: 0 | F119: Chr_8 | G119: 1941459 | H119: 1941534 | I119: 75 | J119: (54,000,989) | K119: + | L119: (TTA)n | M119: Simple_repeat | N119: 1 | O119: 76 | P119: 0 | Q119: 689896
B120: 411 | C120: 19.8 | D120: 3.4 | E120: 9.5 | F120: Chr_8 | G120: 1939494 | H120: 1939522 | I120: 28 | J120: (54,003,001) | K120: C | L120: rnd-4_family-1184 | M120: tRNA | N120: -726 | O120: 1160 | P120: 992 | Q120: 689895
B121: 248 | C121: 27.2 | D121: 6.2 | E121: 0 | F121: Chr_8 | G121: 1942019 | H121: 1942099 | I121: 80 | J121: (54,000,424) | K121: + | L121: rnd-4_family-1184 | M121: tRNA | N121: 852 | O121: 937 | P121: -949 | Q121: 689898 | R121: *
B122: 522 | C122: 17.7 | D122: 1.4 | E122: 9 | F122: Chr_8 | G122: 1757894 | H122: 1758036 | I122: 142 | J122: (54,184,487) | K122: C | L122: rnd-3_family-97 | M122: Unknown | N122: -4 | O122: 134 | P122: 2 | Q122: 689581
B123: 778 | C123: 17.4 | D123: 1.5 | E123: 1.5 | F123: Chr_8 | G123: 1758054 | H123: 1758257 | I123: 203 | J123: (54,184,266) | K123: + | L123: rnd-1_family-407 | M123: Unknown | N123: 1 | O123: 204 | P123: 0 | Q123: 689582
B124: 303 | C124: 17.6 | D124: 4.3 | E124: 1.4 | F124: Chr_8 | G124: 1759032 | H124: 1759100 | I124: 68 | J124: (54,183,423) | K124: C | L124: rnd-5_family-852 | M124: Unknown | N124: -164 | O124: 101 | P124: 31 | Q124: 689585
B125: 358 | C125: 19.3 | D125: 2.2 | E125: 1.1 | F125: Chr_8 | G125: 1759351 | H125: 1759439 | I125: 88 | J125: (54,183,084) | K125: C | L125: rnd-5_family-852 | M125: Unknown | N125: -58 | O125: 207 | P125: 118 | Q125: 689586 | R125: *
B126: 307 | C126: 13.6 | D126: 3.6 | E126: 19.1 | F126: Chr_8 | G126: 1759491 | H126: 1759649 | I126: 158 | J126: (54,182,874) | K126: + | L126: rnd-5_family-15259 | M126: Unknown | N126: 2 | O126: 270 | P126: 0 | Q126: 689587
B127: 557 | C127: 19.1 | D127: 2.3 | E127: 19.1 | F127: Chr_8 | G127: 1759642 | H127: 1759861 | I127: 219 | J127: (54,182,662) | K127: C | L127: rnd-4_family-1819 | M127: Unknown | N127: -1 | O127: 192 | P127: 4 | Q127: 689588 | R127: *
B128: 770 | C128: 11.5 | D128: 6.8 | E128: 4.6 | F128: Chr_8 | G128: 1760369 | H128: 1760560 | I128: 191 | J128: (54,181,963) | K128: + | L128: rnd-3_family-710 | M128: Unknown | N128: 6 | O128: 201 | P128: -2 | Q128: 689589
B129: 284 | C129: 20.3 | D129: 20.6 | E129: 4.3 | F129: Chr_8 | G129: 1760561 | H129: 1760590 | I129: 29 | J129: (54,181,933) | K129: C | L129: rnd-5_family-8191 | M129: Unknown | N129: -20 | O129: 388 | P129: 139 | Q129: 689590
B130: 284 | C130: 20.3 | D130: 20.6 | E130: 4.3 | F130: Chr_8 | G130: 1760624 | H130: 1760715 | I130: 91 | J130: (54,181,808) | K130: C | L130: rnd-5_family-8191 | M130: Unknown | N130: -275 | O130: 138 | P130: 25 | Q130: 689590
B131: 422 | C131: 14 | D131: 4.2 | E131: 2.1 | F131: Chr_8 | G131: 1760625 | H131: 1760719 | I131: 94 | J131: (54,181,804) | K131: + | L131: rnd-1_family-126 | M131: Unknown | N131: 77 | O131: 173 | P131: -3 | Q131: 689592 | R131: *
B132: 433 | C132: 22.5 | D132: 11.3 | E132: 2.1 | F132: Chr_8 | G132: 1762823 | H132: 1762999 | I132: =H132-G132 -> 176 | J132: (54,179,524) | K132: C | L132: rnd-5_family-942 | M132: Unknown | N132: -3 | O132: 193 | P132: 1 | Q132: 689597
B133: 1109 | C133: 12.5 | D133: 1.1 | E133: 0 | F133: Chr_8 | G133: 1763920 | H133: 1764095 | I133: 175 | J133: (54,178,428) | K133: C | L133: rnd-1_family-761 | M133: Unknown | N133: -20 | O133: 217 | P133: 40 | Q133: 689600
B134: 575 | C134: 18.2 | D134: 1.6 | E134: 2.4 | F134: Chr_8 | G134: 1764567 | H134: 1764690 | I134: 123 | J134: (54,177,833) | K134: C | L134: rnd-1_family-395 | M134: Unknown | N134: -55 | O134: 154 | P134: 32 | Q134: 689601
B135: 233 | C135: 17 | D135: 2.1 | E135: 2.1 | F135: Chr_8 | G135: 1769103 | H135: 1769150 | I135: 47 | J135: (54,173,373) | K135: + | L135: rnd-1_family-9 | M135: Unknown | N135: 190 | O135: 237 | P135: -10 | Q135: 689607
B136: 821 | C136: 18.9 | D136: 2.2 | E136: 0.4 | F136: Chr_8 | G136: 1772644 | H136: 1772866 | I136: 222 | J136: (54,169,657) | K136: + | L136: rnd-5_family-249 | M136: Unknown | N136: 40 | O136: 266 | P136: 0 | Q136: 689617
B137: 324 | C137: 12.7 | D137: 5.2 | E137: 9.8 | F137: Chr_8 | G137: 1773210 | H137: 1773305 | I137: 95 | J137: (54,169,218) | K137: + | L137: rnd-4_family-3100 | M137: Unknown | N137: 2 | O137: 93 | P137: 0 | Q137: 689618 | R137: *
B138: 4151 | C138: 6.2 | D138: 1.8 | E138: 2.5 | F138: Chr_8 | G138: 1773309 | H138: 1773981 | I138: 672 | J138: (54,168,542) | K138: C | L138: rnd-1_family-450 | M138: Unknown | N138: 0 | O138: 668 | P138: 1 | Q138: 689619
B139: 232 | C139: 21.8 | D139: 0 | E139: 6 | F139: Chr_8 | G139: 1774502 | H139: 1774589 | I139: 87 | J139: (54,167,934) | K139: + | L139: rnd-5_family-8051 | M139: Unknown | N139: 972 | O139: 1054 | P139: -1067 | Q139: 689620
B140: 943 | C140: 15.8 | D140: 0 | E140: 1.2 | F140: Chr_8 | G140: 1777959 | H140: 1778124 | I140: 165 | J140: (54,164,399) | K140: C | L140: rnd-3_family-154 | M140: Unknown | N140: -2 | O140: 168 | P140: 5 | Q140: 689624
B141: 343 | C141: 16.7 | D141: 16.7 | E141: 7.7 | F141: Chr_8 | G141: 1778601 | H141: 1778756 | I141: 155 | J141: (54,163,767) | K141: + | L141: rnd-4_family-1701 | M141: Unknown | N141: 2 | O141: 170 | P141: 0 | Q141: 689626 | R141: *
B142: 966 | C142: 16.3 | D142: 2.7 | E142: 0 | F142: Chr_8 | G142: 1778744 | H142: 1778927 | I142: 183 | J142: (54,163,596) | K142: + | L142: rnd-5_family-942 | M142: Unknown | N142: 7 | O142: 195 | P142: -1 | Q142: 689627
B143: 228 | C143: 28.6 | D143: 7.1 | E143: 0 | F143: Chr_8 | G143: 1778845 | H143: 1778942 | I143: 97 | J143: (54,163,581) | K143: C | L143: rnd-5_family-138 | M143: Unknown | N143: -358 | O143: 156 | P143: 52 | Q143: 689628 | R143: *
B144: 642 | C144: 17.9 | D144: 2.7 | E144: 11.8 | F144: Chr_8 | G144: 1780452 | H144: 1780635 | I144: 183 | J144: (54,161,888) | K144: + | L144: rnd-4_family-1701 | M144: Unknown | N144: 2 | O144: 170 | P144: 0 | Q144: 689630
B145: 590 | C145: 21 | D145: 7.6 | E145: 2 | F145: Chr_8 | G145: 1780617 | H145: 1780801 | I145: 184 | J145: (54,161,722) | K145: + | L145: rnd-5_family-942 | M145: Unknown | N145: 1 | O145: 195 | P145: -1 | Q145: 689631
B146: 300 | C146: 12.7 | D146: 20.4 | E146: 0.8 | F146: Chr_8 | G146: 1781404 | H146: 1781506 | I146: 102 | J146: (54,161,017) | K146: C | L146: rnd-4_family-1112 | M146: Unknown | N146: -32 | O146: 141 | P146: 19 | Q146: 689633
B147: 2840 | C147: 12.6 | D147: 1.5 | E147: 1.9 | F147: Chr_8 | G147: 1782798 | H147: 1783315 | I147: 517 | J147: (54,159,208) | K147: C | L147: rnd-3_family-874 | M147: Unknown | N147: -58 | O147: 519 | P147: 4 | Q147: 689635
B148: 271 | C148: 21.8 | D148: 8.1 | E148: 2.9 | F148: Chr_8 | G148: 1783374 | H148: 1783472 | I148: 98 | J148: (54,159,051) | K148: C | L148: rnd-4_family-3855 | M148: Unknown | N148: -253 | O148: 821 | P148: 718 | Q148: 689636
B149: 282 | C149: 34.2 | D149: 0.8 | E149: 4 | F149: Chr_8 | G149: 1783495 | H149: 1783622 | I149: 127 | J149: (54,158,901) | K149: + | L149: rnd-4_family-346 | M149: Unknown | N149: 36 | O149: 159 | P149: -68 | Q149: 689637
B150: 363 | C150: 19.5 | D150: 3.9 | E150: 0 | F150: Chr_8 | G150: 1783622 | H150: 1783698 | I150: 76 | J150: (54,158,825) | K150: C | L150: rnd-1_family-67 | M150: Unknown | N150: -104 | O150: 80 | P150: 1 | Q150: 689638
B151: 425 | C151: 12.1 | D151: 1.5 | E151: 0 | F151: Chr_8 | G151: 1783779 | H151: 1783844 | I151: 65 | J151: (54,158,679) | K151: C | L151: rnd-1_family-197 | M151: Unknown | N151: 0 | O151: 155 | P151: 89 | Q151: 689639
B152: 739 | C152: 17.8 | D152: 2 | E152: 3.6 | F152: Chr_8 | G152: 1783833 | H152: 1784006 | I152: 173 | J152: (54,158,517) | K152: C | L152: rnd-1_family-197 | M152: Unknown | N152: -36 | O152: 171 | P152: 1 | Q152: 689640
B153: 235 | C153: 16.9 | D153: 0 | E153: 1.5 | F153: Chr_8 | G153: 1784751 | H153: 1784816 | I153: 65 | J153: (54,157,707) | K153: C | L153: rnd-5_family-7415 | M153: Unknown | N153: -67 | O153: 197 | P153: 133 | Q153: 689642
B154: 304 | C154: 16.9 | D154: 4.6 | E154: 0 | F154: Chr_8 | G154: 1785358 | H154: 1785422 | I154: 64 | J154: (54,157,101) | K154: + | L154: rnd-5_family-109 | M154: Unknown | N154: 35 | O154: 102 | P154: -76 | Q154: 689644
B155: 542 | C155: 28.9 | D155: 2.1 | E155: 1.6 | F155: Chr_8 | G155: 1786636 | H155: 1786821 | I155: 185 | J155: (54,155,702) | K155: + | L155: rnd-2_family-122 | M155: Unknown | N155: 31 | O155: 217 | P155: -3 | Q155: 689646
B156: 345 | C156: 17.5 | D156: 6.6 | E156: 4.9 | F156: Chr_8 | G156: 1786932 | H156: 1787068 | I156: 136 | J156: (54,155,455) | K156: C | L156: rnd-4_family-1568 | M156: Unknown | N156: -5 | O156: 209 | P156: 2 | Q156: 689647
B157: 675 | C157: 13.8 | D157: 16.1 | E157: 1 | F157: Chr_8 | G157: 1787071 | H157: 1787238 | I157: 167 | J157: (54,155,285) | K157: + | L157: rnd-3_family-1083 | M157: Unknown | N157: 1 | O157: 193 | P157: -309 | Q157: 689648
B158: 276 | C158: 23.6 | D158: 2.8 | E158: 1.8 | F158: Chr_8 | G158: 1787710 | H158: 1787817 | I158: 107 | J158: (54,154,706) | K158: + | L158: rnd-3_family-150 | M158: Unknown | N158: 165 | O158: 273 | P158: -72 | Q158: 689649
B159: 380 | C159: 18.8 | D159: 0 | E159: 0 | F159: Chr_8 | G159: 1787887 | H159: 1787955 | I159: 68 | J159: (54,154,568) | K159: C | L159: rnd-1_family-482 | M159: Unknown | N159: -7 | O159: 282 | P159: 214 | Q159: 689650 | R159: *
B160: 413 | C160: 13.8 | D160: 7.4 | E160: 8 | F160: Chr_8 | G160: 1789349 | H160: 1789511 | I160: 162 | J160: (54,153,012) | K160: C | L160: rnd-4_family-1568 | M160: Unknown | N160: -5 | O160: 209 | P160: 1 | Q160: 689651
B161: 530 | C161: 19.4 | D161: 13.5 | E161: 1.5 | F161: Chr_8 | G161: 1789513 | H161: 1789690 | I161: 177 | J161: (54,152,833) | K161: + | L161: rnd-3_family-1083 | M161: Unknown | N161: 1 | O161: 199 | P161: -303 | Q161: 689652
B162: 412 | C162: 17.5 | D162: 3.9 | E162: 5 | F162: Chr_8 | G162: 1789767 | H162: 1789868 | I162: 101 | J162: (54,152,655) | K162: + | L162: rnd-4_family-3096 | M162: Unknown | N162: 32 | O162: 132 | P162: 0 | Q162: 689653
B163: 260 | C163: 28.8 | D163: 4 | E163: 3.5 | F163: Chr_8 | G163: 1790025 | H163: 1790222 | I163: 197 | J163: (54,152,301) | K163: C | L163: rnd-4_family-2861 | M163: Unknown | N163: 0 | O163: 199 | P163: 1 | Q163: 689654
B164: 363 | C164: 27.6 | D164: 3.7 | E164: 2.6 | F164: Chr_8 | G164: 1790107 | H164: 1790296 | I164: 189 | J164: (54,152,227) | K164: + | L164: rnd-3_family-150 | M164: Unknown | N164: 82 | O164: 273 | P164: -72 | Q164: 689655
B165: 337 | C165: 14.3 | D165: 8.6 | E165: 0 | F165: Chr_8 | G165: 1790433 | H165: 1790502 | I165: 69 | J165: (54,152,021) | K165: C | L165: rnd-5_family-7944 | M165: Unknown | N165: -7 | O165: 76 | P165: 1 | Q165: 689656
B166: 933 | C166: 16.5 | D166: 3.1 | E166: 2.6 | F166: Chr_8 | G166: 1790511 | H166: 1790703 | I166: 192 | J166: (54,151,820) | K166: + | L166: rnd-1_family-442 | M166: Unknown | N166: 1 | O166: 194 | P166: 0 | Q166: 689657
B167: 574 | C167: 19.1 | D167: 0.9 | E167: 0 | F167: Chr_8 | G167: 1790618 | H167: 1790727 | I167: 109 | J167: (54,151,796) | K167: C | L167: rnd-1_family-513 | M167: Unknown | N167: 0 | O167: 121 | P167: 11 | Q167: 689658
B168: 322 | C168: 13.6 | D168: 2.5 | E168: 7.9 | F168: Chr_8 | G168: 1790736 | H168: 1790815 | I168: 79 | J168: (54,151,708) | K168: C | L168: rnd-5_family-7944 | M168: Unknown | N168: -7 | O168: 76 | P168: 1 | Q168: 689659
B169: 910 | C169: 10.3 | D169: 11.4 | E169: 1 | F169: Chr_8 | G169: 1790823 | H169: 1790998 | I169: 175 | J169: (54,151,525) | K169: + | L169: rnd-1_family-442 | M169: Unknown | N169: 1 | O169: 194 | P169: 0 | Q169: 689660
B170: 566 | C170: 10.6 | D170: 7.6 | E170: 0.9 | F170: Chr_8 | G170: 1790917 | H170: 1791021 | I170: 104 | J170: (54,151,502) | K170: C | L170: rnd-1_family-513 | M170: Unknown | N170: 0 | O170: 121 | P170: 10 | Q170: 689661 | R170: *
B171: 316 | C171: 20.7 | D171: 5.3 | E171: 12.9 | F171: Chr_8 | G171: 1800294 | H171: 1800544 | I171: 250 | J171: (54,141,979) | K171: + | L171: rnd-1_family-153 | M171: Unknown | N171: 83 | O171: 315 | P171: -3 | Q171: 689666
B172: 1454 | C172: 17.2 | D172: 11.5 | E172: 11.9 | F172: Chr_8 | G172: 1801770 | H172: 1802462 | I172: 692 | J172: (54,140,061) | K172: + | L172: rnd-4_family-575 | M172: Unknown | N172: 13 | O172: 703 | P172: -1 | Q172: 689669 | R172: *
B173: 1069 | C173: 13.7 | D173: 1.6 | E173: 19.8 | F173: Chr_8 | G173: 1802809 | H173: 1803118 | I173: 309 | J173: (54,139,405) | K173: + | L173: rnd-4_family-936 | M173: Unknown | N173: 1 | O173: 263 | P173: -29 | Q173: 689671
B174: 2617 | C174: 10.4 | D174: 1.5 | E174: 2.4 | F174: Chr_8 | G174: 1803226 | H174: 1803697 | I174: 471 | J174: (54,138,826) | K174: + | L174: rnd-1_family-81 | M174: Unknown | N174: 1 | O174: 468 | P174: 0 | Q174: 689672
B175: 1018 | C175: 12.6 | D175: 13 | E175: 4.4 | F175: Chr_8 | G175: 1803888 | H175: 1804095 | I175: 207 | J175: (54,138,428) | K175: + | L175: rnd-1_family-345 | M175: Unknown | N175: 20 | O175: 244 | P175: -31 | Q175: 689673 | R175: *
B176: 980 | C176: 10.2 | D176: 3.6 | E176: 6.7 | F176: Chr_8 | G176: 1804121 | H176: 1804426 | I176: 305 | J176: (54,138,097) | K176: C | L176: rnd-1_family-371 | M176: Unknown | N176: -202 | O176: 297 | P176: 1 | Q176: 689674
B177: 400 | C177: 12.9 | D177: 0 | E177: 1.6 | F177: Chr_8 | G177: 1804429 | H177: 1804491 | I177: 62 | J177: (54,138,032) | K177: + | L177: rnd-3_family-725 | M177: Unknown | N177: 1 | O177: 62 | P177: -5 | Q177: 689675
B178: 312 | C178: 16.9 | D178: 3.2 | E178: 10.3 | F178: Chr_8 | G178: 1804526 | H178: 1804650 | I178: 124 | J178: (54,137,873) | K178: C | L178: rnd-1_family-126 | M178: Unknown | N178: 0 | O178: 176 | P178: 60 | Q178: 689676
B179: 251 | C179: 14.5 | D179: 19.4 | E179: 0 | F179: Chr_8 | G179: 1805066 | H179: 1805127 | I179: 61 | J179: (54,137,396) | K179: + | L179: rnd-5_family-109 | M179: Unknown | N179: 35 | O179: 108 | P179: -70 | Q179: 689677 | R179: *
B180: 498 | C180: 27.5 | D180: 2.7 | E180: 2.7 | F180: Chr_8 | G180: 1806323 | H180: 1806509 | I180: 186 | J180: (54,136,014) | K180: + | L180: rnd-2_family-122 | M180: Unknown | N180: 31 | O180: 217 | P180: -3 | Q180: 689679
B181: 354 | C181: 16.6 | D181: 6.8 | E181: 4.6 | F181: Chr_8 | G181: 1806619 | H181: 1806755 | I181: 136 | J181: (54,135,768) | K181: C | L181: rnd-4_family-1568 | M181: Unknown | N181: -5 | O181: 209 | P181: 2 | Q181: 689680 | R181: *
B182: 542 | C182: 15.9 | D182: 13.9 | E182: 1.6 | F182: Chr_8 | G182: 1806758 | H182: 1806929 | I182: 171 | J182: (54,135,594) | K182: + | L182: rnd-3_family-1083 | M182: Unknown | N182: 1 | O182: 193 | P182: -309 | Q182: 689681
B183: 339 | C183: 29.1 | D183: 1.5 | E183: 3.5 | F183: Chr_8 | G183: 1807376 | H183: 1807578 | I183: 202 | J183: (54,134,945) | K183: C | L183: rnd-4_family-2861 | M183: Unknown | N183: 0 | O183: 199 | P183: 1 | Q183: 689682
B184: 456 | C184: 24.5 | D184: 3.7 | E184: 3.7 | F184: Chr_8 | G184: 1807452 | H184: 1807642 | I184: 190 | J184: (54,134,881) | K184: + | L184: rnd-3_family-150 | M184: Unknown | N184: 74 | O184: 264 | P184: -81 | Q184: 689683
B185: 378 | C185: 14.1 | D185: 7.5 | E185: 7.4 | F185: Chr_8 | G185: 1809200 | H185: 1809359 | I185: 159 | J185: (54,133,164) | K185: C | L185: rnd-4_family-1568 | M185: Unknown | N185: -5 | O185: 209 | P185: 1 | Q185: 689684
B186: 756 | C186: 16.4 | D186: 8.7 | E186: 1 | F186: Chr_8 | G186: 1809361 | H186: 1809545 | I186: 184 | J186: (54,132,978) | K186: + | L186: rnd-3_family-1083 | M186: Unknown | N186: 1 | O186: 199 | P186: -303 | Q186: 689685
B187: 448 | C187: 13.2 | D187: 5.4 | E187: 1 | F187: Chr_8 | G187: 1809625 | H187: 1809716 | I187: 91 | J187: (54,132,807) | K187: + | L187: rnd-4_family-3096 | M187: Unknown | N187: 36 | O187: 131 | P187: -1 | Q187: 689686
B188: 14238 | C188: 10.4 | D188: 1.8 | E188: 1 | F188: Chr_8 | G188: 1809872 | H188: 1812374 | I188: 2502 | J188: (54,130,149) | K188: C | L188: rnd-5_family-14323 | M188: Unknown | N188: 0 | O188: 2522 | P188: 1 | Q188: 689687 | R188: *
B189: 520 | C189: 25.5 | D189: 1.5 | E189: 2 | F189: Chr_8 | G189: 1816345 | H189: 1816544 | I189: 199 | J189: (54,125,979) | K189: C | L189: rnd-4_family-2861 | M189: Unknown | N189: 0 | O189: 199 | P189: 1 | Q189: 689692 | R189: *
B190: 389 | C190: 26.2 | D190: 2.6 | E190: 2.6 | F190: Chr_8 | G190: 1816427 | H190: 1816618 | I190: 191 | J190: (54,125,905) | K190: + | L190: rnd-3_family-150 | M190: Unknown | N190: 82 | O190: 273 | P190: -72 | Q190: 689693
B191: 491 | C191: 10.5 | D191: 0 | E191: 0 | F191: Chr_8 | G191: 1816749 | H191: 1816824 | I191: 75 | J191: (54,125,699) | K191: C | L191: rnd-5_family-7944 | M191: Unknown | N191: -7 | O191: 76 | P191: 1 | Q191: 689694
B192: 1463 | C192: 8.3 | D192: 1.4 | E192: 0.2 | F192: Chr_8 | G192: 1816832 | H192: 1816938 | I192: 106 | J192: (54,125,585) | K192: + | L192: rnd-1_family-442 | M192: Unknown | N192: 1 | O192: 194 | P192: 0 | Q192: 689695
B193: 713 | C193: 8.3 | D193: 8.3 | E193: 0 | F193: Chr_8 | G193: 1816939 | H193: 1817046 | I193: 107 | J193: (54,125,477) | K193: C | L193: rnd-1_family-513 | M193: Unknown | N193: 0 | O193: 121 | P193: 5 | Q193: 689696
B194: 407 | C194: 6.6 | D194: 0 | E194: 7.9 | F194: Chr_8 | G194: 1817059 | H194: 1817140 | I194: 81 | J194: (54,125,383) | K194: C | L194: rnd-5_family-7944 | M194: Unknown | N194: -7 | O194: 76 | P194: 1 | Q194: 689697
B195: 1326 | C195: 10.7 | D195: 5.7 | E195: 0.7 | F195: Chr_8 | G195: 1817061 | H195: 1817331 | I195: 270 | J195: (54,125,192) | K195: + | L195: rnd-1_family-442 | M195: Unknown | N195: 1 | O195: 194 | P195: 0 | Q195: 689698
B196: 891 | C196: 6 | D196: 0 | E196: 0 | F196: Chr_8 | G196: 1817245 | H196: 1817361 | I196: =H196-G196 -> 116 | J196: (54,125,162) | K196: C | L196: rnd-1_family-513 | M196: Unknown | N196: 0 | O196: 121 | P196: 5 | Q196: 689699
B197: 1326 | C197: 16.3 | D197: 6.7 | E197: 13.4 | F197: Chr_8 | G197: 1821330 | H197: 1821852 | I197: 522 | J197: (54,120,671) | K197: + | L197: rnd-4_family-575 | M197: Unknown | N197: 13 | O197: 504 | P197: -200 | Q197: 689702
B198: 377 | C198: 14.5 | D198: 7.4 | E198: 8 | F198: Chr_8 | G198: 1823661 | H198: 1823823 | I198: 162 | J198: (54,118,700) | K198: C | L198: rnd-4_family-1568 | M198: Unknown | N198: -5 | O198: 209 | P198: 1 | Q198: 689705
B199: 584 | C199: 19.3 | D199: 12.9 | E199: 1 | F199: Chr_8 | G199: 1823825 | H199: 1824002 | I199: 177 | J199: (54,118,521) | K199: + | L199: rnd-3_family-1083 | M199: Unknown | N199: 1 | O199: 199 | P199: -303 | Q199: 689706
B200: 447 | C200: 13.2 | D200: 5.4 | E200: 1 | F200: Chr_8 | G200: 1824082 | H200: 1824173 | I200: 91 | J200: (54,118,350) | K200: + | L200: rnd-4_family-3096 | M200: Unknown | N200: 36 | O200: 131 | P200: -1 | Q200: 689707
B201: 479 | C201: 27 | D201: 1.5 | E201: 2 | F201: Chr_8 | G201: 1824330 | H201: 1824529 | I201: 199 | J201: (54,117,994) | K201: C | L201: rnd-4_family-2861 | M201: Unknown | N201: 0 | O201: 199 | P201: 1 | Q201: 689708
... 130 more rows

Sheet Table S12
B2: SW score | C2: perc div. | D2: perc del. | E2: perc ins. | F2: query sequence | G2: position in query | L2: matching repeat | M2: repeat class/family | N2: position in repeat | Q2: ID | T2: repeat class/family | U2: number of elements | V2: Percentage
G3: begin | H3: end | J3: (left) | N3: begin | O3: end | P3: (left) | T3: DNA | U3: 1 | V3: =U3/168 -> 0.6%
B4: 20 | C4: 11.1 | D4: 0 | E4: 0 | F4: lcl|unitig_8 | G4: 5701865 | H4: 5701893 | I4: =H4-G4 -> 28 | J4: -1120987 | K4: + | L4: (T)n | M4: Simple_repeat | N4: 1 | O4: 29 | P4: 0 | Q4: 57028 | T4: tRNA | U4: 1 | V4: =U4/168 -> 0.6%
B5: 1800 | C5: 19.5 | D5: 3 | E5: 3.9 | F5: lcl|unitig_8 | G5: 5701945 | H5: 5702520 | I5: 575 | J5: -1120360 | K5: + | L5: rnd-5_family-8948 | M5: Unknown | N5: 1 | O5: 571 | P5: -722 | Q5: 57029 | T5: DNA/PIF-Harbinger | U5: 2 | V5: 1.2%
B6: 1261 | C6: 23.8 | D6: 1.9 | E6: 3.8 | F6: lcl|unitig_8 | G6: 5702596 | H6: 5703027 | I6: 431 | J6: -1119853 | K6: + | L6: rnd-5_family-8948 | M6: Unknown | N6: 628 | O6: 1051 | P6: -242 | Q6: 57029 | T6: LTR/Gypsy | U6: 2 | V6: 1.2%
B7: 227 | C7: 16.7 | D7: 5.9 | E7: 1.1 | F7: lcl|unitig_8 | G7: 5704069 | H7: 5704153 | I7: 84 | J7: -1118727 | K7: + | L7: rnd-4_family-430 | M7: Unknown | N7: 47 | O7: 135 | P7: -104 | Q7: 57030 | R7: * | T7: DNA/hAT-Ac | U7: 5 | V7: 3.0%
B8: 243 | C8: 17.4 | D8: 0 | E8: 13.9 | F8: lcl|unitig_8 | G8: 5704147 | H8: 5704293 | I8: 146 | J8: -1118587 | K8: C | L8: rnd-5_family-1084 | M8: Unknown | N8: -393 | O8: 203 | P8: 75 | Q8: 57031 | T8: LTR/Copia | U8: 5 | V8: 3.0%
B9: 248 | C9: 21.1 | D9: 0 | E9: 7.4 | F9: lcl|unitig_8 | G9: 5705224 | H9: 5705310 | I9: 86 | J9: -1117570 | K9: C | L9: rnd-5_family-158 | M9: Unknown | N9: -6 | O9: 88 | P9: 8 | Q9: 57032 | T9: Low_complexity | U9: 7 | V9: 4.2%
B10: 395 | C10: 22.2 | D10: 6.3 | E10: 6.9 | F10: lcl|unitig_8 | G10: 5707569 | H10: 5707742 | I10: 173 | J10: -1115138 | K10: + | L10: rnd-3_family-257 | M10: Unknown | N10: 388 | O10: 560 | P10: 0 | Q10: 57033 | T10: Simple_repeat | U10: 38 | V10: 22.6%
B11: 576 | C11: 26.1 | D11: 6.7 | E11: 7 | F11: lcl|unitig_8 | G11: 5707923 | H11: 5708252 | I11: 329 | J11: -1114628 | K11: C | L11: rnd-3_family-649 | M11: Unknown | N11: 0 | O11: 341 | P11: 13 | Q11: 57034 | T11: Unknown | U11: 107 | V11: 63.7%
B12: 589 | C12: 21.8 | D12: 13.6 | E12: 1.5 | F12: lcl|unitig_8 | G12: 5708269 | H12: 5708445 | I12: 176 | J12: -1114435 | K12: C | L12: rnd-5_family-43 | M12: DNA/hAT-Ac | N12: -1 | O12: 201 | P12: 4 | Q12: 57035 | U12: =SUM(U3:U11) -> 168
B13: 2547 | C13: 24.1 | D13: 4.2 | E13: 5.8 | F13: lcl|unitig_8 | G13: 5708521 | H13: 5709645 | I13: 1124 | J13: -1113235 | K13: + | L13: rnd-5_family-8948 | M13: Unknown | N13: 12 | O13: 1119 | P13: -174 | Q13: 57036
B14: 3319 | C14: 24.5 | D14: 2.7 | E14: 3.6 | F14: lcl|unitig_85 | G14: 382951 | H14: 384085 | I14: 1134 | J14: -355214 | K14: + | L14: rnd-5_family-8948 | M14: Unknown | N14: 2 | O14: 1126 | P14: -167 | Q14: 59257
B15: 650 | C15: 15.1 | D15: 7.8 | E15: 0 | F15: lcl|unitig_85 | G15: 384808 | H15: 384973 | I15: 165 | J15: -354326 | K15: C | L15: rnd-3_family-257 | M15: Unknown | N15: -381 | O15: 179 | P15: 1 | Q15: 59258
B16: 2611 | C16: 20.8 | D16: 8.2 | E16: 1.9 | F16: lcl|unitig_85 | G16: 386129 | H16: 387289 | I16: 1160 | J16: -352010 | K16: + | L16: rnd-5_family-8948 | M16: Unknown | N16: 1 | O16: 1234 | P16: -59 | Q16: 59259
B17: 610 | C17: 19.1 | D17: 5.6 | E17: 0 | F17: lcl|unitig_85 | G17: 387361 | H17: 387486 | I17: 125 | J17: -351813 | K17: + | L17: rnd-1_family-144 | M17: Unknown | N17: 96 | O17: 228 | P17: 0 | Q17: 59260
B18: 12 | C18: 4.8 | D18: 4.5 | E18: 0 | F18: lcl|unitig_85 | G18: 387541 | H18: 387562 | I18: 21 | J18: -351737 | K18: + | L18: (CAAA)n | M18: Simple_repeat | N18: 1 | O18: 23 | P18: 0 | Q18: 59261
B19: 12 | C19: 12 | D19: 7.9 | E19: 2.5 | F19: lcl|unitig_85 | G19: 388503 | H19: 388540 | I19: 37 | J19: -350759 | K19: + | L19: (TGTTGTG)n | M19: Simple_repeat | N19: 1 | O19: 40 | P19: 0 | Q19: 59262
B20: 2274 | C20: 23.1 | D20: 2.9 | E20: 2.7 | F20: lcl|unitig_85 | G20: 388563 | H20: 389747 | I20: 1184 | J20: -349552 | K20: + | L20: rnd-5_family-8948 | M20: Unknown | N20: 1 | O20: 1252 | P20: -41 | Q20: 59263
B21: 13 | C21: 22.1 | D21: 6.4 | E21: 0 | F21: lcl|unitig_85 | G21: 390625 | H21: 390671 | I21: 46 | J21: -348628 | K21: + | L21: (TTC)n | M21: Simple_repeat | N21: 1 | O21: 50 | P21: 0 | Q21: 59264
B22: 3879 | C22: 22.5 | D22: 1.9 | E22: 5.3 | F22: lcl|unitig_85 | G22: 391230 | H22: 392388 | I22: 1158 | J22: -346911 | K22: + | L22: rnd-5_family-8948 | M22: Unknown | N22: 1 | O22: 1121 | P22: -172 | Q22: 59265
B23: 274 | C23: 30.9 | D23: 0 | E23: 0 | F23: lcl|unitig_578 | G23: 2572896 | H23: 2572989 | I23: 93 | J23: -974460 | K23: C | L23: rnd-5_family-8948 | M23: Unknown | N23: -1146 | O23: 147 | P23: 54 | Q23: 32525
B24: 488 | C24: 16.8 | D24: 0 | E24: 0 | F24: lcl|unitig_578 | G24: 2583350 | H24: 2583456 | I24: 106 | J24: -963993 | K24: + | L24: rnd-5_family-223 | M24: Unknown | N24: 36 | O24: 142 | P24: -46 | Q24: 32526
B25: 2863 | C25: 22.5 | D25: 2.8 | E25: 5.3 | F25: lcl|unitig_578 | G25: 2583874 | H25: 2584858 | I25: 984 | J25: -962591 | K25: C | L25: rnd-5_family-8948 | M25: Unknown | N25: -319 | O25: 974 | P25: 13 | Q25: 32527
B26: 16 | C26: 28.5 | D26: 0 | E26: 5.6 | F26: lcl|unitig_578 | G26: 2584912 | H26: 2584986 | I26: 74 | J26: -962463 | K26: + | L26: A-rich | M26: Low_complexity | N26: 1 | O26: 71 | P26: 0 | Q26: 32528
B27: 15 | C27: 20 | D27: 0 | E27: 0 | F27: lcl|unitig_578 | G27: 2597392 | H27: 2597420 | I27: 28 | J27: -950029 | K27: + | L27: A-rich | M27: Low_complexity | N27: 1 | O27: 29 | P27: 0 | Q27: 32529
B28: 282 | C28: 22.8 | D28: 0 | E28: 1.8 | F28: lcl|unitig_578 | G28: 2602991 | H28: 2603048 | I28: 57 | J28: -944401 | K28: C | L28: rnd-4_family-734 | M28: Unknown | N28: -84 | O28: 376 | P28: 320 | Q28: 32530
B29: 275 | C29: 24.5 | D29: 5.3 | E29: 0 | F29: lcl|unitig_578 | G29: 2603048 | H29: 2603141 | I29: 93 | J29: -944308 | K29: C | L29: rnd-4_family-734 | M29: Unknown | N29: -241 | O29: 219 | P29: 121 | Q29: 32530 | R29: *
B30: 16 | C30: 18.3 | D30: 2.2 | E30: 2.2 | F30: lcl|unitig_578 | G30: 2604724 | H30: 2604769 | I30: 45 | J30: -942680 | K30: + | L30: (GGCGGT)n | M30: Simple_repeat | N30: 1 | O30: 46 | P30: 0 | Q30: 32531
B31: 14 | C31: 9 | D31: 5.1 | E31: 5.1 | F31: lcl|unitig_578 | G31: 2605002 | H31: 2605040 | I31: 38 | J31: -942409 | K31: + | L31: (TATGAA)n | M31: Simple_repeat | N31: 1 | O31: 39 | P31: 0 | Q31: 32532
B32: 18 | C32: 8.8 | D32: 5.6 | E32: 0 | F32: lcl|unitig_578 | G32: 2605338 | H32: 2605373 | I32: 35 | J32: -942076 | K32: + | L32: (TTCGGG)n | M32: Simple_repeat | N32: 1 | O32: 38 | P32: 0 | Q32: 32533
B33: 14 | C33: 15.9 | D33: 2 | E33: 8.5 | F33: lcl|unitig_578 | G33: 2607053 | H33: 2607102 | I33: 49 | J33: -940347 | K33: + | L33: (AATT)n | M33: Simple_repeat | N33: 1 | O33: 47 | P33: 0 | Q33: 32534
B34: 769 | C34: 17 | D34: 7.4 | E34: 1.3 | F34: lcl|unitig_578 | G34: 2607152 | H34: 2607465 | I34: 313 | J34: -939984 | K34: C | L34: rnd-1_family-210 | M34: Unknown | N34: -7 | O34: 508 | P34: 157 | Q34: 32535
B35: 14 | C35: 14.9 | D35: 5.4 | E35: 0 | F35: lcl|unitig_578 | G35: 2611400 | H35: 2611436 | I35: 36 | J35: -936013 | K35: + | L35: (GGTGGA)n | M35: Simple_repeat | N35: 1 | O35: 39 | P35: 0 | Q35: 32536
B36: 16 | C36: 23.7 | D36: 0 | E36: 3.9 | F36: lcl|unitig_578 | G36: 2611607 | H36: 2611659 | I36: 52 | J36: -935790 | K36: + | L36: (GCAGAG)n | M36: Simple_repeat | N36: 1 | O36: 51 | P36: 0 | Q36: 32537
B37: 298 | C37: 20.1 | D37: 1.6 | E37: 6.8 | F37: lcl|unitig_578 | G37: 2612899 | H37: 2613021 | I37: 122 | J37: -934428 | K37: C | L37: rnd-3_family-394 | M37: Unknown | N37: -1 | O37: 120 | P37: 4 | Q37: 32538
B38: 27 | C38: 8.2 | D38: 0 | E38: 0 | F38: lcl|unitig_578 | G38: 2618047 | H38: 2618085 | I38: 38 | J38: -929364 | K38: + | L38: (TTTAGGG)n | M38: Simple_repeat | N38: 1 | O38: 39 | P38: 0 | Q38: 32539
B39: 226 | C39: 29.8 | D39: 2.4 | E39: 2.4 | F39: lcl|unitig_578 | G39: 2618537 | H39: 2618663 | I39: 126 | J39: -928786 | K39: + | L39: rnd-5_family-623 | M39: DNA | N39: 1500 | O39: 1626 | P39: -10879 | Q39: 32540
B40: 12 | C40: 28.4 | D40: 3.3 | E40: 1.6 | F40: lcl|unitig_578 | G40: 2618803 | H40: 2618863 | I40: 60 | J40: -928586 | K40: + | L40: (GGAGCA)n | M40: Simple_repeat | N40: 1 | O40: 62 | P40: 0 | Q40: 32541
B41: 316 | C41: 13.8 | D41: 1.7 | E41: 0 | F41: lcl|unitig_578 | G41: 2619550 | H41: 2619607 | I41: 57 | J41: -927842 | K41: + | L41: rnd-1_family-262 | M41: tRNA | N41: 8 | O41: 66 | P41: -7 | Q41: 32542
B42: 18 | C42: 0 | D42: 0 | E42: 0 | F42: lcl|unitig_578 | G42: 2619699 | H42: 2619718 | I42: 19 | J42: -927731 | K42: + | L42: (T)n | M42: Simple_repeat | N42: 1 | O42: 20 | P42: 0 | Q42: 32543
B43: 18 | C43: 15.1 | D43: 0 | E43: 2.6 | F43: lcl|unitig_578 | G43: 2624630 | H43: 2624668 | I43: 38 | J43: -922781 | K43: + | L43: A-rich | M43: Low_complexity | N43: 1 | O43: 38 | P43: 0 | Q43: 32544
B44: 14 | C44: 12.7 | D44: 0 | E44: 0 | F44: lcl|unitig_578 | G44: 2626600 | H44: 2626625 | I44: 25 | J44: -920824 | K44: + | L44: (AGA)n | M44: Simple_repeat | N44: 1 | O44: 26 | P44: 0 | Q44: 32545
B45: 12 | C45: 21.7 | D45: 0 | E45: 0 | F45: lcl|unitig_578 | G45: 2626765 | H45: 2626796 | I45: 31 | J45: -920653 | K45: + | L45: (TTATT)n | M45: Simple_repeat | N45: 1 | O45: 32 | P45: 0 | Q45: 32546
B46: 19 | C46: 12.7 | D46: 5.3 | E46: 5.3 | F46: lcl|unitig_578 | G46: 2626906 | H46: 2626962 | I46: 56 | J46: -920487 | K46: + | L46: (ATT)n | M46: Simple_repeat | N46: 1 | O46: 57 | P46: 0 | Q46: 32547
B47: 12 | C47: 29.6 | D47: 0 | E47: 0 | F47: lcl|unitig_578 | G47: 2632301 | H47: 2632309 | I47: 8 | J47: -915140 | K47: + | L47: (TCTTCA)n | M47: Simple_repeat | N47: 1 | O47: 44 | P47: 0 | Q47: 32548
B48: 13 | C48: 23.5 | D48: 0 | E48: 0 | F48: lcl|unitig_578 | G48: 2632310 | H48: 2632344 | I48: 34 | J48: -915105 | K48: + | L48: (TCA)n | M48: Simple_repeat | N48: 1 | O48: 35 | P48: 0 | Q48: 32549
B49: 13 | C49: 14.8 | D49: 0 | E49: 3.2 | F49: lcl|unitig_578 | G49: 2633983 | H49: 2634014 | I49: 31 | J49: -913435 | K49: + | L49: (ATTGA)n | M49: Simple_repeat | N49: 1 | O49: 31 | P49: 0 | Q49: 32550
B50: 18 | C50: 4.7 | D50: 0 | E50: 0 | F50: lcl|unitig_578 | G50: 2634610 | H50: 2634631 | I50: 21 | J50: -912818 | K50: + | L50: (T)n | M50: Simple_repeat | N50: 1 | O50: 22 | P50: 0 | Q50: 32551
B51: 271 | C51: 16.5 | D51: 3.8 | E51: 0 | F51: lcl|unitig_578 | G51: 2637597 | H51: 2637675 | I51: 78 | J51: -909774 | K51: C | L51: rnd-4_family-430 | M51: Unknown | N51: -155 | O51: 84 | P51: 3 | Q51: 32552
B52: 243 | C52: 12 | D52: 13.2 | E52: 1.2 | F52: lcl|unitig_578 | G52: 2642581 | H52: 2642656 | I52: 75 | J52: -904793 | K52: C | L52: rnd-1_family-236 | M52: Unknown | N52: 0 | O52: 85 | P52: 1 | Q52: 32553
B53: 22 | C53: 19.5 | D53: 3.4 | E53: 8.2 | F53: lcl|unitig_578 | G53: 2643163 | H53: 2643251 | I53: 88 | J53: -904198 | K53: + | L53: (AT)n | M53: Simple_repeat | N53: 1 | O53: 85 | P53: 0 | Q53: 32554
B54: 629 | C54: 19.7 | D54: 1.5 | E54: 1.5 | F54: lcl|unitig_578 | G54: 2648509 | H54: 2648709 | I54: 200 | J54: -898740 | K54: + | L54: rnd-4_family-467 | M54: Unknown | N54: 73 | O54: 273 | P54: -31 | Q54: 32555
B55: 257 | C55: 16.7 | D55: 0 | E55: 0 | F55: lcl|unitig_578 | G55: 2648717 | H55: 2648764 | I55: 47 | J55: -898685 | K55: + | L55: rnd-1_family-236 | M55: Unknown | N55: 33 | O55: 80 | P55: -5 | Q55: 32556
B56: 359 | C56: 21.2 | D56: 0.9 | E56: 0 | F56: lcl|unitig_578 | G56: 2655155 | H56: 2655267 | I56: 112 | J56: -892182 | K56: C | L56: rnd-3_family-257 | M56: Unknown | N56: -382 | O56: 178 | P56: 65 | Q56: 32557
B57: 24 | C57: 24.8 | D57: 4.9 | E57: 0 | F57: lcl|unitig_578 | G57: 2656735 | H57: 2656816 | I57: 81 | J57: -890633 | K57: + | L57: (ATA)n | M57: Simple_repeat | N57: 1 | O57: 86 | P57: 0 | Q57: 32558
B58: 14 | C58: 4.9 | D58: 0 | E58: 0 | F58: lcl|unitig_578 | G58: 2658810 | H58: 2658830 | I58: 20 | J58: -888619 | K58: + | L58: (TGT)n | M58: Simple_repeat | N58: 1 | O58: 21 | P58: 0 | Q58: 32559
B59: 235 | C59: 29.2 | D59: 0 | E59: 0 | F59: lcl|unitig_578 | G59: 2659781 | H59: 2659852 | I59: 71 | J59: -887597 | K59: C | L59: rnd-5_family-99 | M59: Unknown | N59: -84 | O59: 192 | P59: 121 | Q59: 32560
B60: 347 | C60: 23.9 | D60: 2.6 | E60: 2.6 | F60: lcl|unitig_578 | G60: 2660477 | H60: 2660592 | I60: 115 | J60: -886857 | K60: + | L60: rnd-3_family-239 | M60: Unknown | N60: 163 | O60: 278 | P60: -194 | Q60: 32561
B61: 338 | C61: 22.5 | D61: 0 | E61: 2.2 | F61: lcl|unitig_578 | G61: 2660796 | H61: 2660912 | I61: 116 | J61: -886537 | K61: + | L61: rnd-1_family-71 | M61: Unknown | N61: 2 | O61: 78 | P61: -6 | Q61: 32562
B62: 302 | C62: 14.1 | D62: 1.4 | E62: 0 | F62: lcl|unitig_578 | G62: 2665571 | H62: 2665641 | I62: 70 | J62: -881808 | K62: + | L62: rnd-1_family-236 | M62: Unknown | N62: 10 | O62: 81 | P62: -4 | Q62: 32563
B63: 16 | C63: 0 | D63: 0 | E63: 0 | F63: lcl|unitig_578 | G63: 2665717 | H63: 2665733 | I63: 16 | J63: -881716 | K63: + | L63: (T)n | M63: Simple_repeat | N63: 1 | O63: 17 | P63: 0 | Q63: 32564
B64: 234 | C64: 19.4 | D64: 8.3 | E64: 0 | F64: lcl|unitig_578 | G64: 2666800 | H64: 2666871 | I64: 71 | J64: -880578 | K64: + | L64: rnd-4_family-430 | M64: Unknown | N64: 162 | O64: 239 | P64: 0 | Q64: 32565
B65: 44 | C65: 0 | D65: 0 | E65: 0 | F65: lcl|unitig_578 | G65: 2666947 | H65: 2666984 | I65: 37 | J65: -880465 | K65: + | L65: (AT)n | M65: Simple_repeat | N65: 1 | O65: 38 | P65: 0 | Q65: 32566
B66: 555 | C66: 25.8 | D66: 6.9 | E66: 6.4 | F66: lcl|unitig_578 | G66: 2667015 | H66: 2667262 | I66: 247 | J66: -880187 | K66: C | L66: rnd-4_family-473 | M66: Unknown | N66: -11 | O66: 513 | P66: 77 | Q66: 32567
B67: 13 | C67: 20.4 | D67: 0 | E67: 4.9 | F67: lcl|unitig_578 | G67: 2674888 | H67: 2674930 | I67: 42 | J67: -872519 | K67: + | L67: A-rich | M67: Low_complexity | N67: 1 | O67: 41 | P67: 0 | Q67: 32568
B68: 271 | C68: 21.8 | D68: 0 | E68: 0 | F68: lcl|unitig_578 | G68: 2675050 | H68: 2675127 | I68: =H68-G68 -> 77 | J68: -872322 | K68: C | L68: rnd-5_family-482 | M68: Unknown | N68: -49 | O68: 295 | P68: 218 | Q68: 32569
B69: 1150 | C69: 22.9 | D69: 9 | E69: 1.6 | F69: lcl|unitig_578 | G69: 2675972 | H69: 2676491 | I69: 519 | J69: -870958 | K69: + | L69: rnd-3_family-257 | M69: Unknown | N69: 3 | O69: 560 | P69: 0 | Q69: 32570
B70: 16 | C70: 0 | D70: 0 | E70: 0 | F70: lcl|unitig_578 | G70: 2676564 | H70: 2676581 | I70: 17 | J70: -870868 | K70: + | L70: (T)n | M70: Simple_repeat | N70: 1 | O70: 18 | P70: 0 | Q70: 32571
B71: 250 | C71: 30.1 | D71: 1.6 | E71: 2.4 | F71: lcl|unitig_578 | G71: 2677556 | H71: 2677681 | I71: 125 | J71: -869768 | K71: C | L71: rnd-4_family-790 | M71: Unknown | N71: -257 | O71: 125 | P71: 1 | Q71: 32572
B72: 394 | C72: 16.3 | D72: 0 | E72: 0 | F72: lcl|unitig_578 | G72: 2681026 | H72: 2681124 | I72: 98 | J72: -866325 | K72: + | L72: rnd-1_family-236 | M72: Unknown | N72: 7 | O72: 141 | P72: 0 | Q72: 32573
B73: 371 | C73: 18.3 | D73: 2.1 | E73: 1.4 | F73: lcl|unitig_578 | G73: 2681908 | H73: 2682051 | I73: 143 | J73: -865398 | K73: + | L73: rnd-5_family-223 | M73: Unknown | N73: 38 | O73: 182 | P73: -6 | Q73: 32574
B74: 456 | C74: 18.4 | D74: 8.9 | E74: 0.6 | F74: lcl|unitig_578 | G74: 2684549 | H74: 2684716 | I74: 167 | J74: -862733 | K74: C | L74: rnd-5_family-1070 | M74: Unknown | N74: -4 | O74: 169 | P74: 2 | Q74: 32575
B75: 17 | C75: 22.2 | D75: 3.9 | E75: 0 | F75: lcl|unitig_578 | G75: 2685343 | H75: 2685394 | I75: 51 | J75: -862055 | K75: + | L75: (CTGCAT)n | M75: Simple_repeat | N75: 1 | O75: 54 | P75: 0 | Q75: 32576
B76: 12 | C76: 15.7 | D76: 2.6 | E76: 5.3 | F76: lcl|unitig_578 | G76: 2686474 | H76: 2686512 | I76: 38 | J76: -860937 | K76: + | L76: (ATTAGTG)n | M76: Simple_repeat | N76: 1 | O76: 38 | P76: 0 | Q76: 32577
B77: 242 | C77: 11.3 | D77: 15.1 | E77: 3 | F77: lcl|unitig_578 | G77: 2686703 | H77: 2686821 | I77: 118 | J77: -860628 | K77: C | L77: rnd-4_family-427 | M77: Unknown | N77: -325 | O77: 166 | P77: 34 | Q77: 32578
B78: 16 | C78: 25.5 | D78: 3.9 | E78: 3.9 | F78: lcl|unitig_578 | G78: 2686973 | H78: 2686993 | I78: 20 | J78: -860456 | K78: + | L78: (TCCTC)n | M78: Simple_repeat | N78: 1 | O78: 73 | P78: 0 | Q78: 32579
B79: 21 | C79: 15.8 | D79: 3.9 | E79: 1.9 | F79: lcl|unitig_578 | G79: 2686994 | H79: 2687045 | I79: 51 | J79: -860404 | K79: + | L79: (TCT)n | M79: Simple_repeat | N79: 1 | O79: 53 | P79: 0 | Q79: 32580
B80: 442 | C80: 30.7 | D80: 1.4 | E80: 2.4 | F80: lcl|unitig_578 | G80: 2689572 | H80: 2689778 | I80: 206 | J80: -857671 | K80: C | L80: rnd-5_family-417 | M80: LTR/Copia | N80: -1791 | O80: 205 | P80: 1 | Q80: 32581
B81: 404 | C81: 12.2 | D81: 0 | E81: 0 | F81: lcl|unitig_578 | G81: 2689999 | H81: 2690091 | I81: 92 | J81: -857358 | K81: + | L81: rnd-1_family-236 | M81: Unknown | N81: 1 | O81: 112 | P81: -29 | Q81: 32582
B82: 609 | C82: 15.5 | D82: 3 | E82: 5.8 | F82: lcl|unitig_578 | G82: 2690300 | H82: 2690566 | I82: 266 | J82: -856883 | K82: + | L82: rnd-3_family-27 | M82: Unknown | N82: 82 | O82: 341 | P82: -72 | Q82: 32583
B83: 381 | C83: 17.6 | D83: 5.3 | E83: 10.3 | F83: lcl|unitig_578 | G83: 2690677 | H83: 2690828 | I83: 151 | J83: -856621 | K83: + | L83: rnd-5_family-3374 | M83: Unknown | N83: 1930 | O83: 2074 | P83: -352 | Q83: 32584
B84: 12 | C84: 25.8 | D84: 0 | E84: 0 | F84: lcl|unitig_578 | G84: 2692102 | H84: 2692138 | I84: 36 | J84: -855311 | K84: + | L84: A-rich | M84: Low_complexity | N84: 1 | O84: 37 | P84: 0 | Q84: 32585
B85: 479 | C85: 13.9 | D85: 0.7 | E85: 6.9 | F85: lcl|unitig_578 | G85: 2692422 | H85: 2692560 | I85: 138 | J85: -854889 | K85: C | L85: rnd-5_family-198 | M85: Unknown | N85: -31 | O85: 524 | P85: 394 | Q85: 32586
B86: 252 | C86: 13.8 | D86: 2.5 | E86: 0 | F86: lcl|unitig_578 | G86: 2694538 | H86: 2694617 | I86: 79 | J86: -852832 | K86: + | L86: rnd-3_family-257 | M86: Unknown | N86: 93 | O86: 174 | P86: -386 | Q86: 32587
B87: 432 | C87: 22.2 | D87: 1.2 | E87: 0 | F87: lcl|unitig_578 | G87: 2696994 | H87: 2697164 | I87: 170 | J87: -850285 | K87: + | L87: rnd-3_family-257 | M87: Unknown | N87: 3 | O87: 175 | P87: -385 | Q87: 32588
B88: 13 | C88: 11.6 | D88: 0 | E88: 6.7 | F88: lcl|unitig_578 | G88: 2697478 | H88: 2697509 | I88: 31 | J88: -849940 | K88: + | L88: (AATT)n | M88: Simple_repeat | N88: 1 | O88: 30 | P88: 0 | Q88: 32589
B89: 16 | C89: 9.3 | D89: 0 | E89: 0 | F89: lcl|unitig_578 | G89: 2697747 | H89: 2697769 | I89: 22 | J89: -849680 | K89: + | L89: (A)n | M89: Simple_repeat | N89: 1 | O89: 23 | P89: 0 | Q89: 32590
B90: 13 | C90: 21.2 | D90: 4.3 | E90: 2.1 | F90: lcl|unitig_578 | G90: 2697927 | H90: 2697972 | I90: 45 | J90: -849477 | K90: + | L90: (TAT)n | M90: Simple_repeat | N90: 1 | O90: 47 | P90: 0 | Q90: 32591
B91: 3354 | C91: 21.3 | D91: 2.3 | E91: 4.2 | F91: lcl|unitig_578 | G91: 2700653 | H91: 2701686 | I91: 1033 | J91: -845763 | K91: + | L91: rnd-5_family-8948 | M91: Unknown | N91: 1 | O91: 1015 | P91: -278 | Q91: 32592
B92: 806 | C92: 13.3 | D92: 4.6 | E92: 1.3 | F92: lcl|unitig_578 | G92: 2702087 | H92: 2702390 | I92: 303 | J92: -845059 | K92: + | L92: rnd-5_family-3261 | M92: Unknown | N92: 2 | O92: 315 | P92: -95 | Q92: 32593
B93: 15 | C93: 7.3 | D93: 6.9 | E93: 0 | F93: lcl|unitig_578 | G93: 2702555 | H93: 2702583 | I93: 28 | J93: -844866 | K93: + | L93: (ATT)n | M93: Simple_repeat | N93: 1 | O93: 31 | P93: 0 | Q93: 32594
B94: 14 | C94: 4.9 | D94: 0 | E94: 0 | F94: lcl|unitig_578 | G94: 2702748 | H94: 2702768 | I94: 20 | J94: -844681 | K94: + | L94: (CGGC)n | M94: Simple_repeat | N94: 1 | O94: 21 | P94: 0 | Q94: 32595
B95: 233 | C95: 17.8 | D95: 3.2 | E95: 5.3 | F95: lcl|unitig_578 | G95: 2705169 | H95: 2705322 | I95: 153 | J95: -842127 | K95: + | L95: rnd-4_family-427 | M95: Unknown | N95: 40 | O95: 190 | P95: -301 | Q95: 32596
B96: 680 | C96: 17.4 | D96: 10.3 | E96: 0 | F96: lcl|unitig_578 | G96: 2705364 | H96: 2705576 | I96: 212 | J96: -841873 | K96: C | L96: rnd-4_family-79 | M96: Unknown | N96: -90 | O96: 339 | P96: 105 | Q96: 32597
B97: 2360 | C97: 25.5 | D97: 3.4 | E97: 5.1 | F97: lcl|unitig_578 | G97: 2705666 | H97: 2706675 | I97: 1009 | J97: -840774 | K97: + | L97: rnd-5_family-8948 | M97: Unknown | N97: 1 | O97: 993 | P97: -300 | Q97: 32598
B98: 580 | C98: 24.4 | D98: 14.7 | E98: 0.7 | F98: lcl|unitig_578 | G98: 2706904 | H98: 2707307 | I98: 403 | J98: -840142 | K98: C | L98: rnd-3_family-257 | M98: Unknown | N98: 0 | O98: 560 | P98: 101 | Q98: 32599
B99: 2666 | C99: 18.4 | D99: 1.6 | E99: 0.4 | F99: lcl|unitig_578 | G99: 2707669 | H99: 2708219 | I99: 550 | J99: -839230 | K99: + | L99: rnd-3_family-257 | M99: Unknown | N99: 3 | O99: 560 | P99: 0 | Q99: 32600
B100: 1137 | C100: 27.5 | D100: 3.7 | E100: 4.3 | F100: lcl|unitig_578 | G100: 2708341 | H100: 2708903 | I100: 562 | J100: -838546 | K100: + | L100: rnd-5_family-8948 | M100: Unknown | N100: 14 | O100: 573 | P100: -720 | Q100: 32601
B101: 1021 | C101: 26.4 | D101: 2.6 | E101: 6.7 | F101: lcl|unitig_578 | G101: 2708996 | H101: 2709494 | I101: 498 | J101: -837955 | K101: + | L101: rnd-5_family-8948 | M101: Unknown | N101: 642 | O101: 1121 | P101: -172 | Q101: 32601
B102: 1865 | C102: 23 | D102: 2.4 | E102: 2.4 | F102: lcl|unitig_699 | G102: 1432686 | H102: 1433268 | I102: 582 | J102: -1784983 | K102: + | L102: rnd-5_family-8948 | M102: Unknown | N102: 1 | O102: 583 | P102: -710 | Q102: 39887
B103: 530 | C103: 18.7 | D103: 2 | E103: 1.4 | F103: lcl|unitig_699 | G103: 1433281 | H103: 1433426 | I103: 145 | J103: -1784825 | K103: + | L103: rnd-1_family-16 | M103: Unknown | N103: 25 | O103: 171 | P103: -389 | Q103: 39888
B104: 2224 | C104: 21.8 | D104: 1.8 | E104: 2.8 | F104: lcl|unitig_699 | G104: 1433510 | H104: 1434081 | I104: 571 | J104: -1784170 | K104: + | L104: rnd-5_family-8948 | M104: Unknown | N104: 629 | O104: 1194 | P104: -99 | Q104: 39887
B105: 385 | C105: 31.7 | D105: 0 | E105: 0 | F105: lcl|unitig_699 | G105: 1434473 | H105: 1434595 | I105: 122 | J105: -1783656 | K105: C | L105: rnd-5_family-2688 | M105: DNA/PIF-Harbinger | N105: -24 | O105: 1021 | P105: 899 | Q105: 39889
B106: 1009 | C106: 21 | D106: 0 | E106: 0.5 | F106: lcl|unitig_699 | G106: 1435318 | H106: 1435542 | I106: 224 | J106: -1782709 | K106: C | L106: rnd-1_family-155 | M106: LTR/Copia | N106: -3 | O106: 297 | P106: 74 | Q106: 39890
B107: 953 | C107: 17.9 | D107: 10 | E107: 0 | F107: lcl|unitig_699 | G107: 1435986 | H107: 1436214 | I107: 228 | J107: -1782037 | K107: C | L107: rnd-5_family-1321 | M107: Unknown | N107: 0 | O107: 550 | P107: 299 | Q107: 39891
B108: 688 | C108: 18.6 | D108: 1.7 | E108: 1.7 | F108: lcl|unitig_699 | G108: 1436220 | H108: 1436394 | I108: 174 | J108: -1781857 | K108: + | L108: rnd-1_family-267 | M108: Unknown | N108: 7 | O108: 181 | P108: -133 | Q108: 39892
B109: 684 | C109: 27.1 | D109: 0.8 | E109: 7.2 | F109: lcl|unitig_699 | G109: 1436679 | H109: 1436913 | I109: 234 | J109: -1781338 | K109: + | L109: rnd-4_family-558 | M109: Unknown | N109: 34 | O109: 254 | P109: -541 | Q109: 39893
B110: 292 | C110: 27.4 | D110: 4.5 | E110: 4.5 | F110: lcl|unitig_699 | G110: 1436973 | H110: 1437106 | I110: 133 | J110: -1781145 | K110: + | L110: rnd-4_family-558 | M110: Unknown | N110: 406 | O110: 539 | P110: -256 | Q110: 39893
B111: 14 | C111: 14.4 | D111: 0 | E111: 3.1 | F111: lcl|unitig_699 | G111: 1437178 | H111: 1437210 | I111: 32 | J111: -1781041 | K111: + | L111: (TTCTA)n | M111: Simple_repeat | N111: 1 | O111: 32 | P111: 0 | Q111: 39894
B112: 17 | C112: 6.7 | D112: 3 | E112: 3 | F112: lcl|unitig_699 | G112: 1437874 | H112: 1437906 | I112: 32 | J112: -1780345 | K112: + | L112: (GTGGTC)n | M112: Simple_repeat | N112: 1 | O112: 33 | P112: 0 | Q112: 39895
B113: 1966 | C113: 23.4 | D113: 2.8 | E113: 2.8 | F113: lcl|unitig_699 | G113: 1438292 | H113: 1438863 | I113: 571 | J113: -1779388 | K113: + | L113: rnd-5_family-8948 | M113: Unknown | N113: 1 | O113: 572 | P113: -721 | Q113: 39896
B114: 2521 | C114: 20.9 | D114: 3.1 | E114: 1.2 | F114: lcl|unitig_699 | G114: 1439054 | H114: 1439609 | I114: 555 | J114: -1778642 | K114: + | L114: rnd-5_family-8948 | M114: Unknown | N114: 629 | O114: 1194 | P114: -99 | Q114: 39896
B115: 804 | C115: 19.5 | D115: 35.9 | E115: 0.9 | F115: lcl|unitig_699 | G115: 1440626 | H115: 1440848 | I115: 222 | J115: -1777403 | K115: + | L115: rnd-3_family-257 | M115: Unknown | N115: 180 | O115: 480 | P115: -80 | Q115: 39897
B116: 1756 | C116: 20.5 | D116: 3.9 | E116: 0 | F116: lcl|unitig_699 | G116: 1440924 | H116: 1441279 | I116: 355 | J116: -1776972 | K116: + | L116: rnd-3_family-257 | M116: Unknown | N116: 191 | O116: 560 | P116: 0 | Q116: 39898
B117: 282 | C117: 29.8 | D117: 1.6 | E117: 2.4 | F117: lcl|unitig_699 | G117: 1441614 | H117: 1441737 | I117: 123 | J117: -1776514 | K117: C | L117: rnd-1_family-36 | M117: Unknown | N117: -5 | O117: 181 | P117: 59 | Q117: 39899 | R117: *
B118: 720 | C118: 28.4 | D118: 6 | E118: 6.7 | F118: lcl|unitig_699 | G118: 1441631 | H118: 1442113 | I118: 482 | J118: -1776138 | K118: + | L118: rnd-4_family-558 | M118: Unknown | N118: 296 | O118: 775 | P118: -20 | Q118: 39900 | R118: *
B119: 840 | C119: 10.9 | D119: 10.1 | E119: 1.6 | F119: lcl|unitig_699 | G119: 1442106 | H119: 1442273 | I119: 167 | J119: -1775978 | K119: + | L119: rnd-1_family-139 | M119: Unknown | N119: 54 | O119: 235 | P119: 0 | Q119: 39901
B120: 2277 | C120: 16.8 | D120: 11 | E120: 1.1 | F120: lcl|unitig_699 | G120: 1442418 | H120: 1442917 | I120: 499 | J120: -1775334 | K120: C | L120: rnd-5_family-1321 | M120: Unknown | N120: 0 | O120: 550 | P120: 2 | Q120: 39902
B121: 780 | C121: 12.2 | D121: 2 | E121: 5.2 | F121: lcl|unitig_699 | G121: 1443315 | H121: 1443690 | I121: 375 | J121: -1774561 | K121: C | L121: rnd-5_family-5273 | M121: Unknown | N121: -67 | O121: 405 | P121: 42 | Q121: 39903
B122: 8913 | C122: 10.7 | D122: 0.5 | E122: 0.5 | F122: lcl|unitig_699 | G122: 1444165 | H122: 1445458 | I122: 1293 | J122: -1772793 | K122: + | L122: rnd-5_family-8948 | M122: Unknown | N122: 1 | O122: 1293 | P122: 0 | Q122: 39904
B123: 1547 | C123: 26.6 | D123: 1.9 | E123: 1.4 | F123: lcl|unitig_699 | G123: 1446329 | H123: 1446895 | I123: 566 | J123: -1771356 | K123: + | L123: rnd-1_family-46 | M123: LTR/Gypsy | N123: 1 | O123: 570 | P123: -635 | Q123: 39905
B124: 264 | C124: 21.7 | D124: 1.4 | E124: 0 | F124: lcl|unitig_699 | G124: 1446903 | H124: 1446971 | I124: 68 | J124: -1771280 | K124: + | L124: rnd-4_family-1257 | M124: Unknown | N124: 57 | O124: 126 | P124: -15 | Q124: 39906
B125: 2976 | C125: 15.8 | D125: 0.9 | E125: 1.3 | F125: lcl|unitig_699 | G125: 1447319 | H125: 1447870 | I125: 551 | J125: -1770381 | K125: C | L125: rnd-5_family-1321 | M125: Unknown | N125: 0 | O125: 550 | P125: 1 | Q125: 39907
B126: 332 | C126: 9.7 | D126: 14.3 | E126: 1.7 | F126: lcl|unitig_699 | G126: 1447930 | H126: 1448034 | I126: 104 | J126: -1770217 | K126: + | L126: rnd-3_family-14 | M126: Unknown | N126: 266 | O126: 383 | P126: -225 | Q126: 39908
B127: 8550 | C127: 11.9 | D127: 0.5 | E127: 0.5 | F127: lcl|unitig_699 | G127: 1448938 | H127: 1450230 | I127: 1292 | J127: -1768021 | K127: + | L127: rnd-5_family-8948 | M127: Unknown | N127: 1 | O127: 1293 | P127: 0 | Q127: 39909
B128: 33 | C128: 22 | D128: 5.2 | E128: 3.6 | F128: lcl|unitig_699 | G128: 1450544 | H128: 1450678 | I128: 134 | J128: -1767573 | K128: + | L128: A-rich | M128: Low_complexity | N128: 1 | O128: 137 | P128: 0 | Q128: 39910
B129: 347 | C129: 21.8 | D129: 1.8 | E129: 9.9 | F129: lcl|unitig_699 | G129: 1450772 | H129: 1451000 | I129: 228 | J129: -1767251 | K129: + | L129: rnd-5_family-657 | M129: Unknown | N129: 635 | O129: 846 | P129: -285 | Q129: 39911
B130: 19 | C130: 13.8 | D130: 3.9 | E130: 3.9 | F130: lcl|unitig_699 | G130: 1451346 | H130: 1451397 | I130: 51 | J130: -1766854 | K130: + | L130: A-rich | M130: Low_complexity | N130: 1 | O130: 52 | P130: 0 | Q130: 39912
B131: 12 | C131: 13.2 | D131: 5.7 | E131: 2.8 | F131: lcl|unitig_699 | G131: 1451373 | H131: 1451407 | I131: 34 | J131: -1766844 | K131: + | L131: (AATT)n | M131: Simple_repeat | N131: 1 | O131: 36 | P131: 0 | Q131: 39913 | R131: *
B132: 310 | C132: 20.7 | D132: 8.1 | E132: 0 | F132: lcl|unitig_699 | G132: 1451571 | H132: 1451681 | I132: =H132-G132 -> 110 | J132: -1766570 | K132: C | L132: rnd-5_family-143 | M132: Unknown | N132: -2 | O132: 121 | P132: 2 | Q132: 39914
B133: 274 | C133: 21.2 | D133: 7.1 | E133: 4 | F133: lcl|unitig_699 | G133: 1451879 | H133: 1451976 | I133: 97 | J133: -1766275 | K133: + | L133: rnd-5_family-8948 | M133: Unknown | N133: 6 | O133: 106 | P133: -1187 | Q133: 39915
B134: 3032 | C134: 7.8 | D134: 0 | E134: 1.4 | F134: lcl|unitig_699 | G134: 1452132 | H134: 1452638 | I134: 506 | J134: -1765613 | K134: C | L134: rnd-5_family-3374 | M134: Unknown | N134: 0 | O134: 2426 | P134: 1927 | Q134: 39916
B135: 765 | C135: 17.8 | D135: 7.9 | E135: 1.9 | F135: lcl|unitig_699 | G135: 1452763 | H135: 1453105 | I135: 342 | J135: -1765146 | K135: + | L135: rnd-3_family-14 | M135: Unknown | N135: 46 | O135: 408 | P135: -200 | Q135: 39917
B136: 7624 | C136: 14.2 | D136: 2 | E136: 1.9 | F136: lcl|unitig_699 | G136: 1453834 | H136: 1455121 | I136: 1287 | J136: -1763130 | K136: + | L136: rnd-5_family-8948 | M136: Unknown | N136: 1 | O136: 1290 | P136: -3 | Q136: 39918
B137: 372 | C137: 15.3 | D137: 3.5 | E137: 0 | F137: lcl|unitig_699 | G137: 1455134 | H137: 1455218 | I137: 84 | J137: -1763033 | K137: C | L137: rnd-5_family-158 | M137: Unknown | N137: -1 | O137: 93 | P137: 6 | Q137: 39919
B138: 343 | C138: 15.9 | D138: 9.3 | E138: 0 | F138: lcl|unitig_699 | G138: 1455219 | H138: 1455239 | I138: 20 | J138: -1763012 | K138: + | L138: rnd-3_family-394 | M138: Unknown | N138: 5 | O138: 120 | P138: -1 | Q138: 39920
B139: 291 | C139: 28.4 | D139: 0 | E139: 4.3 | F139: lcl|unitig_699 | G139: 1455968 | H139: 1456114 | I139: 146 | J139: -1762137 | K139: C | L139: rnd-5_family-3215 | M139: Unknown | N139: -188 | O139: 3702 | P139: 3562 | Q139: 39921 | R139: *
B140: 9293 | C140: 9.2 | D140: 2.8 | E140: 1.7 | F140: lcl|unitig_699 | G140: 1456002 | H140: 1457360 | I140: 1358 | J140: -1760891 | K140: + | L140: rnd-1_family-4 | M140: Unknown | N140: 1 | O140: 1374 | P140: 0 | Q140: 39922
B141: 285 | C141: 22 | D141: 5.8 | E141: 3.8 | F141: lcl|unitig_699 | G141: 1457480 | H141: 1457583 | I141: 103 | J141: -1760668 | K141: + | L141: rnd-5_family-8948 | M141: Unknown | N141: 1 | O141: 106 | P141: -1187 | Q141: 39923
B142: 1483 | C142: 16.3 | D142: 2.8 | E142: 0.4 | F142: lcl|unitig_699 | G142: 1457787 | H142: 1458038 | I142: 251 | J142: -1760213 | K142: C | L142: rnd-5_family-2688 | M142: DNA/PIF-Harbinger | N142: -13 | O142: 1032 | P142: 775 | Q142: 39924
B143: 36 | C143: 4.1 | D143: 1.9 | E143: 1.9 | F143: lcl|unitig_699 | G143: 1458148 | H143: 1458200 | I143: 52 | J143: -1760051 | K143: + | L143: (AAG)n | M143: Simple_repeat | N143: 1 | O143: 53 | P143: 0 | Q143: 39925
B144: 3679 | C144: 10.7 | D144: 0.2 | E144: 0.4 | F144: lcl|unitig_699 | G144: 1458201 | H144: 1458752 | I144: 551 | J144: -1759499 | K144: + | L144: rnd-1_family-94 | M144: Unknown | N144: 1 | O144: 551 | P144: 0 | Q144: 39926
B145: 724 | C145: 17.8 | D145: 8.3 | E145: 2 | F145: lcl|unitig_699 | G145: 1458768 | H145: 1459094 | I145: 326 | J145: -1759157 | K145: + | L145: rnd-3_family-14 | M145: Unknown | N145: 46 | O145: 392 | P145: -216 | Q145: 39927
B146: 7806 | C146: 13.4 | D146: 2.2 | E146: 2 | F146: lcl|unitig_699 | G146: 1459961 | H146: 1461250 | I146: 1289 | J146: -1757001 | K146: + | L146: rnd-5_family-8948 | M146: Unknown | N146: 1 | O146: 1293 | P146: 0 | Q146: 39928
B147: 354 | C147: 17.7 | D147: 8.5 | E147: 0.1 | F147: lcl|unitig_699 | G147: 1461259 | H147: 1461376 | I147: 117 | J147: -1756875 | K147: + | L147: rnd-3_family-394 | M147: Unknown | N147: 4 | O147: 123 | P147: 0 | Q147: 39929
B148: 3458 | C148: 22.1 | D148: 3.1 | E148: 5.2 | F148: lcl|unitig_699 | G148: 1462204 | H148: 1463347 | I148: 1143 | J148: -1754904 | K148: + | L148: rnd-5_family-8948 | M148: Unknown | N148: 1 | O148: 1121 | P148: -172 | Q148: 39930
B149: 1774 | C149: 19.9 | D149: 6.5 | E149: 2.5 | F149: lcl|unitig_699 | G149: 1464138 | H149: 1464641 | I149: 503 | J149: -1753610 | K149: + | L149: rnd-3_family-126 | M149: Unknown | N149: 65 | O149: 588 | P149: -4 | Q149: 39931
B150: 278 | C150: 13.2 | D150: 0 | E150: 0 | F150: lcl|unitig_699 | G150: 1465116 | H150: 1465153 | I150: 37 | J150: -1753098 | K150: + | L150: rnd-5_family-43 | M150: DNA/hAT-Ac | N150: 19 | O150: 56 | P150: -146 | Q150: 39932
B151: 4289 | C151: 20.2 | D151: 2.5 | E151: 5.4 | F151: lcl|unitig_699 | G151: 1465312 | H151: 1466464 | I151: 1152 | J151: -1751787 | K151: + | L151: rnd-5_family-8948 | M151: Unknown | N151: 1 | O151: 1121 | P151: -172 | Q151: 39933
B152: 741 | C152: 16.9 | D152: 1.3 | E152: 12.7 | F152: lcl|unitig_699 | G152: 1466586 | H152: 1466606 | I152: 20 | J152: -1751645 | K152: C | L152: rnd-3_family-14 | M152: Unknown | N152: -189 | O152: 419 | P152: 357 | Q152: 39934
B153: 746 | C153: 14.2 | D153: 1.4 | E153: 2.1 | F153: lcl|unitig_699 | G153: 1466607 | H153: 1466887 | I153: 280 | J153: -1751364 | K153: + | L153: rnd-5_family-5273 | M153: Unknown | N153: 149 | O153: 427 | P153: -45 | Q153: 39935
B154: 393 | C154: 15.9 | D154: 5.3 | E154: 0.7 | F154: lcl|unitig_699 | G154: 1466863 | H154: 1466995 | I154: 132 | J154: -1751256 | K154: + | L154: rnd-5_family-860 | M154: Unknown | N154: 139 | O154: 277 | P154: -56 | Q154: 39936 | R154: *
B155: 741 | C155: 16.9 | D155: 1.3 | E155: 12.7 | F155: lcl|unitig_699 | G155: 1466888 | H155: 1466979 | I155: 91 | J155: -1751272 | K155: C | L155: rnd-3_family-14 | M155: Unknown | N155: -189 | O155: 356 | P155: 66 | Q155: 39934
B156: 282 | C156: 15.5 | D156: 0 | E156: 0 | F156: lcl|unitig_699 | G156: 1468099 | H156: 1468156 | I156: 57 | J156: -1750095 | K156: C | L156: rnd-5_family-143 | M156: Unknown | N156: -64 | O156: 59 | P156: 2 | Q156: 39937
B157: 18110 | C157: 9.6 | D157: 0.8 | E157: 0.8 | F157: lcl|unitig_699 | G157: 1468245 | H157: 1471049 | I157: 2804 | J157: -1747202 | K157: + | L157: rnd-5_family-27 | M157: LTR/Copia | N157: 1 | O157: 2808 | P157: -220 | Q157: 39938
B158: 3089 | C158: 27.8 | D158: 1.8 | E158: 1.8 | F158: lcl|unitig_699 | G158: 1471438 | H158: 1473064 | I158: 1626 | J158: -1745187 | K158: + | L158: rnd-5_family-2041 | M158: LTR/Copia | N158: 86 | O158: 1717 | P158: -81 | Q158: 39939
B159: 2182 | C159: 3.1 | D159: 0 | E159: 0.4 | F159: lcl|unitig_699 | G159: 1473065 | H159: 1473321 | I159: 256 | J159: -1744930 | K159: + | L159: rnd-5_family-27 | M159: LTR/Copia | N159: 1 | O159: 256 | P159: -2100 | Q159: 39940
B160: 3537 | C160: 22.3 | D160: 2.5 | E160: 6 | F160: lcl|unitig_699 | G160: 1473407 | H160: 1474565 | I160: 1158 | J160: -1743686 | K160: + | L160: rnd-5_family-8948 | M160: Unknown | N160: 1 | O160: 1121 | P160: -172 | Q160: 39941
B161: 1217 | C161: 22 | D161: 5.5 | E161: 7 | F161: lcl|unitig_699 | G161: 1475374 | H161: 1475867 | I161: 493 | J161: -1742384 | K161: + | L161: rnd-3_family-126 | M161: Unknown | N161: 65 | O161: 551 | P161: -41 | Q161: 39942
B162: 226 | C162: 18.2 | D162: 0 | E162: 2.3 | F162: lcl|unitig_699 | G162: 1476250 | H162: 1476294 | I162: 44 | J162: -1741957 | K162: + | L162: rnd-5_family-43 | M162: DNA/hAT-Ac | N162: 18 | O162: 61 | P162: -141 | Q162: 39943
B163: 59119 | C163: 1.5 | D163: 0.1 | E163: 0.5 | F163: lcl|unitig_699 | G163: 1476450 | H163: 1483210 | I163: 6760 | J163: -1735041 | K163: + | L163: rnd-4_family-259 | M163: LTR/Gypsy | N163: 2 | O163: 6737 | P163: -57 | Q163: 39944
B164: 4283 | C164: 20 | D164: 2.5 | E164: 5.5 | F164: lcl|unitig_699 | G164: 1483212 | H164: 1484365 | I164: 1153 | J164: -1733886 | K164: + | L164: rnd-5_family-8948 | M164: Unknown | N164: 1 | O164: 1121 | P164: -172 | Q164: 39945
B165: 3746 | C165: 7.6 | D165: 1.3 | E165: 0.4 | F165: lcl|unitig_699 | G165: 1486099 | H165: 1486625 | I165: 526 | J165: -1731626 | K165: + | L165: rnd-1_family-114 | M165: DNA/hAT-Ac | N165: 4 | O165: 535 | P165: 0 | Q165: 39946
B166: 953 | C166: 18.5 | D166: 0.8 | E166: 1.1 | F166: lcl|unitig_699 | G166: 1487791 | H166: 1488053 | I166: 262 | J166: -1730198 | K166: + | L166: rnd-5_family-198 | M166: Unknown | N166: 225 | O166: 486 | P166: -69 | Q166: 39947
B167: 1291 | C167: 24.3 | D167: 5.3 | E167: 4.2 | F167: lcl|unitig_699 | G167: 1488269 | H167: 1488719 | I167: 450 | J167: -1729532 | K167: C | L167: rnd-5_family-8948 | M167: Unknown | N167: -210 | O167: 1083 | P167: 628 | Q167: 39948
B168: 479 | C168: 28 | D168: 0 | E168: 10.6 | F168: lcl|unitig_699 | G168: 1489009 | H168: 1489164 | I168: 155 | J168: -1729087 | K168: C | L168: rnd-5_family-43 | M168: DNA/hAT-Ac | N168: -59 | O168: 143 | P168: 3 | Q168: 39949
B169: 1567 | C169: 26.7 | D169: 3.3 | E169: 2.9 | F169: lcl|unitig_699 | G169: 1489169 | H169: 1489746 | I169: 577 | J169: -1728505 | K169: C | L169: rnd-5_family-8948 | M169: Unknown | N169: -710 | O169: 583 | P169: 4 | Q169: 39948
B170: 501 | C170: 24.9 | D170: 13.8 | E170: 2.9 | F170: lcl|unitig_699 | G170: 1489857 | H170: 1490205 | I170: 348 | J170: -1728046 | K170: C | L170: rnd-5_family-99 | M170: Unknown | N170: -8 | O170: 516 | P170: 30 | Q170: 39950
B171: 459 | C171: 20.3 | D171: 6.1 | E171: 4.9 | F171: lcl|unitig_699 | G171: 1490417 | H171: 1490597 | I171: 180 | J171: -1727654 | K171: + | L171: rnd-4_family-61 | M171: Unknown | N171: 141 | O171: 323 | P171: -129 | Q171: 39951
B172: 3122 | C172: 24.7 | D172: 3.9 | E172: 3.6 | F172: lcl|unitig_699 | G172: 1491561 | H172: 1492676 | I172: 1115 | J172: -1725575 | K172: C | L172: rnd-5_family-8948 | M172: Unknown | N172: -173 | O172: 1120 | P172: 1 | Q172: 39952
B174: Table S12: Repeat annotation in and around Utricularia gibba cysteine protease tandem arrays
